Workbook

Sheet Static Models
B1: 2014 | C1: UCR Base | D1: Crime | E1: Observed | G1: Sanction | H1: Propensity | N1: Mean | O1: Mean | Q1: Male | S1: Female | U1: Prisoner
A2: Group | B2: Crimes | C2: Population | D2: Rate | E2: Z Score | F2: Delta Z | G2: Probit (SP) | H2: Quotient (PQ) | I2: Z * 15 | J2: Z * 15 + 100 | N2: Propensity | O2: Propensity | P2: Male | Q2: Propensity | R2: Female | S2: Propensity | T2: Prisoner | U2: Propensity
A3: US Total | B3: =SUM(B5:B6) -> 8224259 | C3: 232219578 | D3: =B3/C3 -> 0.03541587264 | E3: =NORMSINV(D3) -> -1.806554654 | G3: =5+E3 -> 3.193445346 | H3: =I3+J$3 -> 100 | I3: =E3*15 -> -27.09831981 | J3: =100-I3 -> 127.0983198 | L3: X | M3: Probit | N3: PDF | O3: CDF | P3: X | Q3: PDF | R3: X | S3: PDF | T3: X | U3: PDF
L4: -5 | M4: =L4+5 -> 0 | N4: =_xlfn.NORM.S.DIST(L4,FALSE) -> 1.486719515e-06 | O4: =_xlfn.NORM.S.DIST(L4,TRUE) -> 2.866515719e-07 | P4: =$L4-B$15 -> -5.18 | Q4: =_xlfn.NORM.S.DIST(P4, FALSE) -> 5.947417655e-07 | R4: =$L4-B$16 -> -4.73 | S4: =_xlfn.NORM.S.DIST(R4, FALSE) -> 5.529636189e-06 | T4: =$L4-B$17 -> -6.6 | U4: =_xlfn.NORM.S.DIST(T4, FALSE) -> 1.386679994e-10
A5: Males | B5: 6021910 | C5: =C3/2 -> 116109789 | D5: =B5/C5 -> 0.05186393027 | E5: =NORMSINV(D5) -> -1.627043495 | F5: =E5-E$3 -> 0.1795111591 | G5: =5+E5 -> 3.372956505 | H5: =I5+J$3 -> 102.6926674 | I5: =E5*15 -> -24.40565242 | L5: =ROUND(L4+0.01,2) -> -4.99 | M5: =L5+5 -> 0.01 | N5: =_xlfn.NORM.S.DIST(L5,FALSE) -> 1.562867109e-06 | O5: =_xlfn.NORM.S.DIST(L5,TRUE) -> 3.018964625e-07 | P5: =$L5-B$15 -> -5.17 | Q5: =_xlfn.NORM.S.DIST(P5, FALSE) -> 6.263299468e-07 | R5: =$L5-B$16 -> -4.72 | S5: 5.797182506e-06 | T5: =$L5-B$17 -> -6.59 | U5: =_xlfn.NORM.S.DIST(T5, FALSE) -> 1.481214555e-10
A6: Females | B6: 2202349 | C6: =C3/2 -> 116109789 | D6: =B6/C6 -> 0.01896781502 | E6: -2.075549567 | F6: =E6-E$3 -> -0.2689949128 | G6: 2.924450433 | H6: =I6+J$3 -> 95.96507631 | I6: =E6*15 -> -31.1332435 | L6: =ROUND(L5+0.01,2) -> -4.98 | M6: =L6+5 -> 0.02 | N6: =_xlfn.NORM.S.DIST(L6,FALSE) -> 1.642750588e-06 | O6: =_xlfn.NORM.S.DIST(L6,TRUE) -> 3.179213662e-07 | P6: =$L6-B$15 -> -5.16 | Q6: 6.595298969e-07 | R6: =$L6-B$16 -> -4.71 | S6: 6.077066067e-06 | T6: =$L6-B$17 -> -6.58 | U6: =_xlfn.NORM.S.DIST(T6, FALSE) -> 1.582035639e-10
A7: Ex-Prisoners | D7: 0.42 | E7: =NORMSINV(D7) -> -0.2018934791 | F7: =E7-E$3 -> 1.604661175 | G7: 4.798106521 | H7: =I7+J$3 -> 124.0699176 | I7: =E7*15 -> -3.028402187 | L7: -4.97 | M7: =L7+5 -> 0.03 | N7: =_xlfn.NORM.S.DIST(L7,FALSE) -> 1.726544522e-06 | O7: =_xlfn.NORM.S.DIST(L7,TRUE) -> 3.347645083e-07 | P7: =$L7-B$15 -> -5.15 | Q7: 6.944202354e-07 | R7: =$L7-B$16 -> -4.7 | S7: 6.369825179e-06 | T7: =$L7-B$17 -> -6.57 | U7: =_xlfn.NORM.S.DIST(T7, FALSE) -> 1.689550296e-10
L8: -4.96 | M8: =L8+5 -> 0.04 | N8: =_xlfn.NORM.S.DIST(L8,FALSE) -> 1.81443119e-06 | O8: =_xlfn.NORM.S.DIST(L8,TRUE) -> 3.524658982e-07 | P8: =$L8-B$15 -> -5.14 | Q8: 7.310832247e-07 | R8: =$L8-B$16 -> -4.69 | S8: 6.676020155e-06 | T8: =$L8-B$17 -> -6.56 | U8: =_xlfn.NORM.S.DIST(T8, FALSE) -> 1.804191189e-10
A9: Source | B9: https://www.fbi.gov/about-us/cjis/ucr/crime-in-the-u.s/2014/crime-in-the-u.s.-2014/tables/table-35 | L9: -4.95 | M9: =L9+5 -> 0.05 | N9: =_xlfn.NORM.S.DIST(L9,FALSE) -> 1.906600903e-06 | O9: =_xlfn.NORM.S.DIST(L9,TRUE) -> 3.71067408e-07 | P9: =$L9-B$15 -> -5.13 | Q9: 7.696049288e-07 | R9: =$L9-B$16 -> -4.68 | S9: 6.996234143e-06 | T9: =$L9-B$17 -> -6.55 | U9: =_xlfn.NORM.S.DIST(T9, FALSE) -> 1.926418148e-10
L10: -4.94 | M10: =L10+5 -> 0.06 | N10: =_xlfn.NORM.S.DIST(L10,FALSE) -> 2.00325233e-06 | O10: =_xlfn.NORM.S.DIST(L10,TRUE) -> 3.906128543e-07 | P10: =$L10-B$15 -> -5.12 | Q10: 8.100753789e-07 | R10: =$L10-B$16 -> -4.67 | S10: 7.331073989e-06 | T10: =$L10-B$17 -> -6.54 | U10: =_xlfn.NORM.S.DIST(T10, FALSE) -> 2.056719827e-10
A11: Hint: Change the values of Delta Z and the PDF plots will shift in relation to the population mean. | L11: -4.93 | M11: =L11+5 -> 0.07 | N11: =_xlfn.NORM.S.DIST(L11,FALSE) -> 2.104592843e-06 | O11: =_xlfn.NORM.S.DIST(L11,TRUE) -> 4.111480838e-07 | P11: =$L11-B$15 -> -5.11 | Q11: 8.525887453e-07 | R11: =$L11-B$16 -> -4.66 | S11: 7.681171117e-06 | T11: =$L11-B$17 -> -6.53 | U11: =_xlfn.NORM.S.DIST(T11, FALSE) -> 2.195615455e-10
A12: Hint: Change the value of the Bold Mean Sanctioning value and the threshold will shift in relation to the population mean. | L12: -4.92 | M12: =L12+5 -> 0.08 | N12: =_xlfn.NORM.S.DIST(L12,FALSE) -> 2.210838875e-06 | O12: =_xlfn.NORM.S.DIST(L12,TRUE) -> 4.327210619e-07 | P12: =$L12-B$15 -> -5.1 | Q12: 8.972435162e-07 | R12: =$L12-B$16 -> -4.65 | S12: 8.047182456e-06 | T12: =$L12-B$17 -> -6.52 | U12: =_xlfn.NORM.S.DIST(T12, FALSE) -> 2.343656688e-10
L13: -4.91 | M13: =L13+5 -> 0.09 | N13: =_xlfn.NORM.S.DIST(L13,FALSE) -> 2.322216285e-06 | O13: =_xlfn.NORM.S.DIST(L13,TRUE) -> 4.553819648e-07 | P13: =$L13-B$15 -> -5.09 | Q13: 9.441426847e-07 | R13: =$L13-B$16 -> -4.64 | S13: 8.429791383e-06 | T13: =$L13-B$17 -> -6.51 | U13: =_xlfn.NORM.S.DIST(T13, FALSE) -> 2.501429571e-10
B14: Delta Z | D14: Sanctioning | E14: Sanctioning | L14: -4.9 | M14: =L14+5 -> 0.1 | N14: =_xlfn.NORM.S.DIST(L14,FALSE) -> 2.438960746e-06 | O14: =_xlfn.NORM.S.DIST(L14,TRUE) -> 4.791832766e-07 | P14: =$L14-B$15 -> -5.08 | Q14: 9.933939413e-07 | R14: =$L14-B$16 -> -4.63 | S14: 8.829708704e-06 | T14: =$L14-B$17 -> -6.5 | U14: =_xlfn.NORM.S.DIST(T14, FALSE) -> 2.669556615e-10
A15: Males | B15: 0.18 | D15: X | E15: Y | L15: -4.89 | M15: =L15+5 -> 0.11 | N15: =_xlfn.NORM.S.DIST(L15,FALSE) -> 2.561318141e-06 | O15: =_xlfn.NORM.S.DIST(L15,TRUE) -> 5.041798884e-07 | P15: =$L15-B$15 -> -5.07 | Q15: 1.045109876e-06 | R15: =$L15-B$16 -> -4.62 | S15: 9.24767367e-06 | T15: =$L15-B$17 -> -6.49 | U15: =_xlfn.NORM.S.DIST(T15, FALSE) -> 2.848698994e-10
A16: Females | B16: -0.27 | C16: Mean | D16: =10-3.19 -> 6.81 | E16: 0 | L16: -4.88 | M16: =L16+5 -> 0.12 | N16: =_xlfn.NORM.S.DIST(L16,FALSE) -> 2.689544974e-06 | O16: =_xlfn.NORM.S.DIST(L16,TRUE) -> 5.30429203e-07 | P16: =$L16-B$15 -> -5.06 | Q16: 1.099408189e-06 | R16: =$L16-B$16 -> -4.61 | S16: 9.68445502e-06 | T16: =$L16-B$17 -> -6.48 | U16: =_xlfn.NORM.S.DIST(T16, FALSE) -> 3.039558871e-10
A17: Prisoners | B17: 1.6 | C17: Sanctioning | D17: =D16 -> 6.81 | E17: 0.45 | L17: -4.87 | M17: =L17+5 -> 0.13 | N17: =_xlfn.NORM.S.DIST(L17,FALSE) -> 2.823908801e-06 | O17: =_xlfn.NORM.S.DIST(L17,TRUE) -> 5.579912432e-07 | P17: =$L17-B$15 -> -5.05 | Q17: 1.156411904e-06 | R17: =$L17-B$16 -> -4.6 | S17: 1.014085207e-05 | T17: =$L17-B$17 -> -6.47 | U17: =_xlfn.NORM.S.DIST(T17, FALSE) -> 3.242881858e-10
L18: -4.86 | M18: =L18+5 -> 0.14 | N18: =_xlfn.NORM.S.DIST(L18,FALSE) -> 2.964688669e-06 | O18: =_xlfn.NORM.S.DIST(L18,TRUE) -> 5.869287645e-07 | P18: =$L18-B$15 -> -5.04 | Q18: 1.216249599e-06 | R18: =$L18-B$16 -> -4.59 | S18: 1.061769581e-05 | T18: =$L18-B$17 -> -6.46 | U18: =_xlfn.NORM.S.DIST(T18, FALSE) -> 3.459459617e-10
L19: -4.85 | M19: =L19+5 -> 0.15 | N19: =_xlfn.NORM.S.DIST(L19,FALSE) -> 3.112175579e-06 | O19: =_xlfn.NORM.S.DIST(L19,TRUE) -> 6.17307372e-07 | P19: =$L19-B$15 -> -5.03 | Q19: 1.27905564e-06 | R19: =$L19-B$16 -> -4.58 | S19: 1.111585008e-05 | T19: =$L19-B$17 -> -6.45 | U19: =_xlfn.NORM.S.DIST(T19, FALSE) -> 3.690132616e-10
L20: -4.84 | M20: =L20+5 -> 0.16 | N20: =_xlfn.NORM.S.DIST(L20,FALSE) -> 3.266672964e-06 | O20: =_xlfn.NORM.S.DIST(L20,TRUE) -> 6.491956429e-07 | P20: =$L20-B$15 -> -5.02 | Q20: 1.344970426e-06 | R20: =$L20-B$16 -> -4.57 | S20: 1.163621276e-05 | T20: =$L20-B$17 -> -6.44 | U20: =_xlfn.NORM.S.DIST(T20, FALSE) -> 3.935793041e-10
L21: -4.83 | M21: =L21+5 -> 0.17 | N21: =_xlfn.NORM.S.DIST(L21,FALSE) -> 3.428497178e-06 | O21: =_xlfn.NORM.S.DIST(L21,TRUE) -> 6.826652526e-07 | P21: =$L21-B$15 -> -5.01 | Q21: 1.41414064e-06 | R21: =$L21-B$16 -> -4.56 | S21: 1.217971697e-05 | T21: =$L21-B$17 -> -6.43 | U21: =_xlfn.NORM.S.DIST(T21, FALSE) -> 4.197387873e-10
L22: -4.82 | M22: =L22+5 -> 0.18 | N22: =_xlfn.NORM.S.DIST(L22,FALSE) -> 3.597978014e-06 | O22: =_xlfn.NORM.S.DIST(L22,TRUE) -> 7.177911069e-07 | P22: =$L22-B$15 -> -5 | Q22: 1.486719515e-06 | R22: =$L22-B$16 -> -4.55 | S22: 1.274733238e-05 | T22: =$L22-B$17 -> -6.42 | U22: =_xlfn.NORM.S.DIST(T22, FALSE) -> 4.475922146e-10
L23: -4.81 | M23: =L23+5 -> 0.19 | N23: =_xlfn.NORM.S.DIST(L23,FALSE) -> 3.775459227e-06 | O23: =_xlfn.NORM.S.DIST(L23,TRUE) -> 7.546514791e-07 | P23: =$L23-B$15 -> -4.99 | Q23: 1.562867109e-06 | R23: =$L23-B$16 -> -4.54 | S23: 1.334006649e-05 | T23: =$L23-B$17 -> -6.41 | U23: =_xlfn.NORM.S.DIST(T23, FALSE) -> 4.772462393e-10
L24: -4.8 | M24: =L24+5 -> 0.2 | N24: =_xlfn.NORM.S.DIST(L24,FALSE) -> 3.961299091e-06 | O24: =_xlfn.NORM.S.DIST(L24,TRUE) -> 7.93328152e-07 | P24: =$L24-B$15 -> -4.98 | Q24: 1.642750588e-06 | R24: =$L24-B$16 -> -4.53 | S24: 1.395896599e-05 | T24: =$L24-B$17 -> -6.4 | U24: =_xlfn.NORM.S.DIST(T24, FALSE) -> 5.088140282e-10
L25: -4.79 | M25: =L25+5 -> 0.21 | N25: =_xlfn.NORM.S.DIST(L25,FALSE) -> 4.155870965e-06 | O25: =_xlfn.NORM.S.DIST(L25,TRUE) -> 8.339065659e-07 | P25: =$L25-B$15 -> -4.97 | Q25: 1.726544522e-06 | R25: =$L25-B$16 -> -4.52 | S25: 1.460511814e-05 | T25: =$L25-B$17 -> -6.39 | U25: =_xlfn.NORM.S.DIST(T25, FALSE) -> 5.424156463e-10
L26: -4.78 | M26: =L26+5 -> 0.22 | N26: =_xlfn.NORM.S.DIST(L26,FALSE) -> 4.35956388e-06 | O26: =_xlfn.NORM.S.DIST(L26,TRUE) -> 8.764759729e-07 | P26: =$L26-B$15 -> -4.96 | Q26: 1.81443119e-06 | R26: =$L26-B$16 -> -4.51 | S26: 1.527965225e-05 | T26: =$L26-B$17 -> -6.38 | U26: =_xlfn.NORM.S.DIST(T26, FALSE) -> 5.781784643e-10
L27: -4.77 | M27: =L27+5 -> 0.23 | N27: =_xlfn.NORM.S.DIST(L27,FALSE) -> 4.572783154e-06 | O27: =_xlfn.NORM.S.DIST(L27,TRUE) -> 9.211295962e-07 | P27: =$L27-B$15 -> -4.95 | Q27: 1.906600903e-06 | R27: =$L27-B$16 -> -4.5 | S27: 1.598374111e-05 | T27: =$L27-B$17 -> -6.37 | U27: =_xlfn.NORM.S.DIST(T27, FALSE) -> 6.162375872e-10
L28: -4.76 | M28: =L28+5 -> 0.24 | N28: =_xlfn.NORM.S.DIST(L28,FALSE) -> 4.795951022e-06 | O28: =_xlfn.NORM.S.DIST(L28,TRUE) -> 9.67964796e-07 | P28: =$L28-B$15 -> -4.94 | Q28: 2.00325233e-06 | R28: =$L28-B$16 -> -4.49 | S28: 1.671860255e-05 | T28: =$L28-B$17 -> -6.36 | U28: =_xlfn.NORM.S.DIST(T28, FALSE) -> 6.567363096e-10
L29: -4.75 | M29: =L29+5 -> 0.25 | N29: =_xlfn.NORM.S.DIST(L29,FALSE) -> 5.029507289e-06 | O29: =_xlfn.NORM.S.DIST(L29,TRUE) -> 1.017083243e-06 | P29: =$L29-B$15 -> -4.93 | Q29: 2.104592843e-06 | R29: =$L29-B$16 -> -4.48 | S29: 1.748550103e-05 | T29: =$L29-B$17 -> -6.35 | U29: =_xlfn.NORM.S.DIST(T29, FALSE) -> 6.998265949e-10
L30: -4.74 | M30: =L30+5 -> 0.26 | N30: =_xlfn.NORM.S.DIST(L30,FALSE) -> 5.27391001e-06 | O30: =_xlfn.NORM.S.DIST(L30,TRUE) -> 1.068591095e-06 | P30: =$L30-B$15 -> -4.92 | Q30: 2.210838875e-06 | R30: =$L30-B$16 -> -4.47 | S30: 1.828574921e-05 | T30: =$L30-B$17 -> -6.34 | U30: =_xlfn.NORM.S.DIST(T30, FALSE) -> 7.456695822e-10
L31: -4.73 | M31: =L31+5 -> 0.27 | N31: =_xlfn.NORM.S.DIST(L31,FALSE) -> 5.529636189e-06 | O31: =_xlfn.NORM.S.DIST(L31,TRUE) -> 1.122599185e-06 | P31: =$L31-B$15 -> -4.91 | Q31: 2.322216285e-06 | R31: =$L31-B$16 -> -4.46 | S31: 1.912070969e-05 | T31: =$L31-B$17 -> -6.33 | U31: =_xlfn.NORM.S.DIST(T31, FALSE) -> 7.944361222e-10
L32: -4.72 | M32: =L32+5 -> 0.28 | N32: =_xlfn.NORM.S.DIST(L32,FALSE) -> 5.797182506e-06 | O32: =_xlfn.NORM.S.DIST(L32,TRUE) -> 1.179223217e-06 | P32: =$L32-B$15 -> -4.9 | Q32: 2.438960746e-06 | R32: =$L32-B$16 -> -4.45 | S32: 1.999179671e-05 | T32: =$L32-B$17 -> -6.32 | U32: =_xlfn.NORM.S.DIST(T32, FALSE) -> 8.463073426e-10
L33: -4.71 | M33: =L33+5 -> 0.29 | N33: =_xlfn.NORM.S.DIST(L33,FALSE) -> 6.077066067e-06 | O33: =_xlfn.NORM.S.DIST(L33,TRUE) -> 1.238583957e-06 | P33: =$L33-B$15 -> -4.89 | Q33: 2.561318141e-06 | R33: =$L33-B$16 -> -4.44 | S33: 2.09004779e-05 | T33: =$L33-B$17 -> -6.31 | U33: =_xlfn.NORM.S.DIST(T33, FALSE) -> 9.014752452e-10
L34: -4.7 | M34: =L34+5 -> 0.3 | N34: =_xlfn.NORM.S.DIST(L34,FALSE) -> 6.369825179e-06 | O34: =_xlfn.NORM.S.DIST(L34,TRUE) -> 1.300807454e-06 | P34: =$L34-B$15 -> -4.88 | Q34: 2.689544974e-06 | R34: =$L34-B$16 -> -4.43 | S34: 2.184827617e-05 | T34: =$L34-B$17 -> -6.3 | U34: =_xlfn.NORM.S.DIST(T34, FALSE) -> 9.60143337e-10
L35: -4.69 | M35: =L35+5 -> 0.31 | N35: =_xlfn.NORM.S.DIST(L35,FALSE) -> 6.676020155e-06 | O35: =_xlfn.NORM.S.DIST(L35,TRUE) -> 1.366025245e-06 | P35: =$L35-B$15 -> -4.87 | Q35: 2.823908801e-06 | R35: =$L35-B$16 -> -4.42 | S35: 2.283677157e-05 | T35: =$L35-B$17 -> -6.29 | U35: =_xlfn.NORM.S.DIST(T35, FALSE) -> 1.022527296e-09
L36: -4.68 | M36: =L36+5 -> 0.32 | N36: =_xlfn.NORM.S.DIST(L36,FALSE) -> 6.996234143e-06 | O36: =_xlfn.NORM.S.DIST(L36,TRUE) -> 1.434374584e-06 | P36: =$L36-B$15 -> -4.86 | Q36: 2.964688669e-06 | R36: =$L36-B$16 -> -4.41 | S36: 2.38676032e-05 | T36: =$L36-B$17 -> -6.28 | U36: =_xlfn.NORM.S.DIST(T36, FALSE) -> 1.088855673e-09
L37: -4.67 | M37: =L37+5 -> 0.33 | N37: =_xlfn.NORM.S.DIST(L37,FALSE) -> 7.331073989e-06 | O37: =_xlfn.NORM.S.DIST(L37,TRUE) -> 1.505998678e-06 | P37: =$L37-B$15 -> -4.85 | Q37: 3.112175579e-06 | R37: =$L37-B$16 -> -4.4 | S37: 2.494247129e-05 | T37: =$L37-B$17 -> -6.27 | U37: =_xlfn.NORM.S.DIST(T37, FALSE) -> 1.159370637e-09
L38: -4.66 | M38: =L38+5 -> 0.34 | N38: =_xlfn.NORM.S.DIST(L38,FALSE) -> 7.681171117e-06 | O38: =_xlfn.NORM.S.DIST(L38,TRUE) -> 1.581046919e-06 | P38: =$L38-B$15 -> -4.84 | Q38: 3.266672964e-06 | R38: =$L38-B$16 -> -4.39 | S38: 2.60631392e-05 | T38: =$L38-B$17 -> -6.26 | U38: =_xlfn.NORM.S.DIST(T38, FALSE) -> 1.234328755e-09
L39: -4.65 | M39: =L39+5 -> 0.35 | N39: =_xlfn.NORM.S.DIST(L39,FALSE) -> 8.047182456e-06 | O39: =_xlfn.NORM.S.DIST(L39,TRUE) -> 1.659675144e-06 | P39: =$L39-B$15 -> -4.83 | Q39: 3.428497178e-06 | R39: =$L39-B$16 -> -4.38 | S39: 2.723143555e-05 | T39: =$L39-B$17 -> -6.25 | U39: =_xlfn.NORM.S.DIST(T39, FALSE) -> 1.314001818e-09
L40: -4.64 | M40: =L40+5 -> 0.36 | N40: =_xlfn.NORM.S.DIST(L40,FALSE) -> 8.429791383e-06 | O40: =_xlfn.NORM.S.DIST(L40,TRUE) -> 1.74204589e-06 | P40: =$L40-B$15 -> -4.82 | Q40: 3.597978014e-06 | R40: =$L40-B$16 -> -4.37 | S40: 2.844925645e-05 | T40: =$L40-B$17 -> -6.24 | U40: =_xlfn.NORM.S.DIST(T40, FALSE) -> 1.398677719e-09
L41: -4.63 | M41: =L41+5 -> 0.37 | N41: =_xlfn.NORM.S.DIST(L41,FALSE) -> 8.829708704e-06 | O41: =_xlfn.NORM.S.DIST(L41,TRUE) -> 1.828328664e-06 | P41: =$L41-B$15 -> -4.81 | Q41: 3.775459227e-06 | R41: =$L41-B$16 -> -4.36 | S41: 2.971856768e-05 | T41: =$L41-B$17 -> -6.23 | U41: =_xlfn.NORM.S.DIST(T41, FALSE) -> 1.488661366e-09
L42: -4.62 | M42: =L42+5 -> 0.38 | N42: =_xlfn.NORM.S.DIST(L42,FALSE) -> 9.24767367e-06 | O42: =_xlfn.NORM.S.DIST(L42,TRUE) -> 1.91870022e-06 | P42: =$L42-B$15 -> -4.8 | Q42: 3.961299091e-06 | R42: =$L42-B$16 -> -4.35 | S42: 3.104140706e-05 | T42: =$L42-B$17 -> -6.22 | U42: =_xlfn.NORM.S.DIST(T42, FALSE) -> 1.584275656e-09
L43: -4.61 | M43: =L43+5 -> 0.39 | N43: =_xlfn.NORM.S.DIST(L43,FALSE) -> 9.68445502e-06 | O43: =_xlfn.NORM.S.DIST(L43,TRUE) -> 2.013344855e-06 | P43: =$L43-B$15 -> -4.79 | Q43: 4.155870965e-06 | R43: =$L43-B$16 -> -4.34 | S43: 3.24198868e-05 | T43: =$L43-B$17 -> -6.21 | U43: =_xlfn.NORM.S.DIST(T43, FALSE) -> 1.685862502e-09
L44: -4.6 | M44: =L44+5 -> 0.4 | N44: =_xlfn.NORM.S.DIST(L44,FALSE) -> 1.014085207e-05 | O44: =_xlfn.NORM.S.DIST(L44,TRUE) -> 2.112454703e-06 | P44: =$L44-B$15 -> -4.78 | Q44: 4.35956388e-06 | R44: =$L44-B$16 -> -4.33 | S44: 3.385619598e-05 | T44: =$L44-B$17 -> -6.2 | U44: =_xlfn.NORM.S.DIST(T44, FALSE) -> 1.793783908e-09
L45: -4.59 | M45: =L45+5 -> 0.41 | N45: =_xlfn.NORM.S.DIST(L45,FALSE) -> 1.061769581e-05 | O45: =_xlfn.NORM.S.DIST(L45,TRUE) -> 2.216230048e-06 | P45: =$L45-B$15 -> -4.77 | Q45: 4.572783154e-06 | R45: =$L45-B$16 -> -4.32 | S45: 3.5352603e-05 | T45: =$L45-B$17 -> -6.19 | U45: =_xlfn.NORM.S.DIST(T45, FALSE) -> 1.908423109e-09
L46: -4.58 | M46: =L46+5 -> 0.42 | N46: =_xlfn.NORM.S.DIST(L46,FALSE) -> 1.111585008e-05 | O46: =_xlfn.NORM.S.DIST(L46,TRUE) -> 2.32487965e-06 | P46: =$L46-B$15 -> -4.76 | Q46: 4.795951022e-06 | R46: =$L46-B$16 -> -4.31 | S46: 3.691145826e-05 | T46: =$L46-B$17 -> -6.18 | U46: =_xlfn.NORM.S.DIST(T46, FALSE) -> 2.030185775e-09
L47: -4.57 | M47: =L47+5 -> 0.43 | N47: =_xlfn.NORM.S.DIST(L47,FALSE) -> 1.163621276e-05 | O47: =_xlfn.NORM.S.DIST(L47,TRUE) -> 2.438621074e-06 | P47: =$L47-B$15 -> -4.75 | Q47: 5.029507289e-06 | R47: =$L47-B$16 -> -4.3 | S47: 3.853519674e-05 | T47: =$L47-B$17 -> -6.17 | U47: =_xlfn.NORM.S.DIST(T47, FALSE) -> 2.159501275e-09
L48: -4.56 | M48: =L48+5 -> 0.44 | N48: =_xlfn.NORM.S.DIST(L48,FALSE) -> 1.217971697e-05 | O48: =_xlfn.NORM.S.DIST(L48,TRUE) -> 2.557681039e-06 | P48: =$L48-B$15 -> -4.74 | Q48: 5.27391001e-06 | R48: =$L48-B$16 -> -4.29 | S48: 4.02263408e-05 | T48: =$L48-B$17 -> -6.16 | U48: =_xlfn.NORM.S.DIST(T48, FALSE) -> 2.296824011e-09
L49: -4.55 | M49: =L49+5 -> 0.45 | N49: =_xlfn.NORM.S.DIST(L49,FALSE) -> 1.274733238e-05 | O49: =_xlfn.NORM.S.DIST(L49,TRUE) -> 2.68229578e-06 | P49: =$L49-B$15 -> -4.73 | Q49: 5.529636189e-06 | R49: =$L49-B$16 -> -4.28 | S49: 4.198750293e-05 | T49: =$L49-B$17 -> -6.15 | U49: =_xlfn.NORM.S.DIST(T49, FALSE) -> 2.442634827e-09
L50: -4.54 | M50: =L50+5 -> 0.46 | N50: =_xlfn.NORM.S.DIST(L50,FALSE) -> 1.334006649e-05 | O50: =_xlfn.NORM.S.DIST(L50,TRUE) -> 2.812711412e-06 | P50: =$L50-B$15 -> -4.72 | Q50: 5.797182506e-06 | R50: =$L50-B$16 -> -4.27 | S50: 4.38213887e-05 | T50: =$L50-B$17 -> -6.14 | U50: =_xlfn.NORM.S.DIST(T50, FALSE) -> 2.597442491e-09
L51: -4.53 | M51: =L51+5 -> 0.47 | N51: =_xlfn.NORM.S.DIST(L51,FALSE) -> 1.395896599e-05 | O51: =_xlfn.NORM.S.DIST(L51,TRUE) -> 2.949184323e-06 | P51: =$L51-B$15 -> -4.71 | Q51: 6.077066067e-06 | R51: =$L51-B$16 -> -4.26 | S51: 4.573079969e-05 | T51: =$L51-B$17 -> -6.13 | U51: =_xlfn.NORM.S.DIST(T51, FALSE) -> 2.761785259e-09
L52: -4.52 | M52: =L52+5 -> 0.48 | N52: =_xlfn.NORM.S.DIST(L52,FALSE) -> 1.460511814e-05 | O52: =_xlfn.NORM.S.DIST(L52,TRUE) -> 3.091981569e-06 | P52: =$L52-B$15 -> -4.7 | Q52: 6.369825179e-06 | R52: =$L52-B$16 -> -4.25 | S52: 4.771863654e-05 | T52: =$L52-B$17 -> -6.12 | U52: =_xlfn.NORM.S.DIST(T52, FALSE) -> 2.93623252e-09
L53: -4.51 | M53: =L53+5 -> 0.49 | N53: =_xlfn.NORM.S.DIST(L53,FALSE) -> 1.527965225e-05 | O53: =_xlfn.NORM.S.DIST(L53,TRUE) -> 3.241381287e-06 | P53: =$L53-B$15 -> -4.69 | Q53: 6.676020155e-06 | R53: =$L53-B$16 -> -4.24 | S53: 4.97879021e-05 | T53: =$L53-B$17 -> -6.11 | U53: =_xlfn.NORM.S.DIST(T53, FALSE) -> 3.12138653e-09
L54: -4.5 | M54: =L54+5 -> 0.5 | N54: =_xlfn.NORM.S.DIST(L54,FALSE) -> 1.598374111e-05 | O54: =_xlfn.NORM.S.DIST(L54,TRUE) -> 3.397673125e-06 | P54: =$L54-B$15 -> -4.68 | Q54: 6.996234143e-06 | R54: =$L54-B$16 -> -4.23 | S54: 5.194170462e-05 | T54: =$L54-B$17 -> -6.1 | U54: =_xlfn.NORM.S.DIST(T54, FALSE) -> 3.317884244e-09
L55: -4.49 | M55: =L55+5 -> 0.51 | N55: =_xlfn.NORM.S.DIST(L55,FALSE) -> 1.671860255e-05 | O55: =_xlfn.NORM.S.DIST(L55,TRUE) -> 3.56115868e-06 | P55: =$L55-B$15 -> -4.67 | Q55: 7.331073989e-06 | R55: =$L55-B$16 -> -4.22 | S55: 5.418326109e-05 | T55: =$L55-B$17 -> -6.09 | U55: =_xlfn.NORM.S.DIST(T55, FALSE) -> 3.526399235e-09
L56: -4.48 | M56: =L56+5 -> 0.52 | N56: =_xlfn.NORM.S.DIST(L56,FALSE) -> 1.748550103e-05 | O56: =_xlfn.NORM.S.DIST(L56,TRUE) -> 3.732151961e-06 | P56: =$L56-B$15 -> -4.66 | Q56: 7.681171117e-06 | R56: =$L56-B$16 -> -4.21 | S56: 5.651590058e-05 | T56: =$L56-B$17 -> -6.08 | U56: =_xlfn.NORM.S.DIST(T56, FALSE) -> 3.74764373e-09
L57: -4.47 | M57: =L57+5 -> 0.53 | N57: =_xlfn.NORM.S.DIST(L57,FALSE) -> 1.828574921e-05 | O57: =_xlfn.NORM.S.DIST(L57,TRUE) -> 3.91097986e-06 | P57: =$L57-B$15 -> -4.65 | Q57: 8.047182456e-06 | R57: =$L57-B$16 -> -4.2 | S57: 5.894306776e-05 | T57: =$L57-B$17 -> -6.07 | U57: =_xlfn.NORM.S.DIST(T57, FALSE) -> 3.982370734e-09
L58: -4.46 | M58: =L58+5 -> 0.54 | N58: =_xlfn.NORM.S.DIST(L58,FALSE) -> 1.912070969e-05 | O58: =_xlfn.NORM.S.DIST(L58,TRUE) -> 4.097982647e-06 | P58: =$L58-B$15 -> -4.64 | Q58: 8.429791383e-06 | R58: =$L58-B$16 -> -4.19 | S58: 6.146832643e-05 | T58: =$L58-B$17 -> -6.06 | U58: =_xlfn.NORM.S.DIST(T58, FALSE) -> 4.231376288e-09
L59: -4.45 | M59: =L59+5 -> 0.55 | N59: =_xlfn.NORM.S.DIST(L59,FALSE) -> 1.999179671e-05 | O59: =_xlfn.NORM.S.DIST(L59,TRUE) -> 4.29351447e-06 | P59: =$L59-B$15 -> -4.63 | Q59: 8.829708704e-06 | R59: =$L59-B$16 -> -4.18 | S59: 6.409536323e-05 | T59: =$L59-B$17 -> -6.05 | U59: =_xlfn.NORM.S.DIST(T59, FALSE) -> 4.495501831e-09
L60: -4.44 | M60: =L60+5 -> 0.56 | N60: =_xlfn.NORM.S.DIST(L60,FALSE) -> 2.09004779e-05 | O60: =_xlfn.NORM.S.DIST(L60,TRUE) -> 4.497943889e-06 | P60: =$L60-B$15 -> -4.62 | Q60: 9.24767367e-06 | R60: =$L60-B$16 -> -4.17 | S60: 6.682799134e-05 | T60: =$L60-B$17 -> -6.04 | U60: =_xlfn.NORM.S.DIST(T60, FALSE) -> 4.775636692e-09
L61: -4.43 | M61: =L61+5 -> 0.57 | N61: =_xlfn.NORM.S.DIST(L61,FALSE) -> 2.184827617e-05 | O61: =_xlfn.NORM.S.DIST(L61,TRUE) -> 4.711654412e-06 | P61: =$L61-B$15 -> -4.61 | Q61: 9.68445502e-06 | R61: =$L61-B$16 -> -4.16 | S61: 6.967015437e-05 | T61: =$L61-B$17 -> -6.03 | U61: =_xlfn.NORM.S.DIST(T61, FALSE) -> 5.072720714e-09
L62: -4.42 | M62: =L62+5 -> 0.58 | N62: =_xlfn.NORM.S.DIST(L62,FALSE) -> 2.283677157e-05 | O62: =_xlfn.NORM.S.DIST(L62,TRUE) -> 4.935045063e-06 | P62: =$L62-B$15 -> -4.6 | Q62: 1.014085207e-05 | R62: =$L62-B$16 -> -4.15 | S62: 7.26259303e-05 | T62: =$L62-B$17 -> -6.02 | U62: =_xlfn.NORM.S.DIST(T62, FALSE) -> 5.387747013e-09
L63: -4.41 | M63: =L63+5 -> 0.59 | N63: =_xlfn.NORM.S.DIST(L63,FALSE) -> 2.38676032e-05 | O63: =_xlfn.NORM.S.DIST(L63,TRUE) -> 5.168530957e-06 | P63: =$L63-B$15 -> -4.59 | Q63: 1.061769581e-05 | R63: =$L63-B$16 -> -4.14 | S63: 7.569953553e-05 | T63: =$L63-B$17 -> -6.01 | U63: =_xlfn.NORM.S.DIST(T63, FALSE) -> 5.721764883e-09
L64: -4.4 | M64: =L64+5 -> 0.6 | N64: =_xlfn.NORM.S.DIST(L64,FALSE) -> 2.494247129e-05 | O64: =_xlfn.NORM.S.DIST(L64,TRUE) -> 5.412543908e-06 | P64: =$L64-B$15 -> -4.58 | Q64: 1.111585008e-05 | R64: =$L64-B$16 -> -4.13 | S64: 7.889532901e-05 | T64: =$L64-B$17 -> -6 | U64: =_xlfn.NORM.S.DIST(T64, FALSE) -> 6.07588285e-09
L65: -4.39 | M65: =L65+5 -> 0.61 | N65: =_xlfn.NORM.S.DIST(L65,FALSE) -> 2.60631392e-05 | O65: =_xlfn.NORM.S.DIST(L65,TRUE) -> 5.667533042e-06 | P65: =$L65-B$15 -> -4.57 | Q65: 1.163621276e-05 | R65: =$L65-B$16 -> -4.12 | S65: 8.221781654e-05 | T65: =$L65-B$17 -> -5.99 | U65: =_xlfn.NORM.S.DIST(T65, FALSE) -> 6.451271891e-09
L66: -4.38 | M66: =L66+5 -> 0.62 | N66: =_xlfn.NORM.S.DIST(L66,FALSE) -> 2.723143555e-05 | O66: =_xlfn.NORM.S.DIST(L66,TRUE) -> 5.933965446e-06 | P66: =$L66-B$15 -> -4.56 | Q66: 1.217971697e-05 | R66: =$L66-B$16 -> -4.11 | S66: 8.567165506e-05 | T66: =$L66-B$17 -> -5.98 | U66: =_xlfn.NORM.S.DIST(T66, FALSE) -> 6.849168813e-09
L67: -4.37 | M67: =L67+5 -> 0.63 | N67: =_xlfn.NORM.S.DIST(L67,FALSE) -> 2.844925645e-05 | O67: =_xlfn.NORM.S.DIST(L67,TRUE) -> 6.212326827e-06 | P67: =$L67-B$15 -> -4.55 | Q67: 1.274733238e-05 | R67: =$L67-B$16 -> -4.1 | S67: 8.926165718e-05 | T67: =$L67-B$17 -> -5.97 | U67: =_xlfn.NORM.S.DIST(T67, FALSE) -> 7.270879812e-09
L68: -4.36 | M68: =L68+5 -> 0.64 | N68: =_xlfn.NORM.S.DIST(L68,FALSE) -> 2.971856768e-05 | O68: =_xlfn.NORM.S.DIST(L68,TRUE) -> 6.503122201e-06 | P68: =$L68-B$15 -> -4.54 | Q68: 1.334006649e-05 | R68: =$L68-B$16 -> -4.09 | S68: 9.299279572e-05 | T68: =$L68-B$17 -> -5.96 | U68: =_xlfn.NORM.S.DIST(T68, FALSE) -> 7.717784213e-09
L69: -4.35 | M69: =L69+5 -> 0.65 | N69: =_xlfn.NORM.S.DIST(L69,FALSE) -> 3.104140706e-05 | O69: =_xlfn.NORM.S.DIST(L69,TRUE) -> 6.806876599e-06 | P69: =$L69-B$15 -> -4.53 | Q69: =_xlfn.NORM.S.DIST(P69, FALSE) -> 1.395896599e-05 | R69: =$L69-B$16 -> -4.08 | S69: 9.68702084e-05 | T69: =$L69-B$17 -> -5.95 | U69: =_xlfn.NORM.S.DIST(T69, FALSE) -> 8.191338403e-09
L70: =ROUND(L69+0.01,2) -> -4.34 | M70: =L70+5 -> 0.66 | N70: =_xlfn.NORM.S.DIST(L70,FALSE) -> 3.24198868e-05 | O70: =_xlfn.NORM.S.DIST(L70,TRUE) -> 7.124135801e-06 | P70: =$L70-B$15 -> -4.52 | Q70: 1.460511814e-05 | R70: =$L70-B$16 -> -4.07 | S70: 0.0001008992026 | T70: =$L70-B$17 -> -5.94 | U70: =_xlfn.NORM.S.DIST(T70, FALSE) -> 8.693079973e-09
L71: -4.33 | M71: =L71+5 -> 0.67 | N71: =_xlfn.NORM.S.DIST(L71,FALSE) -> 3.385619598e-05 | O71: =_xlfn.NORM.S.DIST(L71,TRUE) -> 7.455467091e-06 | P71: =$L71-B$15 -> -4.51 | Q71: 1.527965225e-05 | R71: =$L71-B$16 -> -4.06 | S71: 0.0001050852604 | T71: =$L71-B$17 -> -5.93 | U71: =_xlfn.NORM.S.DIST(T71, FALSE) -> 9.224632057e-09
L72: -4.32 | M72: =L72+5 -> 0.68 | N72: =_xlfn.NORM.S.DIST(L72,FALSE) -> 3.5352603e-05 | O72: =_xlfn.NORM.S.DIST(L72,TRUE) -> 7.801460038e-06 | P72: =$L72-B$15 -> -4.5 | Q72: 1.598374111e-05 | R72: =$L72-B$16 -> -4.05 | S72: 0.0001094340434 | T72: =$L72-B$17 -> -5.92 | U72: =_xlfn.NORM.S.DIST(T72, FALSE) -> 9.787707912e-09
L73: -4.31 | M73: =L73+5 -> 0.69 | N73: =_xlfn.NORM.S.DIST(L73,FALSE) -> 3.691145826e-05 | O73: =_xlfn.NORM.S.DIST(L73,TRUE) -> 8.162727303e-06 | P73: =$L73-B$15 -> -4.49 | Q73: 1.671860255e-05 | R73: =$L73-B$16 -> -4.04 | S73: 0.0001139513981 | T73: =$L73-B$17 -> -5.91 | U73: =_xlfn.NORM.S.DIST(T73, FALSE) -> 1.038411572e-08
L74: -4.3 | M74: =L74+5 -> 0.7 | N74: =_xlfn.NORM.S.DIST(L74,FALSE) -> 3.853519674e-05 | O74: =_xlfn.NORM.S.DIST(L74,TRUE) -> 8.539905471e-06 | P74: =$L74-B$15 -> -4.48 | Q74: 1.748550103e-05 | R74: =$L74-B$16 -> -4.03 | S74: 0.0001186433608 | T74: =$L74-B$17 -> -5.9 | U74: =_xlfn.NORM.S.DIST(T74, FALSE) -> 1.101576362e-08
L75: -4.29 | M75: =L75+5 -> 0.71 | N75: =_xlfn.NORM.S.DIST(L75,FALSE) -> 4.02263408e-05 | O75: =_xlfn.NORM.S.DIST(L75,TRUE) -> 8.933655913e-06 | P75: =$L75-B$15 -> -4.47 | Q75: 1.828574921e-05 | R75: =$L75-B$16 -> -4.02 | S75: 0.0001235161633 | T75: =$L75-B$17 -> -5.89 | U75: =_xlfn.NORM.S.DIST(T75, FALSE) -> 1.168466506e-08
L76: -4.28 | M76: =L76+5 -> 0.72 | N76: =_xlfn.NORM.S.DIST(L76,FALSE) -> 4.198750293e-05 | O76: =_xlfn.NORM.S.DIST(L76,TRUE) -> 9.34466567e-06 | P76: =$L76-B$15 -> -4.46 | Q76: 1.912070969e-05 | R76: =$L76-B$16 -> -4.01 | S76: 0.0001285762386 | T76: =$L76-B$17 -> -5.88 | U76: =_xlfn.NORM.S.DIST(T76, FALSE) -> 1.239294431e-08
L77: -4.27 | M77: =L77+5 -> 0.73 | N77: =_xlfn.NORM.S.DIST(L77,FALSE) -> 4.38213887e-05 | O77: =_xlfn.NORM.S.DIST(L77,TRUE) -> 9.773648373e-06 | P77: =$L77-B$15 -> -4.45 | Q77: 1.999179671e-05 | R77: =$L77-B$16 -> -4 | S77: 0.0001338302258 | T77: =$L77-B$17 -> -5.87 | U77: =_xlfn.NORM.S.DIST(T77, FALSE) -> 1.314284237e-08
L78: -4.26 | M78: =L78+5 -> 0.74 | N78: =_xlfn.NORM.S.DIST(L78,FALSE) -> 4.573079969e-05 | O78: =_xlfn.NORM.S.DIST(L78,TRUE) -> 1.022134518e-05 | P78: =$L78-B$15 -> -4.44 | Q78: 2.09004779e-05 | R78: =$L78-B$16 -> -3.99 | S78: 0.0001392849765 | T78: =$L78-B$17 -> -5.86 | U78: =_xlfn.NORM.S.DIST(T78, FALSE) -> 1.393672307e-08
L79: -4.25 | M79: =L79+5 -> 0.75 | N79: =_xlfn.NORM.S.DIST(L79,FALSE) -> 4.771863654e-05 | O79: =_xlfn.NORM.S.DIST(L79,TRUE) -> 1.068852577e-05 | P79: =$L79-B$15 -> -4.43 | Q79: 2.184827617e-05 | R79: =$L79-B$16 -> -3.98 | S79: 0.0001449475604 | T79: =$L79-B$17 -> -5.85 | U79: =_xlfn.NORM.S.DIST(T79, FALSE) -> 1.477707959e-08
L80: -4.24 | M80: =L80+5 -> 0.76 | N80: =_xlfn.NORM.S.DIST(L80,FALSE) -> 4.97879021e-05 | O80: =_xlfn.NORM.S.DIST(L80,TRUE) -> 1.117598933e-05 | P80: =$L80-B$15 -> -4.42 | Q80: 2.283677157e-05 | R80: =$L80-B$16 -> -3.97 | S80: 0.0001508252716 | T80: =$L80-B$17 -> -5.84 | U80: =_xlfn.NORM.S.DIST(T80, FALSE) -> 1.566654119e-08
L81: -4.23 | M81: =L81+5 -> 0.77 | N81: =_xlfn.NORM.S.DIST(L81,FALSE) -> 5.194170462e-05 | O81: =_xlfn.NORM.S.DIST(L81,TRUE) -> 1.168456559e-05 | P81: =$L81-B$15 -> -4.41 | Q81: 2.38676032e-05 | R81: =$L81-B$16 -> -3.96 | S81: 0.0001569256341 | T81: =$L81-B$17 -> -5.83 | U81: =_xlfn.NORM.S.DIST(T81, FALSE) -> 1.660788037e-08
L82: -4.22 | M82: =L82+5 -> 0.78 | N82: =_xlfn.NORM.S.DIST(L82,FALSE) -> 5.418326109e-05 | O82: =_xlfn.NORM.S.DIST(L82,TRUE) -> 1.221511593e-05 | P82: =$L82-B$15 -> -4.4 | Q82: 2.494247129e-05 | R82: =$L82-B$16 -> -3.95 | S82: 0.0001632564088 | T82: =$L82-B$17 -> -5.82 | U82: =_xlfn.NORM.S.DIST(T82, FALSE) -> 1.760402033e-08
L83: -4.21 | M83: =L83+5 -> 0.79 | N83: =_xlfn.NORM.S.DIST(L83,FALSE) -> 5.651590058e-05 | O83: =_xlfn.NORM.S.DIST(L83,TRUE) -> 1.276853441e-05 | P83: =$L83-B$15 -> -4.39 | Q83: 2.60631392e-05 | R83: =$L83-B$16 -> -3.94 | S83: 0.0001698255994 | T83: =$L83-B$17 -> -5.81 | U83: =_xlfn.NORM.S.DIST(T83, FALSE) -> 1.865804282e-08
L84: -4.2 | M84: =L84+5 -> 0.8 | N84: =_xlfn.NORM.S.DIST(L84,FALSE) -> 5.894306776e-05 | O84: =_xlfn.NORM.S.DIST(L84,TRUE) -> 1.334574902e-05 | P84: =$L84-B$15 -> -4.38 | Q84: 2.723143555e-05 | R84: =$L84-B$16 -> -3.93 | S84: 0.0001766414593 | T84: =$L84-B$17 -> -5.8 | U84: =_xlfn.NORM.S.DIST(T84, FALSE) -> 1.977319641e-08
L85: -4.19 | M85: =L85+5 -> 0.81 | N85: =_xlfn.NORM.S.DIST(L85,FALSE) -> 6.146832643e-05 | O85: =_xlfn.NORM.S.DIST(L85,TRUE) -> 1.394772273e-05 | P85: =$L85-B$15 -> -4.37 | Q85: 2.844925645e-05 | R85: =$L85-B$16 -> -3.92 | S85: 0.000183712498 | T85: =$L85-B$17 -> -5.79 | U85: =_xlfn.NORM.S.DIST(T85, FALSE) -> 2.095290507e-08
L86: -4.18 | M86: =L86+5 -> 0.82 | N86: =_xlfn.NORM.S.DIST(L86,FALSE) -> 6.409536323e-05 | O86: =_xlfn.NORM.S.DIST(L86,TRUE) -> 1.457545479e-05 | P86: =$L86-B$15 -> -4.36 | Q86: 2.971856768e-05 | R86: =$L86-B$16 -> -3.91 | S86: 0.0001910474879 | T86: =$L86-B$17 -> -5.78 | U86: =_xlfn.NORM.S.DIST(T86, FALSE) -> 2.220077734e-08
L87: -4.17 | M87: =L87+5 -> 0.83 | N87: =_xlfn.NORM.S.DIST(L87,FALSE) -> 6.682799134e-05 | O87: =_xlfn.NORM.S.DIST(L87,TRUE) -> 1.522998195e-05 | P87: =$L87-B$15 -> -4.35 | Q87: 3.104140706e-05 | R87: =$L87-B$16 -> -3.9 | S87: 0.0001986554714 | T87: =$L87-B$17 -> -5.77 | U87: =_xlfn.NORM.S.DIST(T87, FALSE) -> 2.352061578e-08
L88: -4.16 | M88: =L88+5 -> 0.84 | N88: =_xlfn.NORM.S.DIST(L88,FALSE) -> 6.967015437e-05 | O88: =_xlfn.NORM.S.DIST(L88,TRUE) -> 1.591237972e-05 | P88: =$L88-B$15 -> -4.34 | Q88: 3.24198868e-05 | R88: =$L88-B$16 -> -3.89 | S88: 0.000206545768 | T88: =$L88-B$17 -> -5.76 | U88: =_xlfn.NORM.S.DIST(T88, FALSE) -> 2.491642697e-08
L89: -4.15 | M89: =L89+5 -> 0.85 | N89: =_xlfn.NORM.S.DIST(L89,FALSE) -> 7.26259303e-05 | O89: =_xlfn.NORM.S.DIST(L89,TRUE) -> 1.662376373e-05 | P89: =$L89-B$15 -> -4.33 | Q89: 3.385619598e-05 | R89: =$L89-B$16 -> -3.88 | S89: 0.0002147279815 | T89: =$L89-B$17 -> -5.75 | U89: =_xlfn.NORM.S.DIST(T89, FALSE) -> 2.639243204e-08
L90: -4.14 | M90: =L90+5 -> 0.86 | N90: =_xlfn.NORM.S.DIST(L90,FALSE) -> 7.569953553e-05 | O90: =_xlfn.NORM.S.DIST(L90,TRUE) -> 1.736529107e-05 | P90: =$L90-B$15 -> -4.32 | Q90: 3.5352603e-05 | R90: =$L90-B$16 -> -3.87 | S90: 0.0002232120072 | T90: =$L90-B$17 -> -5.74 | U90: =_xlfn.NORM.S.DIST(T90, FALSE) -> 2.795307758e-08
L91: -4.13 | M91: =L91+5 -> 0.87 | N91: =_xlfn.NORM.S.DIST(L91,FALSE) -> 7.889532901e-05 | O91: =_xlfn.NORM.S.DIST(L91,TRUE) -> 1.813816172e-05 | P91: =$L91-B$15 -> -4.31 | Q91: 3.691145826e-05 | R91: =$L91-B$16 -> -3.86 | S91: 0.0002320080397 | T91: =$L91-B$17 -> -5.73 | U91: =_xlfn.NORM.S.DIST(T91, FALSE) -> 2.960304725e-08
L92: -4.12 | M92: =L92+5 -> 0.88 | N92: =_xlfn.NORM.S.DIST(L92,FALSE) -> 8.221781654e-05 | O92: =_xlfn.NORM.S.DIST(L92,TRUE) -> 1.894361995e-05 | P92: =$L92-B$15 -> -4.3 | Q92: 3.853519674e-05 | R92: =$L92-B$16 -> -3.85 | S92: 0.0002411265802 | T92: =$L92-B$17 -> -5.72 | U92: =_xlfn.NORM.S.DIST(T92, FALSE) -> 3.134727382e-08
L93: -4.11 | M93: =L93+5 -> 0.89 | N93: =_xlfn.NORM.S.DIST(L93,FALSE) -> 8.567165506e-05 | O93: =_xlfn.NORM.S.DIST(L93,TRUE) -> 1.978295587e-05 | P93: =$L93-B$15 -> -4.29 | Q93: 4.02263408e-05 | R93: =$L93-B$16 -> -3.84 | S93: 0.0002505784449 | T93: =$L93-B$17 -> -5.71 | U93: =_xlfn.NORM.S.DIST(T93, FALSE) -> 3.319095184e-08
L94: -4.1 | M94: =L94+5 -> 0.9 | N94: =_xlfn.NORM.S.DIST(L94,FALSE) -> 8.926165718e-05 | O94: =_xlfn.NORM.S.DIST(L94,TRUE) -> 2.065750691e-05 | P94: =$L94-B$15 -> -4.28 | Q94: 4.198750293e-05 | R94: =$L94-B$16 -> -3.83 | S94: 0.0002603747722 | T94: =$L94-B$17 -> -5.7 | U94: =_xlfn.NORM.S.DIST(T94, FALSE) -> 3.513955095e-08
L95: -4.09 | M95: =L95+5 -> 0.91 | N95: =_xlfn.NORM.S.DIST(L95,FALSE) -> 9.299279572e-05 | O95: =_xlfn.NORM.S.DIST(L95,TRUE) -> 2.156865945e-05 | P95: =$L95-B$15 -> -4.27 | Q95: 4.38213887e-05 | R95: =$L95-B$16 -> -3.82 | S95: 0.0002705270315 | T95: =$L95-B$17 -> -5.69 | U95: =_xlfn.NORM.S.DIST(T95, FALSE) -> 3.71988298e-08
L96: -4.08 | M96: =L96+5 -> 0.92 | N96: =_xlfn.NORM.S.DIST(L96,FALSE) -> 9.68702084e-05 | O96: =_xlfn.NORM.S.DIST(L96,TRUE) -> 2.251785039e-05 | P96: =$L96-B$15 -> -4.26 | Q96: 4.573079969e-05 | R96: =$L96-B$16 -> -3.81 | S96: 0.0002810470308 | T96: =$L96-B$17 -> -5.68 | U96: =_xlfn.NORM.S.DIST(T96, FALSE) -> 3.937485063e-08
L97: -4.07 | M97: =L97+5 -> 0.93 | N97: =_xlfn.NORM.S.DIST(L97,FALSE) -> 0.0001008992026 | O97: =_xlfn.NORM.S.DIST(L97,TRUE) -> 2.350656887e-05 | P97: =$L97-B$15 -> -4.25 | Q97: 4.771863654e-05 | R97: =$L97-B$16 -> -3.8 | S97: 0.0002919469258 | T97: =$L97-B$17 -> -5.67 | U97: =_xlfn.NORM.S.DIST(T97, FALSE) -> 4.167399461e-08
L98: -4.06 | M98: =L98+5 -> 0.94 | N98: =_xlfn.NORM.S.DIST(L98,FALSE) -> 0.0001050852604 | O98: =_xlfn.NORM.S.DIST(L98,TRUE) -> 2.453635797e-05 | P98: =$L98-B$15 -> -4.24 | Q98: 4.97879021e-05 | R98: =$L98-B$16 -> -3.79 | S98: 0.0003032392278 | T98: =$L98-B$17 -> -5.66 | U98: =_xlfn.NORM.S.DIST(T98, FALSE) -> 4.410297779e-08
L99: -4.05 | M99: =L99+5 -> 0.95 | N99: =_xlfn.NORM.S.DIST(L99,FALSE) -> 0.0001094340434 | O99: =_xlfn.NORM.S.DIST(L99,TRUE) -> 2.560881647e-05 | P99: =$L99-B$15 -> -4.23 | Q99: 5.194170462e-05 | R99: =$L99-B$16 -> -3.78 | S99: 0.0003149368129 | T99: =$L99-B$17 -> -5.65 | U99: =_xlfn.NORM.S.DIST(T99, FALSE) -> 4.666886798e-08
L100: -4.04 | M100: =L100+5 -> 0.96 | N100: =_xlfn.NORM.S.DIST(L100,FALSE) -> 0.0001139513981 | O100: =_xlfn.NORM.S.DIST(L100,TRUE) -> 2.672560072e-05 | P100: =$L100-B$15 -> -4.22 | Q100: 5.418326109e-05 | R100: =$L100-B$16 -> -3.77 | S100: 0.0003270529305 | T100: =$L100-B$17 -> -5.64 | U100: =_xlfn.NORM.S.DIST(T100, FALSE) -> 4.937910227e-08
L101: -4.03 | M101: =L101+5 -> 0.97 | N101: =_xlfn.NORM.S.DIST(L101,FALSE) -> 0.0001186433608 | O101: =_xlfn.NORM.S.DIST(L101,TRUE) -> 2.788842644e-05 | P101: =$L101-B$15 -> -4.21 | Q101: 5.651590058e-05 | R101: =$L101-B$16 -> -3.76 | S101: 0.0003396012125 | T101: =$L101-B$17 -> -5.63 | U101: =_xlfn.NORM.S.DIST(T101, FALSE) -> 5.224150551e-08
L102: -4.02 | M102: =L102+5 -> 0.98 | N102: =_xlfn.NORM.S.DIST(L102,FALSE) -> 0.0001235161633 | O102: =_xlfn.NORM.S.DIST(L102,TRUE) -> 2.909907071e-05 | P102: =$L102-B$15 -> -4.2 | Q102: 5.894306776e-05 | R102: =$L102-B$16 -> -3.75 | S102: 0.0003525956824 | T102: =$L102-B$17 -> -5.62 | U102: =_xlfn.NORM.S.DIST(T102, FALSE) -> 5.526430958e-08
L103: -4.01 | M103: =L103+5 -> 0.99 | N103: =_xlfn.NORM.S.DIST(L103,FALSE) -> 0.0001285762386 | O103: =_xlfn.NORM.S.DIST(L103,TRUE) -> 3.035937393e-05 | P103: =$L103-B$15 -> -4.19 | Q103: 6.146832643e-05 | R103: =$L103-B$16 -> -3.74 | S103: 0.0003660507646 | T103: =$L103-B$17 -> -5.61 | U103: =_xlfn.NORM.S.DIST(T103, FALSE) -> 5.845617357e-08
L104: -4 | M104: =L104+5 -> 1 | N104: =_xlfn.NORM.S.DIST(L104,FALSE) -> 0.0001338302258 | O104: =_xlfn.NORM.S.DIST(L104,TRUE) -> 3.167124183e-05 | P104: =$L104-B$15 -> -4.18 | Q104: 6.409536323e-05 | R104: =$L104-B$16 -> -3.73 | S104: 0.0003799812938 | T104: =$L104-B$17 -> -5.6 | U104: =_xlfn.NORM.S.DIST(T104, FALSE) -> 6.1826205e-08
L105: -3.99 | M105: =L105+5 -> 1.01 | N105: =_xlfn.NORM.S.DIST(L105,FALSE) -> 0.0001392849765 | O105: =_xlfn.NORM.S.DIST(L105,TRUE) -> 3.303664763e-05 | P105: =$L105-B$15 -> -4.17 | Q105: 6.682799134e-05 | R105: =$L105-B$16 -> -3.72 | S105: 0.000394402525 | T105: =$L105-B$17 -> -5.59 | U105: =_xlfn.NORM.S.DIST(T105, FALSE) -> 6.538398192e-08
L106: -3.98 | M106: =L106+5 -> 1.02 | N106: =_xlfn.NORM.S.DIST(L106,FALSE) -> 0.0001449475604 | O106: =_xlfn.NORM.S.DIST(L106,TRUE) -> 3.445763412e-05 | P106: =$L106-B$15 -> -4.16 | Q106: 6.967015437e-05 | R106: =$L106-B$16 -> -3.71 | S106: 0.0004093301425 | T106: =$L106-B$17 -> -5.58 | U106: =_xlfn.NORM.S.DIST(T106, FALSE) -> 6.913957612e-08
L107: -3.97 | M107: =L107+5 -> 1.03 | N107: =_xlfn.NORM.S.DIST(L107,FALSE) -> 0.0001508252716 | O107: =_xlfn.NORM.S.DIST(L107,TRUE) -> 3.59363159e-05 | P107: =$L107-B$15 -> -4.15 | Q107: 7.26259303e-05 | R107: =$L107-B$16 -> -3.7 | S107: 0.0004247802706 | T107: =$L107-B$17 -> -5.57 | U107: =_xlfn.NORM.S.DIST(T107, FALSE) -> 7.310357738e-08
L108: -3.96 | M108: =L108+5 -> 1.04 | N108: =_xlfn.NORM.S.DIST(L108,FALSE) -> 0.0001569256341 | O108: =_xlfn.NORM.S.DIST(L108,TRUE) -> 3.747488169e-05 | P108: =$L108-B$15 -> -4.14 | Q108: 7.569953553e-05 | R108: =$L108-B$16 -> -3.69 | S108: 0.0004407694831 | T108: =$L108-B$17 -> -5.56 | U108: =_xlfn.NORM.S.DIST(T108, FALSE) -> 7.728711889e-08
L109: -3.95 | M109: =L109+5 -> 1.05 | N109: =_xlfn.NORM.S.DIST(L109,FALSE) -> 0.0001632564088 | O109: =_xlfn.NORM.S.DIST(L109,TRUE) -> 3.90755966e-05 | P109: =$L109-B$15 -> -4.13 | Q109: 7.889532901e-05 | R109: =$L109-B$16 -> -3.68 | S109: 0.0004573148141 | T109: =$L109-B$17 -> -5.55 | U109: =_xlfn.NORM.S.DIST(T109, FALSE) -> 8.170190379e-08
L110: -3.94 | M110: =L110+5 -> 1.06 | N110: =_xlfn.NORM.S.DIST(L110,FALSE) -> 0.0001698255994 | O110: =_xlfn.NORM.S.DIST(L110,TRUE) -> 4.074080456e-05 | P110: =$L110-B$15 -> -4.12 | Q110: 8.221781654e-05 | R110: =$L110-B$16 -> -3.67 | S110: 0.0004744337676 | T110: =$L110-B$17 -> -5.54 | U110: =_xlfn.NORM.S.DIST(T110, FALSE) -> 8.636023301e-08
L111: -3.93 | M111: =L111+5 -> 1.07 | N111: =_xlfn.NORM.S.DIST(L111,FALSE) -> 0.0001766414593 | O111: =_xlfn.NORM.S.DIST(L111,TRUE) -> 4.247293079e-05 | P111: =$L111-B$15 -> -4.11 | Q111: 8.567165506e-05 | R111: =$L111-B$16 -> -3.66 | S111: 0.0004921443288 | T111: =$L111-B$17 -> -5.53 | U111: =_xlfn.NORM.S.DIST(T111, FALSE) -> 9.127503434e-08
L112: -3.92 | M112: =L112+5 -> 1.08 | N112: =_xlfn.NORM.S.DIST(L112,FALSE) -> 0.000183712498 | O112: =_xlfn.NORM.S.DIST(L112,TRUE) -> 4.427448431e-05 | P112: =$L112-B$15 -> -4.1 | Q112: 8.926165718e-05 | R112: =$L112-B$16 -> -3.65 | S112: 0.0005104649743 | T112: =$L112-B$17 -> -5.52 | U112: =_xlfn.NORM.S.DIST(T112, FALSE) -> 9.645989284e-08
L113: -3.91 | M113: =L113+5 -> 1.09 | N113: =_xlfn.NORM.S.DIST(L113,FALSE) -> 0.0001910474879 | O113: =_xlfn.NORM.S.DIST(L113,TRUE) -> 4.614806056e-05 | P113: =$L113-B$15 -> -4.09 | Q113: 9.299279572e-05 | R113: =$L113-B$16 -> -3.64 | S113: 0.0005294146831 | T113: =$L113-B$17 -> -5.51 | U113: =_xlfn.NORM.S.DIST(T113, FALSE) -> 1.019290827e-07
L114: -3.9 | M114: =L114+5 -> 1.1 | N114: =_xlfn.NORM.S.DIST(L114,FALSE) -> 0.0001986554714 | O114: =_xlfn.NORM.S.DIST(L114,TRUE) -> 4.809634402e-05 | P114: =$L114-B$15 -> -4.08 | Q114: 9.68702084e-05 | R114: =$L114-B$16 -> -3.63 | S114: 0.0005490129474 | T114: =$L114-B$17 -> -5.5 | U114: =_xlfn.NORM.S.DIST(T114, FALSE) -> 1.076976004e-07
L115: -3.89 | M115: =L115+5 -> 1.11 | N115: =_xlfn.NORM.S.DIST(L115,FALSE) -> 0.000206545768 | O115: =_xlfn.NORM.S.DIST(L115,TRUE) -> 5.0122111e-05 | P115: =$L115-B$15 -> -4.07 | Q115: 0.0001008992026 | R115: =$L115-B$16 -> -3.62 | S115: 0.0005692797838 | T115: =$L115-B$17 -> -5.49 | U115: =_xlfn.NORM.S.DIST(T115, FALSE) -> 1.137811998e-07
L116: -3.88 | M116: =L116+5 -> 1.12 | N116: =_xlfn.NORM.S.DIST(L116,FALSE) -> 0.0002147279815 | O116: =_xlfn.NORM.S.DIST(L116,TRUE) -> 5.22282324e-05 | P116: =$L116-B$15 -> -4.06 | Q116: 0.0001050852604 | R116: =$L116-B$16 -> -3.61 | S116: 0.0005902357449 | T116: =$L116-B$17 -> -5.48 | U116: =_xlfn.NORM.S.DIST(T116, FALSE) -> 1.201964279e-07
L117: -3.87 | M117: =L117+5 -> 1.13 | N117: =_xlfn.NORM.S.DIST(L117,FALSE) -> 0.0002232120072 | O117: =_xlfn.NORM.S.DIST(L117,TRUE) -> 5.441767663e-05 | P117: =$L117-B$15 -> -4.05 | Q117: 0.0001094340434 | R117: =$L117-B$16 -> -3.6 | S117: 0.0006119019301 | T117: =$L117-B$17 -> -5.47 | U117: =_xlfn.NORM.S.DIST(T117, FALSE) -> 1.269606637e-07
L118: -3.86 | M118: =L118+5 -> 1.14 | N118: =_xlfn.NORM.S.DIST(L118,FALSE) -> 0.0002320080397 | O118: =_xlfn.NORM.S.DIST(L118,TRUE) -> 5.669351253e-05 | P118: =$L118-B$15 -> -4.04 | Q118: 0.0001139513981 | R118: =$L118-B$16 -> -3.59 | S118: 0.0006342999975 | T118: =$L118-B$17 -> -5.46 | U118: =_xlfn.NORM.S.DIST(T118, FALSE) -> 1.340921572e-07
L119: -3.85 | M119: =L119+5 -> 1.15 | N119: =_xlfn.NORM.S.DIST(L119,FALSE) -> 0.0002411265802 | O119: =_xlfn.NORM.S.DIST(L119,TRUE) -> 5.905891242e-05 | P119: =$L119-B$15 -> -4.03 | Q119: 0.0001186433608 | R119: =$L119-B$16 -> -3.58 | S119: 0.0006574521757 | T119: =$L119-B$17 -> -5.45 | U119: =_xlfn.NORM.S.DIST(T119, FALSE) -> 1.416100713e-07
L120: -3.84 | M120: =L120+5 -> 1.16 | N120: =_xlfn.NORM.S.DIST(L120,FALSE) -> 0.0002505784449 | O120: =_xlfn.NORM.S.DIST(L120,TRUE) -> 6.151715518e-05 | P120: =$L120-B$15 -> -4.02 | Q120: 0.0001235161633 | R120: =$L120-B$16 -> -3.57 | S120: 0.0006813812751 | T120: =$L120-B$17 -> -5.44 | U120: =_xlfn.NORM.S.DIST(T120, FALSE) -> 1.495345252e-07
L121: -3.83 | M121: =L121+5 -> 1.17 | N121: =_xlfn.NORM.S.DIST(L121,FALSE) -> 0.0002603747722 | O121: =_xlfn.NORM.S.DIST(L121,TRUE) -> 6.407162949e-05 | P121: =$L121-B$15 -> -4.01 | Q121: 0.0001285762386 | R121: =$L121-B$16 -> -3.56 | S121: 0.0007061107005 | T121: =$L121-B$17 -> -5.43 | U121: =_xlfn.NORM.S.DIST(T121, FALSE) -> 1.578866395e-07
L122: -3.82 | M122: =L122+5 -> 1.18 | N122: =_xlfn.NORM.S.DIST(L122,FALSE) -> 0.0002705270315 | O122: =_xlfn.NORM.S.DIST(L122,TRUE) -> 6.672583703e-05 | P122: =$L122-B$15 -> -4 | Q122: 0.0001338302258 | R122: =$L122-B$16 -> -3.55 | S122: 0.0007316644628 | T122: =$L122-B$17 -> -5.42 | U122: =_xlfn.NORM.S.DIST(T122, FALSE) -> 1.666885838e-07
L123: -3.81 | M123: =L123+5 -> 1.19 | N123: =_xlfn.NORM.S.DIST(L123,FALSE) -> 0.0002810470308 | O123: =_xlfn.NORM.S.DIST(L123,TRUE) -> 6.948339588e-05 | P123: =$L123-B$15 -> -3.99 | Q123: 0.0001392849765 | R123: =$L123-B$16 -> -3.54 | S123: 0.0007580671914 | T123: =$L123-B$17 -> -5.41 | U123: =_xlfn.NORM.S.DIST(T123, FALSE) -> 1.759636261e-07
L124: -3.8 | M124: =L124+5 -> 1.2 | N124: =_xlfn.NORM.S.DIST(L124,FALSE) -> 0.0002919469258 | O124: =_xlfn.NORM.S.DIST(L124,TRUE) -> 7.234804393e-05 | P124: =$L124-B$15 -> -3.98 | Q124: 0.0001449475604 | R124: =$L124-B$16 -> -3.53 | S124: 0.0007853441464 | T124: =$L124-B$17 -> -5.4 | U124: =_xlfn.NORM.S.DIST(T124, FALSE) -> 1.857361845e-07
L125: -3.79 | M125: =L125+5 -> 1.21 | N125: =_xlfn.NORM.S.DIST(L125,FALSE) -> 0.0003032392278 | O125: =_xlfn.NORM.S.DIST(L125,TRUE) -> 7.532364238e-05 | P125: =$L125-B$15 -> -3.97 | Q125: 0.0001508252716 | R125: =$L125-B$16 -> -3.52 | S125: 0.0008135212311 | T125: =$L125-B$17 -> -5.39 | U125: =_xlfn.NORM.S.DIST(T125, FALSE) -> 1.960318809e-07
L126: -3.78 | M126: =L126+5 -> 1.22 | N126: =_xlfn.NORM.S.DIST(L126,FALSE) -> 0.0003149368129 | O126: =_xlfn.NORM.S.DIST(L126,TRUE) -> 7.841417938e-05 | P126: =$L126-B$15 -> -3.96 | Q126: 0.0001569256341 | R126: =$L126-B$16 -> -3.51 | S126: 0.0008426250047 | T126: =$L126-B$17 -> -5.38 | U126: =_xlfn.NORM.S.DIST(T126, FALSE) -> 2.068775979e-07
L127: -3.77 | M127: =L127+5 -> 1.23 | N127: =_xlfn.NORM.S.DIST(L127,FALSE) -> 0.0003270529305 | O127: =_xlfn.NORM.S.DIST(L127,TRUE) -> 8.16237737e-05 | P127: =$L127-B$15 -> -3.95 | Q127: 0.0001632564088 | R127: =$L127-B$16 -> -3.5 | S127: 0.000872682695 | T127: =$L127-B$17 -> -5.37 | U127: =_xlfn.NORM.S.DIST(T127, FALSE) -> 2.183015369e-07
L128: -3.76 | M128: =L128+5 -> 1.24 | N128: =_xlfn.NORM.S.DIST(L128,FALSE) -> 0.0003396012125 | O128: =_xlfn.NORM.S.DIST(L128,TRUE) -> 8.49566785e-05 | P128: =$L128-B$15 -> -3.94 | Q128: 0.0001698255994 | R128: =$L128-B$16 -> -3.49 | S128: 0.0009037222113 | T128: =$L128-B$17 -> -5.36 | U128: =_xlfn.NORM.S.DIST(T128, FALSE) -> 2.3033328e-07
L129: -3.75 | M129: =L129+5 -> 1.25 | N129: =_xlfn.NORM.S.DIST(L129,FALSE) -> 0.0003525956824 | O129: =_xlfn.NORM.S.DIST(L129,TRUE) -> 8.84172852e-05 | P129: =$L129-B$15 -> -3.93 | Q129: 0.0001766414593 | R129: =$L129-B$16 -> -3.48 | S129: 0.0009357721569 | T129: =$L129-B$17 -> -5.35 | U129: =_xlfn.NORM.S.DIST(T129, FALSE) -> 2.430038541e-07
L130: -3.74 | M130: =L130+5 -> 1.26 | N130: =_xlfn.NORM.S.DIST(L130,FALSE) -> 0.0003660507646 | O130: =_xlfn.NORM.S.DIST(L130,TRUE) -> 9.201012747e-05 | P130: =$L130-B$15 -> -3.92 | Q130: 0.000183712498 | R130: =$L130-B$16 -> -3.47 | S130: 0.0009688618429 | T130: =$L130-B$17 -> -5.34 | U130: =_xlfn.NORM.S.DIST(T130, FALSE) -> 2.563457973e-07
L131: -3.73 | M131: =L131+5 -> 1.27 | N131: =_xlfn.NORM.S.DIST(L131,FALSE) -> 0.0003799812938 | O131: =_xlfn.NORM.S.DIST(L131,TRUE) -> 9.573988527e-05 | P131: =$L131-B$15 -> -3.91 | Q131: 0.0001910474879 | R131: =$L131-B$16 -> -3.46 | S131: 0.001003021301 | T131: =$L131-B$17 -> -5.33 | U131: =_xlfn.NORM.S.DIST(T131, FALSE) -> 2.703932292e-07
L132: -3.72 | M132: =L132+5 -> 1.28 | N132: =_xlfn.NORM.S.DIST(L132,FALSE) -> 0.000394402525 | O132: =_xlfn.NORM.S.DIST(L132,TRUE) -> 9.961138898e-05 | P132: =$L132-B$15 -> -3.9 | Q132: 0.0001986554714 | R132: =$L132-B$16 -> -3.45 | S132: 0.001038281296 | T132: =$L132-B$17 -> -5.32 | U132: =_xlfn.NORM.S.DIST(T132, FALSE) -> 2.851819232e-07
L133: -3.71 | M133: =L133+5 -> 1.29 | N133: =_xlfn.NORM.S.DIST(L133,FALSE) -> 0.0004093301425 | O133: =_xlfn.NORM.S.DIST(L133,TRUE) -> 0.0001036296237 | P133: =$L133-B$15 -> -3.89 | Q133: =_xlfn.NORM.S.DIST(P133, FALSE) -> 0.000206545768 | R133: =$L133-B$16 -> -3.44 | S133: 0.00107467334 | T133: =$L133-B$17 -> -5.31 | U133: =_xlfn.NORM.S.DIST(T133, FALSE) -> 3.007493831e-07
L134: =ROUND(L133+0.01,2) -> -3.7 | M134: =L134+5 -> 1.3 | N134: =_xlfn.NORM.S.DIST(L134,FALSE) -> 0.0004247802706 | O134: =_xlfn.NORM.S.DIST(L134,TRUE) -> 0.0001077997335 | P134: =$L134-B$15 -> -3.88 | Q134: 0.0002147279815 | R134: =$L134-B$16 -> -3.43 | S134: 0.001112229707 | T134: =$L134-B$17 -> -5.3 | U134: =_xlfn.NORM.S.DIST(T134, FALSE) -> 3.171349217e-07
L135: -3.69 | M135: =L135+5 -> 1.31 | N135: =_xlfn.NORM.S.DIST(L135,FALSE) -> 0.0004407694831 | O135: =_xlfn.NORM.S.DIST(L135,TRUE) -> 0.000112127026 | P135: =$L135-B$15 -> -3.87 | Q135: 0.0002232120072 | R135: =$L135-B$16 -> -3.42 | S135: 0.001150983444 | T135: =$L135-B$17 -> -5.29 | U135: =_xlfn.NORM.S.DIST(T135, FALSE) -> 3.343797435e-07
L136: -3.68 | M136: =L136+5 -> 1.32 | N136: =_xlfn.NORM.S.DIST(L136,FALSE) -> 0.0004573148141 | O136: =_xlfn.NORM.S.DIST(L136,TRUE) -> 0.0001166169768 | P136: =$L136-B$15 -> -3.86 | Q136: 0.0002320080397 | R136: =$L136-B$16 -> -3.41 | S136: 0.001190968386 | T136: =$L136-B$17 -> -5.28 | U136: =_xlfn.NORM.S.DIST(T136, FALSE) -> 3.525270313e-07
L137: -3.67 | M137: =L137+5 -> 1.33 | N137: =_xlfn.NORM.S.DIST(L137,FALSE) -> 0.0004744337676 | O137: =_xlfn.NORM.S.DIST(L137,TRUE) -> 0.0001212752343 | P137: =$L137-B$15 -> -3.85 | Q137: 0.0002411265802 | R137: =$L137-B$16 -> -3.4 | S137: 0.001232219168 | T137: =$L137-B$17 -> -5.27 | U137: =_xlfn.NORM.S.DIST(T137, FALSE) -> 3.716220353e-07
L138: -3.66 | M138: =L138+5 -> 1.34 | N138: =_xlfn.NORM.S.DIST(L138,FALSE) -> 0.0004921443288 | O138: =_xlfn.NORM.S.DIST(L138,TRUE) -> 0.0001261076241 | P138: =$L138-B$15 -> -3.84 | Q138: 0.0002505784449 | R138: =$L138-B$16 -> -3.39 | S138: 0.001274771244 | T138: =$L138-B$17 -> -5.26 | U138: =_xlfn.NORM.S.DIST(T138, FALSE) -> 3.917121676e-07
L139: -3.65 | M139: =L139+5 -> 1.35 | N139: =_xlfn.NORM.S.DIST(L139,FALSE) -> 0.0005104649743 | O139: =_xlfn.NORM.S.DIST(L139,TRUE) -> 0.0001311201544 | P139: =$L139-B$15 -> -3.83 | Q139: 0.0002603747722 | R139: =$L139-B$16 -> -3.38 | S139: 0.001318660892 | T139: =$L139-B$17 -> -5.25 | U139: =_xlfn.NORM.S.DIST(T139, FALSE) -> 4.128470989e-07
L140: -3.64 | M140: =L140+5 -> 1.36 | N140: =_xlfn.NORM.S.DIST(L140,FALSE) -> 0.0005294146831 | O140: =_xlfn.NORM.S.DIST(L140,TRUE) -> 0.0001363190204 | P140: =$L140-B$15 -> -3.82 | Q140: 0.0002705270315 | R140: =$L140-B$16 -> -3.37 | S140: 0.001363925236 | T140: =$L140-B$17 -> -5.24 | U140: =_xlfn.NORM.S.DIST(T140, FALSE) -> 4.350788608e-07
L141: -3.63 | M141: =L141+5 -> 1.37 | N141: =_xlfn.NORM.S.DIST(L141,FALSE) -> 0.0005490129474 | O141: =_xlfn.NORM.S.DIST(L141,TRUE) -> 0.0001417106099 | P141: =$L141-B$15 -> -3.81 | Q141: 0.0002810470308 | R141: =$L141-B$16 -> -3.36 | S141: 0.001410602257 | T141: =$L141-B$17 -> -5.23 | U141: =_xlfn.NORM.S.DIST(T141, FALSE) -> 4.584619516e-07
L142: -3.62 | M142: =L142+5 -> 1.38 | N142: =_xlfn.NORM.S.DIST(L142,FALSE) -> 0.0005692797838 | O142: =_xlfn.NORM.S.DIST(L142,TRUE) -> 0.0001473015079 | P142: =$L142-B$15 -> -3.8 | Q142: 0.0002919469258 | R142: =$L142-B$16 -> -3.35 | S142: 0.001458730805 | T142: =$L142-B$17 -> -5.22 | U142: =_xlfn.NORM.S.DIST(T142, FALSE) -> 4.830534469e-07
L143: -3.61 | M143: =L143+5 -> 1.39 | N143: =_xlfn.NORM.S.DIST(L143,FALSE) -> 0.0005902357449 | O143: =_xlfn.NORM.S.DIST(L143,TRUE) -> 0.0001530985026 | P143: =$L143-B$15 -> -3.79 | Q143: 0.0003032392278 | R143: =$L143-B$16 -> -3.34 | S143: 0.001508350615 | T143: =$L143-B$17 -> -5.21 | U143: =_xlfn.NORM.S.DIST(T143, FALSE) -> 5.089131146e-07
L144: -3.6 | M144: =L144+5 -> 1.4 | N144: =_xlfn.NORM.S.DIST(L144,FALSE) -> 0.0006119019301 | O144: =_xlfn.NORM.S.DIST(L144,TRUE) -> 0.0001591085902 | P144: =$L144-B$15 -> -3.78 | Q144: 0.0003149368129 | R144: =$L144-B$16 -> -3.33 | S144: 0.001559502322 | T144: =$L144-B$17 -> -5.2 | U144: =_xlfn.NORM.S.DIST(T144, FALSE) -> 5.361035345e-07
L145: -3.59 | M145: =L145+5 -> 1.41 | N145: =_xlfn.NORM.S.DIST(L145,FALSE) -> 0.0006342999975 | O145: =_xlfn.NORM.S.DIST(L145,TRUE) -> 0.0001653389807 | P145: =$L145-B$15 -> -3.77 | Q145: 0.0003270529305 | R145: =$L145-B$16 -> -3.32 | S145: 0.001612227472 | T145: =$L145-B$17 -> -5.19 | U145: =_xlfn.NORM.S.DIST(T145, FALSE) -> 5.646902235e-07
L146: -3.58 | M146: =L146+5 -> 1.42 | N146: =_xlfn.NORM.S.DIST(L146,FALSE) -> 0.0006574521757 | O146: =_xlfn.NORM.S.DIST(L146,TRUE) -> 0.0001717971037 | P146: =$L146-B$15 -> -3.76 | Q146: 0.0003396012125 | R146: =$L146-B$16 -> -3.31 | S146: 0.00166656854 | T146: =$L146-B$17 -> -5.18 | U146: =_xlfn.NORM.S.DIST(T146, FALSE) -> 5.947417655e-07
L147: -3.57 | M147: =L147+5 -> 1.43 | N147: =_xlfn.NORM.S.DIST(L147,FALSE) -> 0.0006813812751 | O147: =_xlfn.NORM.S.DIST(L147,TRUE) -> 0.0001784906139 | P147: =$L147-B$15 -> -3.75 | Q147: 0.0003525956824 | R147: =$L147-B$16 -> -3.3 | S147: 0.001722568939 | T147: =$L147-B$17 -> -5.17 | U147: =_xlfn.NORM.S.DIST(T147, FALSE) -> 6.263299468e-07
L148: -3.56 | M148: =L148+5 -> 1.44 | N148: =_xlfn.NORM.S.DIST(L148,FALSE) -> 0.0007061107005 | O148: =_xlfn.NORM.S.DIST(L148,TRUE) -> 0.0001854273969 | P148: =$L148-B$15 -> -3.74 | Q148: 0.0003660507646 | R148: =$L148-B$16 -> -3.29 | S148: 0.00178027304 | T148: =$L148-B$17 -> -5.16 | U148: =_xlfn.NORM.S.DIST(T148, FALSE) -> 6.595298969e-07
L149: -3.55 | M149: =L149+5 -> 1.45 | N149: =_xlfn.NORM.S.DIST(L149,FALSE) -> 0.0007316644628 | O149: =_xlfn.NORM.S.DIST(L149,TRUE) -> 0.0001926155756 | P149: =$L149-B$15 -> -3.73 | Q149: 0.0003799812938 | R149: =$L149-B$16 -> -3.28 | S149: 0.001839726181 | T149: =$L149-B$17 -> -5.15 | U149: =_xlfn.NORM.S.DIST(T149, FALSE) -> 6.944202354e-07
L150: -3.54 | M150: =L150+5 -> 1.46 | N150: =_xlfn.NORM.S.DIST(L150,FALSE) -> 0.0007580671914 | O150: =_xlfn.NORM.S.DIST(L150,TRUE) -> 0.000200063516 | P150: =$L150-B$15 -> -3.72 | Q150: 0.000394402525 | R150: =$L150-B$16 -> -3.27 | S150: 0.001900974683 | T150: =$L150-B$17 -> -5.14 | U150: =_xlfn.NORM.S.DIST(T150, FALSE) -> 7.310832247e-07
L151: -3.53 | M151: =L151+5 -> 1.47 | N151: =_xlfn.NORM.S.DIST(L151,FALSE) -> 0.0007853441464 | O151: =_xlfn.NORM.S.DIST(L151,TRUE) -> 0.0002077798335 | P151: =$L151-B$15 -> -3.71 | Q151: 0.0004093301425 | R151: =$L151-B$16 -> -3.26 | S151: 0.001964065866 | T151: =$L151-B$17 -> -5.13 | U151: =_xlfn.NORM.S.DIST(T151, FALSE) -> 7.696049288e-07
L152: -3.52 | M152: =L152+5 -> 1.48 | N152: =_xlfn.NORM.S.DIST(L152,FALSE) -> 0.0008135212311 | O152: =_xlfn.NORM.S.DIST(L152,TRUE) -> 0.0002157733993 | P152: =$L152-B$15 -> -3.7 | Q152: 0.0004247802706 | R152: =$L152-B$16 -> -3.25 | S152: 0.002029048057 | T152: =$L152-B$17 -> -5.12 | U152: =_xlfn.NORM.S.DIST(T152, FALSE) -> 8.100753789e-07
L153: -3.51 | M153: =L153+5 -> 1.49 | N153: =_xlfn.NORM.S.DIST(L153,FALSE) -> 0.0008426250047 | O153: =_xlfn.NORM.S.DIST(L153,TRUE) -> 0.000224053347 | P153: =$L153-B$15 -> -3.69 | Q153: 0.0004407694831 | R153: =$L153-B$16 -> -3.24 | S153: 0.002095970613 | T153: =$L153-B$17 -> -5.11 | U153: =_xlfn.NORM.S.DIST(T153, FALSE) -> 8.525887453e-07
L154: -3.5 | M154: =L154+5 -> 1.5 | N154: =_xlfn.NORM.S.DIST(L154,FALSE) -> 0.000872682695 | O154: =_xlfn.NORM.S.DIST(L154,TRUE) -> 0.000232629079 | P154: =$L154-B$15 -> -3.68 | Q154: 0.0004573148141 | R154: =$L154-B$16 -> -3.23 | S154: 0.002164883925 | T154: =$L154-B$17 -> -5.1 | U154: =_xlfn.NORM.S.DIST(T154, FALSE) -> 8.972435162e-07
L155: -3.49 | M155: =L155+5 -> 1.51 | N155: =_xlfn.NORM.S.DIST(L155,FALSE) -> 0.0009037222113 | O155: =_xlfn.NORM.S.DIST(L155,TRUE) -> 0.0002415102736 | P155: =$L155-B$15 -> -3.67 | Q155: 0.0004744337676 | R155: =$L155-B$16 -> -3.22 | S155: 0.00223583944 | T155: =$L155-B$17 -> -5.09 | U155: =_xlfn.NORM.S.DIST(T155, FALSE) -> 9.441426847e-07
L156: -3.48 | M156: =L156+5 -> 1.52 | N156: =_xlfn.NORM.S.DIST(L156,FALSE) -> 0.0009357721569 | O156: =_xlfn.NORM.S.DIST(L156,TRUE) -> 0.0002507068913 | P156: =$L156-B$15 -> -3.66 | Q156: 0.0004921443288 | R156: =$L156-B$16 -> -3.21 | S156: 0.002308889668 | T156: =$L156-B$17 -> -5.08 | U156: =_xlfn.NORM.S.DIST(T156, FALSE) -> 9.933939413e-07
L157: -3.47 | M157: =L157+5 -> 1.53 | N157: =_xlfn.NORM.S.DIST(L157,FALSE) -> 0.0009688618429 | O157: =_xlfn.NORM.S.DIST(L157,TRUE) -> 0.0002602291824 | P157: =$L157-B$15 -> -3.65 | Q157: 0.0005104649743 | R157: =$L157-B$16 -> -3.2 | S157: 0.002384088201 | T157: =$L157-B$17 -> -5.07 | U157: =_xlfn.NORM.S.DIST(T157, FALSE) -> 1.045109876e-06
L158: -3.46 | M158: =L158+5 -> 1.54 | N158: =_xlfn.NORM.S.DIST(L158,FALSE) -> 0.001003021301 | O158: =_xlfn.NORM.S.DIST(L158,TRUE) -> 0.000270087694 | P158: =$L158-B$15 -> -3.64 | Q158: 0.0005294146831 | R158: =$L158-B$16 -> -3.19 | S158: 0.002461489725 | T158: =$L158-B$17 -> -5.06 | U158: =_xlfn.NORM.S.DIST(T158, FALSE) -> 1.099408189e-06
L159: -3.45 | M159: =L159+5 -> 1.55 | N159: =_xlfn.NORM.S.DIST(L159,FALSE) -> 0.001038281296 | O159: =_xlfn.NORM.S.DIST(L159,TRUE) -> 0.0002802932768 | P159: =$L159-B$15 -> -3.63 | Q159: 0.0005490129474 | R159: =$L159-B$16 -> -3.18 | S159: 0.002541150029 | T159: =$L159-B$17 -> -5.05 | U159: =_xlfn.NORM.S.DIST(T159, FALSE) -> 1.156411904e-06
L160: -3.44 | M160: =L160+5 -> 1.56 | N160: =_xlfn.NORM.S.DIST(L160,FALSE) -> 0.00107467334 | O160: =_xlfn.NORM.S.DIST(L160,TRUE) -> 0.0002908570933 | P160: =$L160-B$15 -> -3.62 | Q160: 0.0005692797838 | R160: =$L160-B$16 -> -3.17 | S160: 0.002623126025 | T160: =$L160-B$17 -> -5.04 | U160: =_xlfn.NORM.S.DIST(T160, FALSE) -> 1.216249599e-06
L161: -3.43 | M161: =L161+5 -> 1.57 | N161: =_xlfn.NORM.S.DIST(L161,FALSE) -> 0.001112229707 | O161: =_xlfn.NORM.S.DIST(L161,TRUE) -> 0.0003017906246 | P161: =$L161-B$15 -> -3.61 | Q161: 0.0005902357449 | R161: =$L161-B$16 -> -3.16 | S161: 0.002707475757 | T161: =$L161-B$17 -> -5.03 | U161: =_xlfn.NORM.S.DIST(T161, FALSE) -> 1.27905564e-06
L162: -3.42 | M162: =L162+5 -> 1.58 | N162: =_xlfn.NORM.S.DIST(L162,FALSE) -> 0.001150983444 | O162: =_xlfn.NORM.S.DIST(L162,TRUE) -> 0.0003131056786 | P162: =$L162-B$15 -> -3.6 | Q162: 0.0006119019301 | R162: =$L162-B$16 -> -3.15 | S162: 0.002794258415 | T162: =$L162-B$17 -> -5.02 | U162: =_xlfn.NORM.S.DIST(T162, FALSE) -> 1.344970426e-06
L163: -3.41 | M163: =L163+5 -> 1.59 | N163: =_xlfn.NORM.S.DIST(L163,FALSE) -> 0.001190968386 | O163: =_xlfn.NORM.S.DIST(L163,TRUE) -> 0.0003248143974 | P163: =$L163-B$15 -> -3.59 | Q163: 0.0006342999975 | R163: =$L163-B$16 -> -3.14 | S163: 0.002883534348 | T163: =$L163-B$17 -> -5.01 | U163: =_xlfn.NORM.S.DIST(T163, FALSE) -> 1.41414064e-06
L164: -3.4 | M164: =L164+5 -> 1.6 | N164: =_xlfn.NORM.S.DIST(L164,FALSE) -> 0.001232219168 | O164: =_xlfn.NORM.S.DIST(L164,TRUE) -> 0.0003369292657 | P164: =$L164-B$15 -> -3.58 | Q164: 0.0006574521757 | R164: =$L164-B$16 -> -3.13 | S164: 0.002975365075 | T164: =$L164-B$17 -> -5 | U164: =_xlfn.NORM.S.DIST(T164, FALSE) -> 1.486719515e-06
L165: -3.39 | M165: =L165+5 -> 1.61 | N165: =_xlfn.NORM.S.DIST(L165,FALSE) -> 0.001274771244 | O165: =_xlfn.NORM.S.DIST(L165,TRUE) -> 0.0003494631183 | P165: =$L165-B$15 -> -3.57 | Q165: 0.0006813812751 | R165: =$L165-B$16 -> -3.12 | S165: 0.003069813301 | T165: =$L165-B$17 -> -4.99 | U165: =_xlfn.NORM.S.DIST(T165, FALSE) -> 1.562867109e-06
L166: -3.38 | M166: =L166+5 -> 1.62 | N166: =_xlfn.NORM.S.DIST(L166,FALSE) -> 0.001318660892 | O166: =_xlfn.NORM.S.DIST(L166,TRUE) -> 0.000362429149 | P166: =$L166-B$15 -> -3.56 | Q166: 0.0007061107005 | R166: =$L166-B$16 -> -3.11 | S166: 0.003166942926 | T166: =$L166-B$17 -> -4.98 | U166: =_xlfn.NORM.S.DIST(T166, FALSE) -> 1.642750588e-06
L167: -3.37 | M167: =L167+5 -> 1.63 | N167: =_xlfn.NORM.S.DIST(L167,FALSE) -> 0.001363925236 | O167: =_xlfn.NORM.S.DIST(L167,TRUE) -> 0.0003758409184 | P167: =$L167-B$15 -> -3.55 | Q167: 0.0007316644628 | R167: =$L167-B$16 -> -3.1 | S167: 0.003266819056 | T167: =$L167-B$17 -> -4.97 | U167: =_xlfn.NORM.S.DIST(T167, FALSE) -> 1.726544522e-06
L168: -3.36 | M168: =L168+5 -> 1.64 | N168: =_xlfn.NORM.S.DIST(L168,FALSE) -> 0.001410602257 | O168: =_xlfn.NORM.S.DIST(L168,TRUE) -> 0.0003897123626 | P168: =$L168-B$15 -> -3.54 | Q168: 0.0007580671914 | R168: =$L168-B$16 -> -3.09 | S168: 0.003369508021 | T168: =$L168-B$17 -> -4.96 | U168: =_xlfn.NORM.S.DIST(T168, FALSE) -> 1.81443119e-06
L169: -3.35 | M169: =L169+5 -> 1.65 | N169: =_xlfn.NORM.S.DIST(L169,FALSE) -> 0.001458730805 | O169: =_xlfn.NORM.S.DIST(L169,TRUE) -> 0.0004040578019 | P169: =$L169-B$15 -> -3.53 | Q169: 0.0007853441464 | R169: =$L169-B$16 -> -3.08 | S169: 0.003475077378 | T169: =$L169-B$17 -> -4.95 | U169: =_xlfn.NORM.S.DIST(T169, FALSE) -> 1.906600903e-06
L170: -3.34 | M170: =L170+5 -> 1.66 | N170: =_xlfn.NORM.S.DIST(L170,FALSE) -> 0.001508350615 | O170: =_xlfn.NORM.S.DIST(L170,TRUE) -> 0.0004188919495 | P170: =$L170-B$15 -> -3.52 | Q170: 0.0008135212311 | R170: =$L170-B$16 -> -3.07 | S170: 0.003583595929 | T170: =$L170-B$17 -> -4.94 | U170: =_xlfn.NORM.S.DIST(T170, FALSE) -> 2.00325233e-06
L171: -3.33 | M171: =L171+5 -> 1.67 | N171: =_xlfn.NORM.S.DIST(L171,FALSE) -> 0.001559502322 | O171: =_xlfn.NORM.S.DIST(L171,TRUE) -> 0.0004342299204 | P171: =$L171-B$15 -> -3.51 | Q171: 0.0008426250047 | R171: =$L171-B$16 -> -3.06 | S171: 0.00369513373 | T171: =$L171-B$17 -> -4.93 | U171: =_xlfn.NORM.S.DIST(T171, FALSE) -> 2.104592843e-06
L172: -3.32 | M172: =L172+5 -> 1.68 | N172: =_xlfn.NORM.S.DIST(L172,FALSE) -> 0.001612227472 | O172: =_xlfn.NORM.S.DIST(L172,TRUE) -> 0.0004500872406 | P172: =$L172-B$15 -> -3.5 | Q172: 0.000872682695 | R172: =$L172-B$16 -> -3.05 | S172: 0.003809762098 | T172: =$L172-B$17 -> -4.92 | U172: =_xlfn.NORM.S.DIST(T172, FALSE) -> 2.210838875e-06
L173: -3.31 | M173: =L173+5 -> 1.69 | N173: =_xlfn.NORM.S.DIST(L173,FALSE) -> 0.00166656854 | O173: =_xlfn.NORM.S.DIST(L173,TRUE) -> 0.0004664798561 | P173: =$L173-B$15 -> -3.49 | Q173: 0.0009037222113 | R173: =$L173-B$16 -> -3.04 | S173: 0.003927553629 | T173: =$L173-B$17 -> -4.91 | U173: =_xlfn.NORM.S.DIST(T173, FALSE) -> 2.322216285e-06
L174: -3.3 | M174: =L174+5 -> 1.7 | N174: =_xlfn.NORM.S.DIST(L174,FALSE) -> 0.001722568939 | O174: =_xlfn.NORM.S.DIST(L174,TRUE) -> 0.0004834241424 | P174: =$L174-B$15 -> -3.48 | Q174: 0.0009357721569 | R174: =$L174-B$16 -> -3.03 | S174: 0.0040485822 | T174: =$L174-B$17 -> -4.9 | U174: =_xlfn.NORM.S.DIST(T174, FALSE) -> 2.438960746e-06
L175: -3.29 | M175: =L175+5 -> 1.71 | N175: =_xlfn.NORM.S.DIST(L175,FALSE) -> 0.00178027304 | O175: =_xlfn.NORM.S.DIST(L175,TRUE) -> 0.0005009369138 | P175: =$L175-B$15 -> -3.47 | Q175: 0.0009688618429 | R175: =$L175-B$16 -> -3.02 | S175: 0.004172922985 | T175: =$L175-B$17 -> -4.89 | U175: =_xlfn.NORM.S.DIST(T175, FALSE) -> 2.561318141e-06
L176: -3.28 | M176: =L176+5 -> 1.72 | N176: =_xlfn.NORM.S.DIST(L176,FALSE) -> 0.001839726181 | O176: =_xlfn.NORM.S.DIST(L176,TRUE) -> 0.0005190354332 | P176: =$L176-B$15 -> -3.46 | Q176: 0.001003021301 | R176: =$L176-B$16 -> -3.01 | S176: 0.004300652459 | T176: =$L176-B$17 -> -4.88 | U176: =_xlfn.NORM.S.DIST(T176, FALSE) -> 2.689544974e-06
L177: -3.27 | M177: =L177+5 -> 1.73 | N177: =_xlfn.NORM.S.DIST(L177,FALSE) -> 0.001900974683 | O177: =_xlfn.NORM.S.DIST(L177,TRUE) -> 0.0005377374218 | P177: =$L177-B$15 -> -3.45 | Q177: 0.001038281296 | R177: =$L177-B$16 -> -3 | S177: 0.004431848412 | T177: =$L177-B$17 -> -4.87 | U177: =_xlfn.NORM.S.DIST(T177, FALSE) -> 2.823908801e-06
L178: -3.26 | M178: =L178+5 -> 1.74 | N178: =_xlfn.NORM.S.DIST(L178,FALSE) -> 0.001964065866 | O178: =_xlfn.NORM.S.DIST(L178,TRUE) -> 0.000557061069 | P178: =$L178-B$15 -> -3.44 | Q178: 0.00107467334 | R178: =$L178-B$16 -> -2.99 | S178: 0.004566589955 | T178: =$L178-B$17 -> -4.86 | U178: =_xlfn.NORM.S.DIST(T178, FALSE) -> 2.964688669e-06
L179: -3.25 | M179: =L179+5 -> 1.75 | N179: =_xlfn.NORM.S.DIST(L179,FALSE) -> 0.002029048057 | O179: =_xlfn.NORM.S.DIST(L179,TRUE) -> 0.0005770250424 | P179: =$L179-B$15 -> -3.43 | Q179: 0.001112229707 | R179: =$L179-B$16 -> -2.98 | S179: 0.004704957527 | T179: =$L179-B$17 -> -4.85 | U179: =_xlfn.NORM.S.DIST(T179, FALSE) -> 3.112175579e-06
L180: -3.24 | M180: =L180+5 -> 1.76 | N180: =_xlfn.NORM.S.DIST(L180,FALSE) -> 0.002095970613 | O180: =_xlfn.NORM.S.DIST(L180,TRUE) -> 0.0005976484979 | P180: =$L180-B$15 -> -3.42 | Q180: 0.001150983444 | R180: =$L180-B$16 -> -2.97 | S180: 0.004847032906 | T180: =$L180-B$17 -> -4.84 | U180: =_xlfn.NORM.S.DIST(T180, FALSE) -> 3.266672964e-06
L181: -3.23 | M181: =L181+5 -> 1.77 | N181: =_xlfn.NORM.S.DIST(L181,FALSE) -> 0.002164883925 | O181: =_xlfn.NORM.S.DIST(L181,TRUE) -> 0.0006189510904 | P181: =$L181-B$15 -> -3.41 | Q181: 0.001190968386 | R181: =$L181-B$16 -> -2.96 | S181: 0.004992899214 | T181: =$L181-B$17 -> -4.83 | U181: =_xlfn.NORM.S.DIST(T181, FALSE) -> 3.428497178e-06
L182: -3.22 | M182: =L182+5 -> 1.78 | N182: =_xlfn.NORM.S.DIST(L182,FALSE) -> 0.00223583944 | O182: =_xlfn.NORM.S.DIST(L182,TRUE) -> 0.0006409529837 | P182: =$L182-B$15 -> -3.4 | Q182: 0.001232219168 | R182: =$L182-B$16 -> -2.95 | S182: 0.005142640923 | T182: =$L182-B$17 -> -4.82 | U182: =_xlfn.NORM.S.DIST(T182, FALSE) -> 3.597978014e-06
L183: -3.21 | M183: =L183+5 -> 1.79 | N183: =_xlfn.NORM.S.DIST(L183,FALSE) -> 0.002308889668 | O183: =_xlfn.NORM.S.DIST(L183,TRUE) -> 0.0006636748614 | P183: =$L183-B$15 -> -3.39 | Q183: 0.001274771244 | R183: =$L183-B$16 -> -2.94 | S183: 0.005296343865 | T183: =$L183-B$17 -> -4.81 | U183: =_xlfn.NORM.S.DIST(T183, FALSE) -> 3.775459227e-06
L184: -3.2 | M184: =L184+5 -> 1.8 | N184: =_xlfn.NORM.S.DIST(L184,FALSE) -> 0.002384088201 | O184: =_xlfn.NORM.S.DIST(L184,TRUE) -> 0.0006871379379 | P184: =$L184-B$15 -> -3.38 | Q184: 0.001318660892 | R184: =$L184-B$16 -> -2.93 | S184: 0.005454095235 | T184: =$L184-B$17 -> -4.8 | U184: =_xlfn.NORM.S.DIST(T184, FALSE) -> 3.961299091e-06
L185: -3.19 | M185: =L185+5 -> 1.81 | N185: =_xlfn.NORM.S.DIST(L185,FALSE) -> 0.002461489725 | O185: =_xlfn.NORM.S.DIST(L185,TRUE) -> 0.0007113639686 | P185: =$L185-B$15 -> -3.37 | Q185: 0.001363925236 | R185: =$L185-B$16 -> -2.92 | S185: 0.005615983596 | T185: =$L185-B$17 -> -4.79 | U185: =_xlfn.NORM.S.DIST(T185, FALSE) -> 4.155870965e-06
L186: -3.18 | M186: =L186+5 -> 1.82 | N186: =_xlfn.NORM.S.DIST(L186,FALSE) -> 0.002541150029 | O186: =_xlfn.NORM.S.DIST(L186,TRUE) -> 0.0007363752616 | P186: =$L186-B$15 -> -3.36 | Q186: 0.001410602257 | R186: =$L186-B$16 -> -2.91 | S186: 0.005782098886 | T186: =$L186-B$17 -> -4.78 | U186: =_xlfn.NORM.S.DIST(T186, FALSE) -> 4.35956388e-06
L187: -3.17 | M187: =L187+5 -> 1.83 | N187: =_xlfn.NORM.S.DIST(L187,FALSE) -> 0.002623126025 | O187: =_xlfn.NORM.S.DIST(L187,TRUE) -> 0.0007621946881 | P187: =$L187-B$15 -> -3.35 | Q187: 0.001458730805 | R187: =$L187-B$16 -> -2.9 | S187: 0.00595253242 | T187: =$L187-B$17 -> -4.77 | U187: =_xlfn.NORM.S.DIST(T187, FALSE) -> 4.572783154e-06
L188: -3.16 | M188: =L188+5 -> 1.84 | N188: =_xlfn.NORM.S.DIST(L188,FALSE) -> 0.002707475757 | O188: =_xlfn.NORM.S.DIST(L188,TRUE) -> 0.0007888456944 | P188: =$L188-B$15 -> -3.34 | Q188: 0.001508350615 | R188: =$L188-B$16 -> -2.89 | S188: 0.006127376896 | T188: =$L188-B$17 -> -4.76 | U188: =_xlfn.NORM.S.DIST(T188, FALSE) -> 4.795951022e-06
L189: -3.15 | M189: =L189+5 -> 1.85 | N189: =_xlfn.NORM.S.DIST(L189,FALSE) -> 0.002794258415 | O189: =_xlfn.NORM.S.DIST(L189,TRUE) -> 0.0008163523128 | P189: =$L189-B$15 -> -3.33 | Q189: 0.001559502322 | R189: =$L189-B$16 -> -2.88 | S189: 0.006306726396 | T189: =$L189-B$17 -> -4.75 | U189: =_xlfn.NORM.S.DIST(T189, FALSE) -> 5.029507289e-06
L190: -3.14 | M190: =L190+5 -> 1.86 | N190: =_xlfn.NORM.S.DIST(L190,FALSE) -> 0.002883534348 | O190: =_xlfn.NORM.S.DIST(L190,TRUE) -> 0.0008447391735 | P190: =$L190-B$15 -> -3.32 | Q190: 0.001612227472 | R190: =$L190-B$16 -> -2.87 | S190: 0.006490676391 | T190: =$L190-B$17 -> -4.74 | U190: =_xlfn.NORM.S.DIST(T190, FALSE) -> 5.27391001e-06
L191: -3.13 | M191: =L191+5 -> 1.87 | N191: =_xlfn.NORM.S.DIST(L191,FALSE) -> 0.002975365075 | O191: =_xlfn.NORM.S.DIST(L191,TRUE) -> 0.0008740315156 | P191: =$L191-B$15 -> -3.31 | Q191: 0.00166656854 | R191: =$L191-B$16 -> -2.86 | S191: 0.006679323739 | T191: =$L191-B$17 -> -4.73 | U191: =_xlfn.NORM.S.DIST(T191, FALSE) -> 5.529636189e-06
L192: -3.12 | M192: =L192+5 -> 1.88 | N192: =_xlfn.NORM.S.DIST(L192,FALSE) -> 0.003069813301 | O192: =_xlfn.NORM.S.DIST(L192,TRUE) -> 0.0009042551998 | P192: =$L192-B$15 -> -3.3 | Q192: 0.001722568939 | R192: =$L192-B$16 -> -2.85 | S192: 0.006872766691 | T192: =$L192-B$17 -> -4.72 | U192: =_xlfn.NORM.S.DIST(T192, FALSE) -> 5.797182506e-06
L193: -3.11 | M193: =L193+5 -> 1.89 | N193: =_xlfn.NORM.S.DIST(L193,FALSE) -> 0.003166942926 | O193: =_xlfn.NORM.S.DIST(L193,TRUE) -> 0.0009354367195 | P193: =$L193-B$15 -> -3.29 | Q193: 0.00178027304 | R193: =$L193-B$16 -> -2.84 | S193: 0.007071104886 | T193: =$L193-B$17 -> -4.71 | U193: =_xlfn.NORM.S.DIST(T193, FALSE) -> 6.077066067e-06
L194: -3.1 | M194: =L194+5 -> 1.9 | N194: =_xlfn.NORM.S.DIST(L194,FALSE) -> 0.003266819056 | O194: =_xlfn.NORM.S.DIST(L194,TRUE) -> 0.0009676032132 | P194: =$L194-B$15 -> -3.28 | Q194: 0.001839726181 | R194: =$L194-B$16 -> -2.83 | S194: 0.007274439357 | T194: =$L194-B$17 -> -4.7 | U194: =_xlfn.NORM.S.DIST(T194, FALSE) -> 6.369825179e-06
L195: -3.09 | M195: =L195+5 -> 1.91 | N195: =_xlfn.NORM.S.DIST(L195,FALSE) -> 0.003369508021 | O195: =_xlfn.NORM.S.DIST(L195,TRUE) -> 0.001000782477 | P195: =$L195-B$15 -> -3.27 | Q195: 0.001900974683 | R195: =$L195-B$16 -> -2.82 | S195: 0.007482872526 | T195: =$L195-B$17 -> -4.69 | U195: =_xlfn.NORM.S.DIST(T195, FALSE) -> 6.676020155e-06
L196: -3.08 | M196: =L196+5 -> 1.92 | N196: =_xlfn.NORM.S.DIST(L196,FALSE) -> 0.003475077378 | O196: =_xlfn.NORM.S.DIST(L196,TRUE) -> 0.001035002975 | P196: =$L196-B$15 -> -3.26 | Q196: 0.001964065866 | R196: =$L196-B$16 -> -2.81 | S196: 0.007696508202 | T196: =$L196-B$17 -> -4.68 | U196: =_xlfn.NORM.S.DIST(T196, FALSE) -> 6.996234143e-06
L197: -3.07 | M197: =L197+5 -> 1.93 | N197: =_xlfn.NORM.S.DIST(L197,FALSE) -> 0.003583595929 | O197: =_xlfn.NORM.S.DIST(L197,TRUE) -> 0.001070293855 | P197: =$L197-B$15 -> -3.25 | Q197: =_xlfn.NORM.S.DIST(P197, FALSE) -> 0.002029048057 | R197: =$L197-B$16 -> -2.8 | S197: 0.007915451583 | T197: =$L197-B$17 -> -4.67 | U197: =_xlfn.NORM.S.DIST(T197, FALSE) -> 7.331073989e-06
L198: =ROUND(L197+0.01,2) -> -3.06 | M198: =L198+5 -> 1.94 | N198: =_xlfn.NORM.S.DIST(L198,FALSE) -> 0.00369513373 | O198: =_xlfn.NORM.S.DIST(L198,TRUE) -> 0.001106684957 | P198: =$L198-B$15 -> -3.24 | Q198: 0.002095970613 | R198: =$L198-B$16 -> -2.79 | S198: 0.008139809248 | T198: =$L198-B$17 -> -4.66 | U198: =_xlfn.NORM.S.DIST(T198, FALSE) -> 7.681171117e-06
L199: -3.05 | M199: =L199+5 -> 1.95 | N199: =_xlfn.NORM.S.DIST(L199,FALSE) -> 0.003809762098 | O199: =_xlfn.NORM.S.DIST(L199,TRUE) -> 0.001144206831 | P199: =$L199-B$15 -> -3.23 | Q199: 0.002164883925 | R199: =$L199-B$16 -> -2.78 | S199: 0.008369689155 | T199: =$L199-B$17 -> -4.65 | U199: =_xlfn.NORM.S.DIST(T199, FALSE) -> 8.047182456e-06
L200: -3.04 | M200: =L200+5 -> 1.96 | N200: =_xlfn.NORM.S.DIST(L200,FALSE) -> 0.003927553629 | O200: =_xlfn.NORM.S.DIST(L200,TRUE) -> 0.001182890743 | P200: =$L200-B$15 -> -3.22 | Q200: 0.00223583944 | R200: =$L200-B$16 -> -2.77 | S200: 0.008605200637 | T200: =$L200-B$17 -> -4.64 | U200: =_xlfn.NORM.S.DIST(T200, FALSE) -> 8.429791383e-06
... 804 more rows

Sheet Sanctioning Varies
D1: Sanctioning Level (0 - 100) | K1: Z | L1: PDF | M1: Sanction | N1: CDF | O1: Shading | P1: Chart CDF
K2: -5 | L2: =_xlfn.NORM.S.DIST(K2,FALSE) -> 1.486719515e-06 | M2: =(5-K2)/10 -> 1 | N2: =_xlfn.NORM.S.DIST(-K2,TRUE) -> 0.9999997133 | O2: =IF(ISEVEN(ABS(100*K2)), 0, IF($C$9<K2, 0,L2)) -> 0 | P2: =IF($C$9>K2, 0,N2) -> 0
K3: =ROUND(K2+0.01,2) -> -4.99 | L3: =_xlfn.NORM.S.DIST(K3,FALSE) -> 1.562867109e-06 | M3: =(5-K3)/10 -> 0.999 | N3: =_xlfn.NORM.S.DIST(-K3,TRUE) -> 0.9999996981 | O3: =IF(ISEVEN(ABS(100*K3)), 0, IF($C$9>K3, 0,L3)) -> 0 | P3: =IF($C$9>K3, 0,N3) -> 0
K4: =ROUND(K3+0.01,2) -> -4.98 | L4: 1.642750588e-06 | M4: 0.998 | N4: 0.9999996821 | O4: =IF(ISEVEN(ABS(100*K4)), 0, IF($C$9>K4, 0,L4)) -> 0 | P4: =IF($C$9>K4, 0,N4) -> 0
A5: Hint: Move the slider to see the effects of changes in sanctioning | K5: -4.97 | L5: 1.726544522e-06 | M5: 0.997 | N5: 0.9999996652 | O5: =IF(ISEVEN(ABS(100*K5)), 0, IF($C$9>K5, 0,L5)) -> 0 | P5: =IF($C$9>K5, 0,N5) -> 0
K6: -4.96 | L6: 1.81443119e-06 | M6: 0.996 | N6: 0.9999996475 | O6: =IF(ISEVEN(ABS(100*K6)), 0, IF($C$9>K6, 0,L6)) -> 0 | P6: =IF($C$9>K6, 0,N6) -> 0
A7: Sanctioning | B7: Crime | C7: Sanction | D7: Sanction | G7: Sanction | H7: Sanction | K7: -4.95 | L7: 1.906600903e-06 | M7: 0.995 | N7: 0.9999996289 | O7: =IF(ISEVEN(ABS(100*K7)), 0, IF($C$9>K7, 0,L7)) -> 0 | P7: =IF($C$9>K7, 0,N7) -> 0
A8: Level | B8: Rate | C8: X | D8: Y | G8: X | H8: Y | K8: -4.94 | L8: 2.00325233e-06 | M8: 0.994 | N8: 0.9999996094 | O8: =IF(ISEVEN(ABS(100*K8)), 0, IF($C$9>K8, 0,L8)) -> 0 | P8: =IF($C$9>K8, 0,N8) -> 0
A9: 50 | B9: =_xlfn.NORM.S.DIST(-C9, TRUE) -> 0.5 | C9: =A9/10 - 5 -> 0 | D9: 0 | G9: =(5-C9)/10 -> 0.5 | H9: 0 | K9: -4.93 | L9: 2.104592843e-06 | M9: 0.993 | N9: 0.9999995889 | O9: =IF(ISEVEN(ABS(100*K9)), 0, IF($C$9>K9, 0,L9)) -> 0 | P9: =IF($C$9>K9, 0,N9) -> 0
C10: =C9 -> 0 | D10: 0.45 | G10: =(5-C10)/10 -> 0.5 | H10: 1 | K10: -4.92 | L10: 2.210838875e-06 | M10: 0.992 | N10: 0.9999995673 | O10: =IF(ISEVEN(ABS(100*K10)), 0, IF($C$9>K10, 0,L10)) -> 0 | P10: =IF($C$9>K10, 0,N10) -> 0
K11: -4.91 | L11: 2.322216285e-06 | M11: 0.991 | N11: 0.9999995446 | O11: =IF(ISEVEN(ABS(100*K11)), 0, IF($C$9>K11, 0,L11)) -> 0 | P11: =IF($C$9>K11, 0,N11) -> 0
K12: -4.9 | L12: 2.438960746e-06 | M12: 0.99 | N12: 0.9999995208 | O12: =IF(ISEVEN(ABS(100*K12)), 0, IF($C$9>K12, 0,L12)) -> 0 | P12: =IF($C$9>K12, 0,N12) -> 0
K13: -4.89 | L13: 2.561318141e-06 | M13: 0.989 | N13: 0.9999994958 | O13: =IF(ISEVEN(ABS(100*K13)), 0, IF($C$9>K13, 0,L13)) -> 0 | P13: =IF($C$9>K13, 0,N13) -> 0
K14: -4.88 | L14: 2.689544974e-06 | M14: 0.988 | N14: 0.9999994696 | O14: =IF(ISEVEN(ABS(100*K14)), 0, IF($C$9>K14, 0,L14)) -> 0 | P14: =IF($C$9>K14, 0,N14) -> 0
K15: -4.87 | L15: 2.823908801e-06 | M15: 0.987 | N15: 0.999999442 | O15: =IF(ISEVEN(ABS(100*K15)), 0, IF($C$9>K15, 0,L15)) -> 0 | P15: =IF($C$9>K15, 0,N15) -> 0
K16: -4.86 | L16: 2.964688669e-06 | M16: 0.986 | N16: 0.9999994131 | O16: =IF(ISEVEN(ABS(100*K16)), 0, IF($C$9>K16, 0,L16)) -> 0 | P16: =IF($C$9>K16, 0,N16) -> 0
K17: -4.85 | L17: 3.112175579e-06 | M17: 0.985 | N17: 0.9999993827 | O17: =IF(ISEVEN(ABS(100*K17)), 0, IF($C$9>K17, 0,L17)) -> 0 | P17: =IF($C$9>K17, 0,N17) -> 0
K18: -4.84 | L18: 3.266672964e-06 | M18: 0.984 | N18: 0.9999993508 | O18: =IF(ISEVEN(ABS(100*K18)), 0, IF($C$9>K18, 0,L18)) -> 0 | P18: =IF($C$9>K18, 0,N18) -> 0
K19: -4.83 | L19: 3.428497178e-06 | M19: 0.983 | N19: 0.9999993173 | O19: =IF(ISEVEN(ABS(100*K19)), 0, IF($C$9>K19, 0,L19)) -> 0 | P19: =IF($C$9>K19, 0,N19) -> 0
K20: -4.82 | L20: 3.597978014e-06 | M20: 0.982 | N20: 0.9999992822 | O20: =IF(ISEVEN(ABS(100*K20)), 0, IF($C$9>K20, 0,L20)) -> 0 | P20: =IF($C$9>K20, 0,N20) -> 0
K21: -4.81 | L21: 3.775459227e-06 | M21: 0.981 | N21: 0.9999992453 | O21: =IF(ISEVEN(ABS(100*K21)), 0, IF($C$9>K21, 0,L21)) -> 0 | P21: =IF($C$9>K21, 0,N21) -> 0
K22: -4.8 | L22: 3.961299091e-06 | M22: 0.98 | N22: 0.9999992067 | O22: =IF(ISEVEN(ABS(100*K22)), 0, IF($C$9>K22, 0,L22)) -> 0 | P22: =IF($C$9>K22, 0,N22) -> 0
K23: -4.79 | L23: 4.155870965e-06 | M23: 0.979 | N23: 0.9999991661 | O23: =IF(ISEVEN(ABS(100*K23)), 0, IF($C$9>K23, 0,L23)) -> 0 | P23: =IF($C$9>K23, 0,N23) -> 0
K24: -4.78 | L24: 4.35956388e-06 | M24: 0.978 | N24: 0.9999991235 | O24: =IF(ISEVEN(ABS(100*K24)), 0, IF($C$9>K24, 0,L24)) -> 0 | P24: =IF($C$9>K24, 0,N24) -> 0
K25: -4.77 | L25: 4.572783154e-06 | M25: 0.977 | N25: 0.9999990789 | O25: =IF(ISEVEN(ABS(100*K25)), 0, IF($C$9>K25, 0,L25)) -> 0 | P25: =IF($C$9>K25, 0,N25) -> 0
K26: -4.76 | L26: 4.795951022e-06 | M26: 0.976 | N26: 0.999999032 | O26: =IF(ISEVEN(ABS(100*K26)), 0, IF($C$9>K26, 0,L26)) -> 0 | P26: =IF($C$9>K26, 0,N26) -> 0
K27: -4.75 | L27: 5.029507289e-06 | M27: 0.975 | N27: 0.9999989829 | O27: =IF(ISEVEN(ABS(100*K27)), 0, IF($C$9>K27, 0,L27)) -> 0 | P27: =IF($C$9>K27, 0,N27) -> 0
K28: -4.74 | L28: 5.27391001e-06 | M28: 0.974 | N28: 0.9999989314 | O28: =IF(ISEVEN(ABS(100*K28)), 0, IF($C$9>K28, 0,L28)) -> 0 | P28: =IF($C$9>K28, 0,N28) -> 0
K29: -4.73 | L29: 5.529636189e-06 | M29: 0.973 | N29: 0.9999988774 | O29: =IF(ISEVEN(ABS(100*K29)), 0, IF($C$9>K29, 0,L29)) -> 0 | P29: =IF($C$9>K29, 0,N29) -> 0
K30: -4.72 | L30: 5.797182506e-06 | M30: 0.972 | N30: 0.9999988208 | O30: =IF(ISEVEN(ABS(100*K30)), 0, IF($C$9>K30, 0,L30)) -> 0 | P30: =IF($C$9>K30, 0,N30) -> 0
K31: -4.71 | L31: 6.077066067e-06 | M31: 0.971 | N31: 0.9999987614 | O31: =IF(ISEVEN(ABS(100*K31)), 0, IF($C$9>K31, 0,L31)) -> 0 | P31: =IF($C$9>K31, 0,N31) -> 0
K32: -4.7 | L32: 6.369825179e-06 | M32: 0.97 | N32: 0.9999986992 | O32: =IF(ISEVEN(ABS(100*K32)), 0, IF($C$9>K32, 0,L32)) -> 0 | P32: =IF($C$9>K32, 0,N32) -> 0
K33: -4.69 | L33: 6.676020155e-06 | M33: 0.969 | N33: 0.999998634 | O33: =IF(ISEVEN(ABS(100*K33)), 0, IF($C$9>K33, 0,L33)) -> 0 | P33: =IF($C$9>K33, 0,N33) -> 0
K34: -4.68 | L34: 6.996234143e-06 | M34: 0.968 | N34: 0.9999985656 | O34: =IF(ISEVEN(ABS(100*K34)), 0, IF($C$9>K34, 0,L34)) -> 0 | P34: =IF($C$9>K34, 0,N34) -> 0
K35: -4.67 | L35: 7.331073989e-06 | M35: 0.967 | N35: 0.999998494 | O35: =IF(ISEVEN(ABS(100*K35)), 0, IF($C$9>K35, 0,L35)) -> 0 | P35: =IF($C$9>K35, 0,N35) -> 0
K36: -4.66 | L36: 7.681171117e-06 | M36: 0.966 | N36: 0.999998419 | O36: =IF(ISEVEN(ABS(100*K36)), 0, IF($C$9>K36, 0,L36)) -> 0 | P36: =IF($C$9>K36, 0,N36) -> 0
K37: -4.65 | L37: 8.047182456e-06 | M37: 0.965 | N37: 0.9999983403 | O37: =IF(ISEVEN(ABS(100*K37)), 0, IF($C$9>K37, 0,L37)) -> 0 | P37: =IF($C$9>K37, 0,N37) -> 0
K38: -4.64 | L38: 8.429791383e-06 | M38: 0.964 | N38: 0.999998258 | O38: =IF(ISEVEN(ABS(100*K38)), 0, IF($C$9>K38, 0,L38)) -> 0 | P38: =IF($C$9>K38, 0,N38) -> 0
K39: -4.63 | L39: 8.829708704e-06 | M39: 0.963 | N39: 0.9999981717 | O39: =IF(ISEVEN(ABS(100*K39)), 0, IF($C$9>K39, 0,L39)) -> 0 | P39: =IF($C$9>K39, 0,N39) -> 0
K40: -4.62 | L40: 9.24767367e-06 | M40: 0.962 | N40: 0.9999980813 | O40: =IF(ISEVEN(ABS(100*K40)), 0, IF($C$9>K40, 0,L40)) -> 0 | P40: =IF($C$9>K40, 0,N40) -> 0
K41: -4.61 | L41: 9.68445502e-06 | M41: 0.961 | N41: 0.9999979867 | O41: =IF(ISEVEN(ABS(100*K41)), 0, IF($C$9>K41, 0,L41)) -> 0 | P41: =IF($C$9>K41, 0,N41) -> 0
K42: -4.6 | L42: 1.014085207e-05 | M42: 0.96 | N42: 0.9999978875 | O42: =IF(ISEVEN(ABS(100*K42)), 0, IF($C$9>K42, 0,L42)) -> 0 | P42: =IF($C$9>K42, 0,N42) -> 0
K43: -4.59 | L43: 1.061769581e-05 | M43: 0.959 | N43: 0.9999977838 | O43: =IF(ISEVEN(ABS(100*K43)), 0, IF($C$9>K43, 0,L43)) -> 0 | P43: =IF($C$9>K43, 0,N43) -> 0
K44: -4.58 | L44: 1.111585008e-05 | M44: 0.958 | N44: 0.9999976751 | O44: =IF(ISEVEN(ABS(100*K44)), 0, IF($C$9>K44, 0,L44)) -> 0 | P44: =IF($C$9>K44, 0,N44) -> 0
K45: -4.57 | L45: 1.163621276e-05 | M45: 0.957 | N45: 0.9999975614 | O45: =IF(ISEVEN(ABS(100*K45)), 0, IF($C$9>K45, 0,L45)) -> 0 | P45: =IF($C$9>K45, 0,N45) -> 0
K46: -4.56 | L46: 1.217971697e-05 | M46: 0.956 | N46: 0.9999974423 | O46: =IF(ISEVEN(ABS(100*K46)), 0, IF($C$9>K46, 0,L46)) -> 0 | P46: =IF($C$9>K46, 0,N46) -> 0
K47: -4.55 | L47: 1.274733238e-05 | M47: 0.955 | N47: 0.9999973177 | O47: =IF(ISEVEN(ABS(100*K47)), 0, IF($C$9>K47, 0,L47)) -> 0 | P47: =IF($C$9>K47, 0,N47) -> 0
K48: -4.54 | L48: 1.334006649e-05 | M48: 0.954 | N48: 0.9999971873 | O48: =IF(ISEVEN(ABS(100*K48)), 0, IF($C$9>K48, 0,L48)) -> 0 | P48: =IF($C$9>K48, 0,N48) -> 0
K49: -4.53 | L49: 1.395896599e-05 | M49: 0.953 | N49: 0.9999970508 | O49: =IF(ISEVEN(ABS(100*K49)), 0, IF($C$9>K49, 0,L49)) -> 0 | P49: =IF($C$9>K49, 0,N49) -> 0
K50: -4.52 | L50: 1.460511814e-05 | M50: 0.952 | N50: 0.999996908 | O50: =IF(ISEVEN(ABS(100*K50)), 0, IF($C$9>K50, 0,L50)) -> 0 | P50: =IF($C$9>K50, 0,N50) -> 0
K51: -4.51 | L51: 1.527965225e-05 | M51: 0.951 | N51: 0.9999967586 | O51: =IF(ISEVEN(ABS(100*K51)), 0, IF($C$9>K51, 0,L51)) -> 0 | P51: =IF($C$9>K51, 0,N51) -> 0
K52: -4.5 | L52: 1.598374111e-05 | M52: 0.95 | N52: 0.9999966023 | O52: =IF(ISEVEN(ABS(100*K52)), 0, IF($C$9>K52, 0,L52)) -> 0 | P52: =IF($C$9>K52, 0,N52) -> 0
K53: -4.49 | L53: 1.671860255e-05 | M53: 0.949 | N53: 0.9999964388 | O53: =IF(ISEVEN(ABS(100*K53)), 0, IF($C$9>K53, 0,L53)) -> 0 | P53: =IF($C$9>K53, 0,N53) -> 0
K54: -4.48 | L54: 1.748550103e-05 | M54: 0.948 | N54: 0.9999962678 | O54: =IF(ISEVEN(ABS(100*K54)), 0, IF($C$9>K54, 0,L54)) -> 0 | P54: =IF($C$9>K54, 0,N54) -> 0
K55: -4.47 | L55: 1.828574921e-05 | M55: 0.947 | N55: 0.999996089 | O55: =IF(ISEVEN(ABS(100*K55)), 0, IF($C$9>K55, 0,L55)) -> 0 | P55: =IF($C$9>K55, 0,N55) -> 0
K56: -4.46 | L56: 1.912070969e-05 | M56: 0.946 | N56: 0.999995902 | O56: =IF(ISEVEN(ABS(100*K56)), 0, IF($C$9>K56, 0,L56)) -> 0 | P56: =IF($C$9>K56, 0,N56) -> 0
K57: -4.45 | L57: 1.999179671e-05 | M57: 0.945 | N57: 0.9999957065 | O57: =IF(ISEVEN(ABS(100*K57)), 0, IF($C$9>K57, 0,L57)) -> 0 | P57: =IF($C$9>K57, 0,N57) -> 0
K58: -4.44 | L58: 2.09004779e-05 | M58: 0.944 | N58: 0.9999955021 | O58: =IF(ISEVEN(ABS(100*K58)), 0, IF($C$9>K58, 0,L58)) -> 0 | P58: =IF($C$9>K58, 0,N58) -> 0
K59: -4.43 | L59: 2.184827617e-05 | M59: 0.943 | N59: 0.9999952883 | O59: =IF(ISEVEN(ABS(100*K59)), 0, IF($C$9>K59, 0,L59)) -> 0 | P59: =IF($C$9>K59, 0,N59) -> 0
K60: -4.42 | L60: 2.283677157e-05 | M60: 0.942 | N60: 0.999995065 | O60: =IF(ISEVEN(ABS(100*K60)), 0, IF($C$9>K60, 0,L60)) -> 0 | P60: =IF($C$9>K60, 0,N60) -> 0
K61: -4.41 | L61: 2.38676032e-05 | M61: 0.941 | N61: 0.9999948315 | O61: =IF(ISEVEN(ABS(100*K61)), 0, IF($C$9>K61, 0,L61)) -> 0 | P61: =IF($C$9>K61, 0,N61) -> 0
K62: -4.4 | L62: 2.494247129e-05 | M62: 0.94 | N62: 0.9999945875 | O62: =IF(ISEVEN(ABS(100*K62)), 0, IF($C$9>K62, 0,L62)) -> 0 | P62: =IF($C$9>K62, 0,N62) -> 0
K63: -4.39 | L63: 2.60631392e-05 | M63: 0.939 | N63: 0.9999943325 | O63: =IF(ISEVEN(ABS(100*K63)), 0, IF($C$9>K63, 0,L63)) -> 0 | P63: =IF($C$9>K63, 0,N63) -> 0
K64: -4.38 | L64: 2.723143555e-05 | M64: 0.938 | N64: 0.999994066 | O64: =IF(ISEVEN(ABS(100*K64)), 0, IF($C$9>K64, 0,L64)) -> 0 | P64: =IF($C$9>K64, 0,N64) -> 0
K65: -4.37 | L65: 2.844925645e-05 | M65: 0.937 | N65: 0.9999937877 | O65: =IF(ISEVEN(ABS(100*K65)), 0, IF($C$9>K65, 0,L65)) -> 0 | P65: =IF($C$9>K65, 0,N65) -> 0
K66: -4.36 | L66: 2.971856768e-05 | M66: 0.936 | N66: 0.9999934969 | O66: =IF(ISEVEN(ABS(100*K66)), 0, IF($C$9>K66, 0,L66)) -> 0 | P66: =IF($C$9>K66, 0,N66) -> 0
K67: -4.35 | L67: =_xlfn.NORM.S.DIST(K67,FALSE) -> 3.104140706e-05 | M67: =(5-K67)/10 -> 0.935 | N67: =_xlfn.NORM.S.DIST(-K67,TRUE) -> 0.9999931931 | O67: =IF(ISEVEN(ABS(100*K67)), 0, IF($C$9>K67, 0,L67)) -> 0 | P67: =IF($C$9>K67, 0,N67) -> 0
K68: =ROUND(K67+0.01,2) -> -4.34 | L68: 3.24198868e-05 | M68: 0.934 | N68: 0.9999928759 | O68: =IF(ISEVEN(ABS(100*K68)), 0, IF($C$9>K68, 0,L68)) -> 0 | P68: =IF($C$9>K68, 0,N68) -> 0
K69: -4.33 | L69: 3.385619598e-05 | M69: 0.933 | N69: 0.9999925445 | O69: =IF(ISEVEN(ABS(100*K69)), 0, IF($C$9>K69, 0,L69)) -> 0 | P69: =IF($C$9>K69, 0,N69) -> 0
K70: -4.32 | L70: 3.5352603e-05 | M70: 0.932 | N70: 0.9999921985 | O70: =IF(ISEVEN(ABS(100*K70)), 0, IF($C$9>K70, 0,L70)) -> 0 | P70: =IF($C$9>K70, 0,N70) -> 0
K71: -4.31 | L71: 3.691145826e-05 | M71: 0.931 | N71: 0.9999918373 | O71: =IF(ISEVEN(ABS(100*K71)), 0, IF($C$9>K71, 0,L71)) -> 0 | P71: =IF($C$9>K71, 0,N71) -> 0
K72: -4.3 | L72: 3.853519674e-05 | M72: 0.93 | N72: 0.9999914601 | O72: =IF(ISEVEN(ABS(100*K72)), 0, IF($C$9>K72, 0,L72)) -> 0 | P72: =IF($C$9>K72, 0,N72) -> 0
K73: -4.29 | L73: 4.02263408e-05 | M73: 0.929 | N73: 0.9999910663 | O73: =IF(ISEVEN(ABS(100*K73)), 0, IF($C$9>K73, 0,L73)) -> 0 | P73: =IF($C$9>K73, 0,N73) -> 0
K74: -4.28 | L74: 4.198750293e-05 | M74: 0.928 | N74: 0.9999906553 | O74: =IF(ISEVEN(ABS(100*K74)), 0, IF($C$9>K74, 0,L74)) -> 0 | P74: =IF($C$9>K74, 0,N74) -> 0
K75: -4.27 | L75: 4.38213887e-05 | M75: 0.927 | N75: 0.9999902264 | O75: =IF(ISEVEN(ABS(100*K75)), 0, IF($C$9>K75, 0,L75)) -> 0 | P75: =IF($C$9>K75, 0,N75) -> 0
K76: -4.26 | L76: 4.573079969e-05 | M76: 0.926 | N76: 0.9999897787 | O76: =IF(ISEVEN(ABS(100*K76)), 0, IF($C$9>K76, 0,L76)) -> 0 | P76: =IF($C$9>K76, 0,N76) -> 0
K77: -4.25 | L77: 4.771863654e-05 | M77: 0.925 | N77: 0.9999893115 | O77: =IF(ISEVEN(ABS(100*K77)), 0, IF($C$9>K77, 0,L77)) -> 0 | P77: =IF($C$9>K77, 0,N77) -> 0
K78: -4.24 | L78: 4.97879021e-05 | M78: 0.924 | N78: 0.999988824 | O78: =IF(ISEVEN(ABS(100*K78)), 0, IF($C$9>K78, 0,L78)) -> 0 | P78: =IF($C$9>K78, 0,N78) -> 0
K79: -4.23 | L79: 5.194170462e-05 | M79: 0.923 | N79: 0.9999883154 | O79: =IF(ISEVEN(ABS(100*K79)), 0, IF($C$9>K79, 0,L79)) -> 0 | P79: =IF($C$9>K79, 0,N79) -> 0
K80: -4.22 | L80: 5.418326109e-05 | M80: 0.922 | N80: 0.9999877849 | O80: =IF(ISEVEN(ABS(100*K80)), 0, IF($C$9>K80, 0,L80)) -> 0 | P80: =IF($C$9>K80, 0,N80) -> 0
K81: -4.21 | L81: 5.651590058e-05 | M81: 0.921 | N81: 0.9999872315 | O81: =IF(ISEVEN(ABS(100*K81)), 0, IF($C$9>K81, 0,L81)) -> 0 | P81: =IF($C$9>K81, 0,N81) -> 0
K82: -4.2 | L82: 5.894306776e-05 | M82: 0.92 | N82: 0.9999866543 | O82: =IF(ISEVEN(ABS(100*K82)), 0, IF($C$9>K82, 0,L82)) -> 0 | P82: =IF($C$9>K82, 0,N82) -> 0
K83: -4.19 | L83: 6.146832643e-05 | M83: 0.919 | N83: 0.9999860523 | O83: =IF(ISEVEN(ABS(100*K83)), 0, IF($C$9>K83, 0,L83)) -> 0 | P83: =IF($C$9>K83, 0,N83) -> 0
K84: -4.18 | L84: 6.409536323e-05 | M84: 0.918 | N84: 0.9999854245 | O84: =IF(ISEVEN(ABS(100*K84)), 0, IF($C$9>K84, 0,L84)) -> 0 | P84: =IF($C$9>K84, 0,N84) -> 0
K85: -4.17 | L85: 6.682799134e-05 | M85: 0.917 | N85: 0.99998477 | O85: =IF(ISEVEN(ABS(100*K85)), 0, IF($C$9>K85, 0,L85)) -> 0 | P85: =IF($C$9>K85, 0,N85) -> 0
K86: -4.16 | L86: 6.967015437e-05 | M86: 0.916 | N86: 0.9999840876 | O86: =IF(ISEVEN(ABS(100*K86)), 0, IF($C$9>K86, 0,L86)) -> 0 | P86: =IF($C$9>K86, 0,N86) -> 0
K87: -4.15 | L87: 7.26259303e-05 | M87: 0.915 | N87: 0.9999833762 | O87: =IF(ISEVEN(ABS(100*K87)), 0, IF($C$9>K87, 0,L87)) -> 0 | P87: =IF($C$9>K87, 0,N87) -> 0
K88: -4.14 | L88: 7.569953553e-05 | M88: 0.914 | N88: 0.9999826347 | O88: =IF(ISEVEN(ABS(100*K88)), 0, IF($C$9>K88, 0,L88)) -> 0 | P88: =IF($C$9>K88, 0,N88) -> 0
K89: -4.13 | L89: 7.889532901e-05 | M89: 0.913 | N89: 0.9999818618 | O89: =IF(ISEVEN(ABS(100*K89)), 0, IF($C$9>K89, 0,L89)) -> 0 | P89: =IF($C$9>K89, 0,N89) -> 0
K90: -4.12 | L90: 8.221781654e-05 | M90: 0.912 | N90: 0.9999810564 | O90: =IF(ISEVEN(ABS(100*K90)), 0, IF($C$9>K90, 0,L90)) -> 0 | P90: =IF($C$9>K90, 0,N90) -> 0
K91: -4.11 | L91: 8.567165506e-05 | M91: 0.911 | N91: 0.999980217 | O91: =IF(ISEVEN(ABS(100*K91)), 0, IF($C$9>K91, 0,L91)) -> 0 | P91: =IF($C$9>K91, 0,N91) -> 0
K92: -4.1 | L92: 8.926165718e-05 | M92: 0.91 | N92: 0.9999793425 | O92: =IF(ISEVEN(ABS(100*K92)), 0, IF($C$9>K92, 0,L92)) -> 0 | P92: =IF($C$9>K92, 0,N92) -> 0
K93: -4.09 | L93: 9.299279572e-05 | M93: 0.909 | N93: 0.9999784313 | O93: =IF(ISEVEN(ABS(100*K93)), 0, IF($C$9>K93, 0,L93)) -> 0 | P93: =IF($C$9>K93, 0,N93) -> 0
K94: -4.08 | L94: 9.68702084e-05 | M94: 0.908 | N94: 0.9999774821 | O94: =IF(ISEVEN(ABS(100*K94)), 0, IF($C$9>K94, 0,L94)) -> 0 | P94: =IF($C$9>K94, 0,N94) -> 0
K95: -4.07 | L95: 0.0001008992026 | M95: 0.907 | N95: 0.9999764934 | O95: =IF(ISEVEN(ABS(100*K95)), 0, IF($C$9>K95, 0,L95)) -> 0 | P95: =IF($C$9>K95, 0,N95) -> 0
K96: -4.06 | L96: 0.0001050852604 | M96: 0.906 | N96: 0.9999754636 | O96: =IF(ISEVEN(ABS(100*K96)), 0, IF($C$9>K96, 0,L96)) -> 0 | P96: =IF($C$9>K96, 0,N96) -> 0
K97: -4.05 | L97: 0.0001094340434 | M97: 0.905 | N97: 0.9999743912 | O97: =IF(ISEVEN(ABS(100*K97)), 0, IF($C$9>K97, 0,L97)) -> 0 | P97: =IF($C$9>K97, 0,N97) -> 0
K98: -4.04 | L98: 0.0001139513981 | M98: 0.904 | N98: 0.9999732744 | O98: =IF(ISEVEN(ABS(100*K98)), 0, IF($C$9>K98, 0,L98)) -> 0 | P98: =IF($C$9>K98, 0,N98) -> 0
K99: -4.03 | L99: 0.0001186433608 | M99: 0.903 | N99: 0.9999721116 | O99: =IF(ISEVEN(ABS(100*K99)), 0, IF($C$9>K99, 0,L99)) -> 0 | P99: =IF($C$9>K99, 0,N99) -> 0
K100: -4.02 | L100: 0.0001235161633 | M100: 0.902 | N100: 0.9999709009 | O100: =IF(ISEVEN(ABS(100*K100)), 0, IF($C$9>K100, 0,L100)) -> 0 | P100: =IF($C$9>K100, 0,N100) -> 0
K101: -4.01 | L101: 0.0001285762386 | M101: 0.901 | N101: 0.9999696406 | O101: =IF(ISEVEN(ABS(100*K101)), 0, IF($C$9>K101, 0,L101)) -> 0 | P101: =IF($C$9>K101, 0,N101) -> 0
K102: -4 | L102: 0.0001338302258 | M102: 0.9 | N102: 0.9999683288 | O102: =IF(ISEVEN(ABS(100*K102)), 0, IF($C$9>K102, 0,L102)) -> 0 | P102: =IF($C$9>K102, 0,N102) -> 0
K103: -3.99 | L103: 0.0001392849765 | M103: 0.899 | N103: 0.9999669634 | O103: =IF(ISEVEN(ABS(100*K103)), 0, IF($C$9>K103, 0,L103)) -> 0 | P103: =IF($C$9>K103, 0,N103) -> 0
K104: -3.98 | L104: 0.0001449475604 | M104: 0.898 | N104: 0.9999655424 | O104: =IF(ISEVEN(ABS(100*K104)), 0, IF($C$9>K104, 0,L104)) -> 0 | P104: =IF($C$9>K104, 0,N104) -> 0
K105: -3.97 | L105: 0.0001508252716 | M105: 0.897 | N105: 0.9999640637 | O105: =IF(ISEVEN(ABS(100*K105)), 0, IF($C$9>K105, 0,L105)) -> 0 | P105: =IF($C$9>K105, 0,N105) -> 0
K106: -3.96 | L106: 0.0001569256341 | M106: 0.896 | N106: 0.9999625251 | O106: =IF(ISEVEN(ABS(100*K106)), 0, IF($C$9>K106, 0,L106)) -> 0 | P106: =IF($C$9>K106, 0,N106) -> 0
K107: -3.95 | L107: 0.0001632564088 | M107: 0.895 | N107: 0.9999609244 | O107: =IF(ISEVEN(ABS(100*K107)), 0, IF($C$9>K107, 0,L107)) -> 0 | P107: =IF($C$9>K107, 0,N107) -> 0
K108: -3.94 | L108: 0.0001698255994 | M108: 0.894 | N108: 0.9999592592 | O108: =IF(ISEVEN(ABS(100*K108)), 0, IF($C$9>K108, 0,L108)) -> 0 | P108: =IF($C$9>K108, 0,N108) -> 0
K109: -3.93 | L109: 0.0001766414593 | M109: 0.893 | N109: 0.9999575271 | O109: =IF(ISEVEN(ABS(100*K109)), 0, IF($C$9>K109, 0,L109)) -> 0 | P109: =IF($C$9>K109, 0,N109) -> 0
K110: -3.92 | L110: 0.000183712498 | M110: 0.892 | N110: 0.9999557255 | O110: =IF(ISEVEN(ABS(100*K110)), 0, IF($C$9>K110, 0,L110)) -> 0 | P110: =IF($C$9>K110, 0,N110) -> 0
K111: -3.91 | L111: 0.0001910474879 | M111: 0.891 | N111: 0.9999538519 | O111: =IF(ISEVEN(ABS(100*K111)), 0, IF($C$9>K111, 0,L111)) -> 0 | P111: =IF($C$9>K111, 0,N111) -> 0
K112: -3.9 | L112: 0.0001986554714 | M112: 0.89 | N112: 0.9999519037 | O112: =IF(ISEVEN(ABS(100*K112)), 0, IF($C$9>K112, 0,L112)) -> 0 | P112: =IF($C$9>K112, 0,N112) -> 0
K113: -3.89 | L113: 0.000206545768 | M113: 0.889 | N113: 0.9999498779 | O113: =IF(ISEVEN(ABS(100*K113)), 0, IF($C$9>K113, 0,L113)) -> 0 | P113: =IF($C$9>K113, 0,N113) -> 0
K114: -3.88 | L114: 0.0002147279815 | M114: 0.888 | N114: 0.9999477718 | O114: =IF(ISEVEN(ABS(100*K114)), 0, IF($C$9>K114, 0,L114)) -> 0 | P114: =IF($C$9>K114, 0,N114) -> 0
K115: -3.87 | L115: 0.0002232120072 | M115: 0.887 | N115: 0.9999455823 | O115: =IF(ISEVEN(ABS(100*K115)), 0, IF($C$9>K115, 0,L115)) -> 0 | P115: =IF($C$9>K115, 0,N115) -> 0
K116: -3.86 | L116: 0.0002320080397 | M116: 0.886 | N116: 0.9999433065 | O116: =IF(ISEVEN(ABS(100*K116)), 0, IF($C$9>K116, 0,L116)) -> 0 | P116: =IF($C$9>K116, 0,N116) -> 0
K117: -3.85 | L117: 0.0002411265802 | M117: 0.885 | N117: 0.9999409411 | O117: =IF(ISEVEN(ABS(100*K117)), 0, IF($C$9>K117, 0,L117)) -> 0 | P117: =IF($C$9>K117, 0,N117) -> 0
K118: -3.84 | L118: 0.0002505784449 | M118: 0.884 | N118: 0.9999384828 | O118: =IF(ISEVEN(ABS(100*K118)), 0, IF($C$9>K118, 0,L118)) -> 0 | P118: =IF($C$9>K118, 0,N118) -> 0
K119: -3.83 | L119: 0.0002603747722 | M119: 0.883 | N119: 0.9999359284 | O119: =IF(ISEVEN(ABS(100*K119)), 0, IF($C$9>K119, 0,L119)) -> 0 | P119: =IF($C$9>K119, 0,N119) -> 0
K120: -3.82 | L120: 0.0002705270315 | M120: 0.882 | N120: 0.9999332742 | O120: =IF(ISEVEN(ABS(100*K120)), 0, IF($C$9>K120, 0,L120)) -> 0 | P120: =IF($C$9>K120, 0,N120) -> 0
K121: -3.81 | L121: 0.0002810470308 | M121: 0.881 | N121: 0.9999305166 | O121: =IF(ISEVEN(ABS(100*K121)), 0, IF($C$9>K121, 0,L121)) -> 0 | P121: =IF($C$9>K121, 0,N121) -> 0
K122: -3.8 | L122: 0.0002919469258 | M122: 0.88 | N122: 0.999927652 | O122: =IF(ISEVEN(ABS(100*K122)), 0, IF($C$9>K122, 0,L122)) -> 0 | P122: =IF($C$9>K122, 0,N122) -> 0
K123: -3.79 | L123: 0.0003032392278 | M123: 0.879 | N123: 0.9999246764 | O123: =IF(ISEVEN(ABS(100*K123)), 0, IF($C$9>K123, 0,L123)) -> 0 | P123: =IF($C$9>K123, 0,N123) -> 0
K124: -3.78 | L124: 0.0003149368129 | M124: 0.878 | N124: 0.9999215858 | O124: =IF(ISEVEN(ABS(100*K124)), 0, IF($C$9>K124, 0,L124)) -> 0 | P124: =IF($C$9>K124, 0,N124) -> 0
K125: -3.77 | L125: 0.0003270529305 | M125: 0.877 | N125: 0.9999183762 | O125: =IF(ISEVEN(ABS(100*K125)), 0, IF($C$9>K125, 0,L125)) -> 0 | P125: =IF($C$9>K125, 0,N125) -> 0
K126: -3.76 | L126: 0.0003396012125 | M126: 0.876 | N126: 0.9999150433 | O126: =IF(ISEVEN(ABS(100*K126)), 0, IF($C$9>K126, 0,L126)) -> 0 | P126: =IF($C$9>K126, 0,N126) -> 0
K127: -3.75 | L127: 0.0003525956824 | M127: 0.875 | N127: 0.9999115827 | O127: =IF(ISEVEN(ABS(100*K127)), 0, IF($C$9>K127, 0,L127)) -> 0 | P127: =IF($C$9>K127, 0,N127) -> 0
K128: -3.74 | L128: 0.0003660507646 | M128: 0.874 | N128: 0.9999079899 | O128: =IF(ISEVEN(ABS(100*K128)), 0, IF($C$9>K128, 0,L128)) -> 0 | P128: =IF($C$9>K128, 0,N128) -> 0
K129: -3.73 | L129: 0.0003799812938 | M129: 0.873 | N129: 0.9999042601 | O129: =IF(ISEVEN(ABS(100*K129)), 0, IF($C$9>K129, 0,L129)) -> 0 | P129: =IF($C$9>K129, 0,N129) -> 0
K130: -3.72 | L130: 0.000394402525 | M130: 0.872 | N130: 0.9999003886 | O130: =IF(ISEVEN(ABS(100*K130)), 0, IF($C$9>K130, 0,L130)) -> 0 | P130: =IF($C$9>K130, 0,N130) -> 0
K131: -3.71 | L131: =_xlfn.NORM.S.DIST(K131,FALSE) -> 0.0004093301425 | M131: =(5-K131)/10 -> 0.871 | N131: =_xlfn.NORM.S.DIST(-K131,TRUE) -> 0.9998963704 | O131: =IF(ISEVEN(ABS(100*K131)), 0, IF($C$9>K131, 0,L131)) -> 0 | P131: =IF($C$9>K131, 0,N131) -> 0
K132: =ROUND(K131+0.01,2) -> -3.7 | L132: 0.0004247802706 | M132: 0.87 | N132: 0.9998922003 | O132: =IF(ISEVEN(ABS(100*K132)), 0, IF($C$9>K132, 0,L132)) -> 0 | P132: =IF($C$9>K132, 0,N132) -> 0
K133: -3.69 | L133: 0.0004407694831 | M133: 0.869 | N133: 0.999887873 | O133: =IF(ISEVEN(ABS(100*K133)), 0, IF($C$9>K133, 0,L133)) -> 0 | P133: =IF($C$9>K133, 0,N133) -> 0
K134: -3.68 | L134: 0.0004573148141 | M134: 0.868 | N134: 0.999883383 | O134: =IF(ISEVEN(ABS(100*K134)), 0, IF($C$9>K134, 0,L134)) -> 0 | P134: =IF($C$9>K134, 0,N134) -> 0
K135: -3.67 | L135: 0.0004744337676 | M135: 0.867 | N135: 0.9998787248 | O135: =IF(ISEVEN(ABS(100*K135)), 0, IF($C$9>K135, 0,L135)) -> 0 | P135: =IF($C$9>K135, 0,N135) -> 0
K136: -3.66 | L136: 0.0004921443288 | M136: 0.866 | N136: 0.9998738924 | O136: =IF(ISEVEN(ABS(100*K136)), 0, IF($C$9>K136, 0,L136)) -> 0 | P136: =IF($C$9>K136, 0,N136) -> 0
K137: -3.65 | L137: 0.0005104649743 | M137: 0.865 | N137: 0.9998688798 | O137: =IF(ISEVEN(ABS(100*K137)), 0, IF($C$9>K137, 0,L137)) -> 0 | P137: =IF($C$9>K137, 0,N137) -> 0
K138: -3.64 | L138: 0.0005294146831 | M138: 0.864 | N138: 0.999863681 | O138: =IF(ISEVEN(ABS(100*K138)), 0, IF($C$9>K138, 0,L138)) -> 0 | P138: =IF($C$9>K138, 0,N138) -> 0
K139: -3.63 | L139: 0.0005490129474 | M139: 0.863 | N139: 0.9998582894 | O139: =IF(ISEVEN(ABS(100*K139)), 0, IF($C$9>K139, 0,L139)) -> 0 | P139: =IF($C$9>K139, 0,N139) -> 0
K140: -3.62 | L140: 0.0005692797838 | M140: 0.862 | N140: 0.9998526985 | O140: =IF(ISEVEN(ABS(100*K140)), 0, IF($C$9>K140, 0,L140)) -> 0 | P140: =IF($C$9>K140, 0,N140) -> 0
K141: -3.61 | L141: 0.0005902357449 | M141: 0.861 | N141: 0.9998469015 | O141: =IF(ISEVEN(ABS(100*K141)), 0, IF($C$9>K141, 0,L141)) -> 0 | P141: =IF($C$9>K141, 0,N141) -> 0
K142: -3.6 | L142: 0.0006119019301 | M142: 0.86 | N142: 0.9998408914 | O142: =IF(ISEVEN(ABS(100*K142)), 0, IF($C$9>K142, 0,L142)) -> 0 | P142: =IF($C$9>K142, 0,N142) -> 0
K143: -3.59 | L143: 0.0006342999975 | M143: 0.859 | N143: 0.999834661 | O143: =IF(ISEVEN(ABS(100*K143)), 0, IF($C$9>K143, 0,L143)) -> 0 | P143: =IF($C$9>K143, 0,N143) -> 0
K144: -3.58 | L144: 0.0006574521757 | M144: 0.858 | N144: 0.9998282029 | O144: =IF(ISEVEN(ABS(100*K144)), 0, IF($C$9>K144, 0,L144)) -> 0 | P144: =IF($C$9>K144, 0,N144) -> 0
K145: -3.57 | L145: 0.0006813812751 | M145: 0.857 | N145: 0.9998215094 | O145: =IF(ISEVEN(ABS(100*K145)), 0, IF($C$9>K145, 0,L145)) -> 0 | P145: =IF($C$9>K145, 0,N145) -> 0
K146: -3.56 | L146: 0.0007061107005 | M146: 0.856 | N146: 0.9998145726 | O146: =IF(ISEVEN(ABS(100*K146)), 0, IF($C$9>K146, 0,L146)) -> 0 | P146: =IF($C$9>K146, 0,N146) -> 0
K147: -3.55 | L147: 0.0007316644628 | M147: 0.855 | N147: 0.9998073844 | O147: =IF(ISEVEN(ABS(100*K147)), 0, IF($C$9>K147, 0,L147)) -> 0 | P147: =IF($C$9>K147, 0,N147) -> 0
K148: -3.54 | L148: 0.0007580671914 | M148: 0.854 | N148: 0.9997999365 | O148: =IF(ISEVEN(ABS(100*K148)), 0, IF($C$9>K148, 0,L148)) -> 0 | P148: =IF($C$9>K148, 0,N148) -> 0
K149: -3.53 | L149: 0.0007853441464 | M149: 0.853 | N149: 0.9997922202 | O149: =IF(ISEVEN(ABS(100*K149)), 0, IF($C$9>K149, 0,L149)) -> 0 | P149: =IF($C$9>K149, 0,N149) -> 0
K150: -3.52 | L150: 0.0008135212311 | M150: 0.852 | N150: 0.9997842266 | O150: =IF(ISEVEN(ABS(100*K150)), 0, IF($C$9>K150, 0,L150)) -> 0 | P150: =IF($C$9>K150, 0,N150) -> 0
K151: -3.51 | L151: 0.0008426250047 | M151: 0.851 | N151: 0.9997759467 | O151: =IF(ISEVEN(ABS(100*K151)), 0, IF($C$9>K151, 0,L151)) -> 0 | P151: =IF($C$9>K151, 0,N151) -> 0
K152: -3.5 | L152: 0.000872682695 | M152: 0.85 | N152: 0.9997673709 | O152: =IF(ISEVEN(ABS(100*K152)), 0, IF($C$9>K152, 0,L152)) -> 0 | P152: =IF($C$9>K152, 0,N152) -> 0
K153: -3.49 | L153: 0.0009037222113 | M153: 0.849 | N153: 0.9997584897 | O153: =IF(ISEVEN(ABS(100*K153)), 0, IF($C$9>K153, 0,L153)) -> 0 | P153: =IF($C$9>K153, 0,N153) -> 0
K154: -3.48 | L154: 0.0009357721569 | M154: 0.848 | N154: 0.9997492931 | O154: =IF(ISEVEN(ABS(100*K154)), 0, IF($C$9>K154, 0,L154)) -> 0 | P154: =IF($C$9>K154, 0,N154) -> 0
K155: -3.47 | L155: 0.0009688618429 | M155: 0.847 | N155: 0.9997397708 | O155: =IF(ISEVEN(ABS(100*K155)), 0, IF($C$9>K155, 0,L155)) -> 0 | P155: =IF($C$9>K155, 0,N155) -> 0
K156: -3.46 | L156: 0.001003021301 | M156: 0.846 | N156: 0.9997299123 | O156: =IF(ISEVEN(ABS(100*K156)), 0, IF($C$9>K156, 0,L156)) -> 0 | P156: =IF($C$9>K156, 0,N156) -> 0
K157: -3.45 | L157: 0.001038281296 | M157: 0.845 | N157: 0.9997197067 | O157: =IF(ISEVEN(ABS(100*K157)), 0, IF($C$9>K157, 0,L157)) -> 0 | P157: =IF($C$9>K157, 0,N157) -> 0
K158: -3.44 | L158: 0.00107467334 | M158: 0.844 | N158: 0.9997091429 | O158: =IF(ISEVEN(ABS(100*K158)), 0, IF($C$9>K158, 0,L158)) -> 0 | P158: =IF($C$9>K158, 0,N158) -> 0
K159: -3.43 | L159: 0.001112229707 | M159: 0.843 | N159: 0.9996982094 | O159: =IF(ISEVEN(ABS(100*K159)), 0, IF($C$9>K159, 0,L159)) -> 0 | P159: =IF($C$9>K159, 0,N159) -> 0
K160: -3.42 | L160: 0.001150983444 | M160: 0.842 | N160: 0.9996868943 | O160: =IF(ISEVEN(ABS(100*K160)), 0, IF($C$9>K160, 0,L160)) -> 0 | P160: =IF($C$9>K160, 0,N160) -> 0
K161: -3.41 | L161: 0.001190968386 | M161: 0.841 | N161: 0.9996751856 | O161: =IF(ISEVEN(ABS(100*K161)), 0, IF($C$9>K161, 0,L161)) -> 0 | P161: =IF($C$9>K161, 0,N161) -> 0
K162: -3.4 | L162: 0.001232219168 | M162: 0.84 | N162: 0.9996630707 | O162: =IF(ISEVEN(ABS(100*K162)), 0, IF($C$9>K162, 0,L162)) -> 0 | P162: =IF($C$9>K162, 0,N162) -> 0
K163: -3.39 | L163: 0.001274771244 | M163: 0.839 | N163: 0.9996505369 | O163: =IF(ISEVEN(ABS(100*K163)), 0, IF($C$9>K163, 0,L163)) -> 0 | P163: =IF($C$9>K163, 0,N163) -> 0
K164: -3.38 | L164: 0.001318660892 | M164: 0.838 | N164: 0.9996375709 | O164: =IF(ISEVEN(ABS(100*K164)), 0, IF($C$9>K164, 0,L164)) -> 0 | P164: =IF($C$9>K164, 0,N164) -> 0
K165: -3.37 | L165: 0.001363925236 | M165: 0.837 | N165: 0.9996241591 | O165: =IF(ISEVEN(ABS(100*K165)), 0, IF($C$9>K165, 0,L165)) -> 0 | P165: =IF($C$9>K165, 0,N165) -> 0
K166: -3.36 | L166: 0.001410602257 | M166: 0.836 | N166: 0.9996102876 | O166: =IF(ISEVEN(ABS(100*K166)), 0, IF($C$9>K166, 0,L166)) -> 0 | P166: =IF($C$9>K166, 0,N166) -> 0
K167: -3.35 | L167: 0.001458730805 | M167: 0.835 | N167: 0.9995959422 | O167: =IF(ISEVEN(ABS(100*K167)), 0, IF($C$9>K167, 0,L167)) -> 0 | P167: =IF($C$9>K167, 0,N167) -> 0
K168: -3.34 | L168: 0.001508350615 | M168: 0.834 | N168: 0.9995811081 | O168: =IF(ISEVEN(ABS(100*K168)), 0, IF($C$9>K168, 0,L168)) -> 0 | P168: =IF($C$9>K168, 0,N168) -> 0
K169: -3.33 | L169: 0.001559502322 | M169: 0.833 | N169: 0.9995657701 | O169: =IF(ISEVEN(ABS(100*K169)), 0, IF($C$9>K169, 0,L169)) -> 0 | P169: =IF($C$9>K169, 0,N169) -> 0
K170: -3.32 | L170: 0.001612227472 | M170: 0.832 | N170: 0.9995499128 | O170: =IF(ISEVEN(ABS(100*K170)), 0, IF($C$9>K170, 0,L170)) -> 0 | P170: =IF($C$9>K170, 0,N170) -> 0
K171: -3.31 | L171: 0.00166656854 | M171: 0.831 | N171: 0.9995335201 | O171: =IF(ISEVEN(ABS(100*K171)), 0, IF($C$9>K171, 0,L171)) -> 0 | P171: =IF($C$9>K171, 0,N171) -> 0
K172: -3.3 | L172: 0.001722568939 | M172: 0.83 | N172: 0.9995165759 | O172: =IF(ISEVEN(ABS(100*K172)), 0, IF($C$9>K172, 0,L172)) -> 0 | P172: =IF($C$9>K172, 0,N172) -> 0
K173: -3.29 | L173: 0.00178027304 | M173: 0.829 | N173: 0.9994990631 | O173: =IF(ISEVEN(ABS(100*K173)), 0, IF($C$9>K173, 0,L173)) -> 0 | P173: =IF($C$9>K173, 0,N173) -> 0
K174: -3.28 | L174: 0.001839726181 | M174: 0.828 | N174: 0.9994809646 | O174: =IF(ISEVEN(ABS(100*K174)), 0, IF($C$9>K174, 0,L174)) -> 0 | P174: =IF($C$9>K174, 0,N174) -> 0
K175: -3.27 | L175: 0.001900974683 | M175: 0.827 | N175: 0.9994622626 | O175: =IF(ISEVEN(ABS(100*K175)), 0, IF($C$9>K175, 0,L175)) -> 0 | P175: =IF($C$9>K175, 0,N175) -> 0
K176: -3.26 | L176: 0.001964065866 | M176: 0.826 | N176: 0.9994429389 | O176: =IF(ISEVEN(ABS(100*K176)), 0, IF($C$9>K176, 0,L176)) -> 0 | P176: =IF($C$9>K176, 0,N176) -> 0
K177: -3.25 | L177: 0.002029048057 | M177: 0.825 | N177: 0.999422975 | O177: =IF(ISEVEN(ABS(100*K177)), 0, IF($C$9>K177, 0,L177)) -> 0 | P177: =IF($C$9>K177, 0,N177) -> 0
K178: -3.24 | L178: 0.002095970613 | M178: 0.824 | N178: 0.9994023515 | O178: =IF(ISEVEN(ABS(100*K178)), 0, IF($C$9>K178, 0,L178)) -> 0 | P178: =IF($C$9>K178, 0,N178) -> 0
K179: -3.23 | L179: 0.002164883925 | M179: 0.823 | N179: 0.9993810489 | O179: =IF(ISEVEN(ABS(100*K179)), 0, IF($C$9>K179, 0,L179)) -> 0 | P179: =IF($C$9>K179, 0,N179) -> 0
K180: -3.22 | L180: 0.00223583944 | M180: 0.822 | N180: 0.999359047 | O180: =IF(ISEVEN(ABS(100*K180)), 0, IF($C$9>K180, 0,L180)) -> 0 | P180: =IF($C$9>K180, 0,N180) -> 0
K181: -3.21 | L181: 0.002308889668 | M181: 0.821 | N181: 0.9993363251 | O181: =IF(ISEVEN(ABS(100*K181)), 0, IF($C$9>K181, 0,L181)) -> 0 | P181: =IF($C$9>K181, 0,N181) -> 0
K182: -3.2 | L182: 0.002384088201 | M182: 0.82 | N182: 0.9993128621 | O182: =IF(ISEVEN(ABS(100*K182)), 0, IF($C$9>K182, 0,L182)) -> 0 | P182: =IF($C$9>K182, 0,N182) -> 0
K183: -3.19 | L183: 0.002461489725 | M183: 0.819 | N183: 0.999288636 | O183: =IF(ISEVEN(ABS(100*K183)), 0, IF($C$9>K183, 0,L183)) -> 0 | P183: =IF($C$9>K183, 0,N183) -> 0
K184: -3.18 | L184: 0.002541150029 | M184: 0.818 | N184: 0.9992636247 | O184: =IF(ISEVEN(ABS(100*K184)), 0, IF($C$9>K184, 0,L184)) -> 0 | P184: =IF($C$9>K184, 0,N184) -> 0
K185: -3.17 | L185: 0.002623126025 | M185: 0.817 | N185: 0.9992378053 | O185: =IF(ISEVEN(ABS(100*K185)), 0, IF($C$9>K185, 0,L185)) -> 0 | P185: =IF($C$9>K185, 0,N185) -> 0
K186: -3.16 | L186: 0.002707475757 | M186: 0.816 | N186: 0.9992111543 | O186: =IF(ISEVEN(ABS(100*K186)), 0, IF($C$9>K186, 0,L186)) -> 0 | P186: =IF($C$9>K186, 0,N186) -> 0
K187: -3.15 | L187: 0.002794258415 | M187: 0.815 | N187: 0.9991836477 | O187: =IF(ISEVEN(ABS(100*K187)), 0, IF($C$9>K187, 0,L187)) -> 0 | P187: =IF($C$9>K187, 0,N187) -> 0
K188: -3.14 | L188: 0.002883534348 | M188: 0.814 | N188: 0.9991552608 | O188: =IF(ISEVEN(ABS(100*K188)), 0, IF($C$9>K188, 0,L188)) -> 0 | P188: =IF($C$9>K188, 0,N188) -> 0
K189: -3.13 | L189: 0.002975365075 | M189: 0.813 | N189: 0.9991259685 | O189: =IF(ISEVEN(ABS(100*K189)), 0, IF($C$9>K189, 0,L189)) -> 0 | P189: =IF($C$9>K189, 0,N189) -> 0
K190: -3.12 | L190: 0.003069813301 | M190: 0.812 | N190: 0.9990957448 | O190: =IF(ISEVEN(ABS(100*K190)), 0, IF($C$9>K190, 0,L190)) -> 0 | P190: =IF($C$9>K190, 0,N190) -> 0
K191: -3.11 | L191: 0.003166942926 | M191: 0.811 | N191: 0.9990645633 | O191: =IF(ISEVEN(ABS(100*K191)), 0, IF($C$9>K191, 0,L191)) -> 0 | P191: =IF($C$9>K191, 0,N191) -> 0
K192: -3.1 | L192: 0.003266819056 | M192: 0.81 | N192: 0.9990323968 | O192: =IF(ISEVEN(ABS(100*K192)), 0, IF($C$9>K192, 0,L192)) -> 0 | P192: =IF($C$9>K192, 0,N192) -> 0
K193: -3.09 | L193: 0.003369508021 | M193: 0.809 | N193: 0.9989992175 | O193: =IF(ISEVEN(ABS(100*K193)), 0, IF($C$9>K193, 0,L193)) -> 0 | P193: =IF($C$9>K193, 0,N193) -> 0
K194: -3.08 | L194: 0.003475077378 | M194: 0.808 | N194: 0.998964997 | O194: =IF(ISEVEN(ABS(100*K194)), 0, IF($C$9>K194, 0,L194)) -> 0 | P194: =IF($C$9>K194, 0,N194) -> 0
K195: -3.07 | L195: =_xlfn.NORM.S.DIST(K195,FALSE) -> 0.003583595929 | M195: =(5-K195)/10 -> 0.807 | N195: =_xlfn.NORM.S.DIST(-K195,TRUE) -> 0.9989297061 | O195: =IF(ISEVEN(ABS(100*K195)), 0, IF($C$9>K195, 0,L195)) -> 0 | P195: =IF($C$9>K195, 0,N195) -> 0
K196: =ROUND(K195+0.01,2) -> -3.06 | L196: 0.00369513373 | M196: 0.806 | N196: 0.998893315 | O196: =IF(ISEVEN(ABS(100*K196)), 0, IF($C$9>K196, 0,L196)) -> 0 | P196: =IF($C$9>K196, 0,N196) -> 0
K197: -3.05 | L197: 0.003809762098 | M197: 0.805 | N197: 0.9988557932 | O197: =IF(ISEVEN(ABS(100*K197)), 0, IF($C$9>K197, 0,L197)) -> 0 | P197: =IF($C$9>K197, 0,N197) -> 0
K198: -3.04 | L198: 0.003927553629 | M198: 0.804 | N198: 0.9988171093 | O198: =IF(ISEVEN(ABS(100*K198)), 0, IF($C$9>K198, 0,L198)) -> 0 | P198: =IF($C$9>K198, 0,N198) -> 0
K199: -3.03 | L199: 0.0040485822 | M199: 0.803 | N199: 0.9987772313 | O199: =IF(ISEVEN(ABS(100*K199)), 0, IF($C$9>K199, 0,L199)) -> 0 | P199: =IF($C$9>K199, 0,N199) -> 0
K200: -3.02 | L200: 0.004172922985 | M200: 0.802 | N200: 0.9987361266 | O200: =IF(ISEVEN(ABS(100*K200)), 0, IF($C$9>K200, 0,L200)) -> 0 | P200: =IF($C$9>K200, 0,N200) -> 0
... 802 more rows

Sheet Propensity Varies
D1: Propensity Level (0-100) | K1: X Axis | L1: Mean P | M1: SD from -10 | N1: PDF | O1: Shading | Q1: Sanctioning | R1: CDF Z | S1: CDF | T1: Cutoff X | U1: Chart CDF
K2: -10 | L2: =F9 -> 1 | M2: =G9 -> 11 | N2: =_xlfn.NORM.S.DIST(M2,FALSE) -> 2.118819254e-27 | O2: =IF(ISEVEN(ABS(100*K2)), 0, IF($C$9>K2, 0,N2)) -> 0 | Q2: 0 | R2: -5 | S2: =_xlfn.NORM.S.DIST(R2,TRUE) -> 2.866515719e-07 | T2: 5 | U2: =IF($G$9>T2, S2,0) -> 2.866515719e-07
K3: =ROUND(K2+0.01,2) -> -9.99 | L3: =ROUND(L2+0.01,2) -> 1.01 | M3: =ROUND(M2-0.01,2) -> 10.99 | N3: =_xlfn.NORM.S.DIST(M3,FALSE) -> 2.365073211e-27 | O3: =IF(ISEVEN(ABS(100*K3)), 0, IF($C$9>K3, 0,N3)) -> 0 | Q3: =(K3 +10)/20 -> 0.0005 | R3: =ROUND(R2+0.005,4) -> -4.995 | S3: =_xlfn.NORM.S.DIST(R3,TRUE) -> 2.941788371e-07 | T3: =ROUND(T2+0.005,3) -> 5.005 | U3: =IF($G$9>T3, S3,0) -> 2.941788371e-07
K4: =ROUND(K3+0.01,2) -> -9.98 | L4: =ROUND(L3+0.01,2) -> 1.02 | M4: =ROUND(M3-0.01,2) -> 10.98 | N4: 2.639683379e-27 | O4: =IF(ISEVEN(ABS(100*K4)), 0, IF($C$9>K4, 0,N4)) -> 0 | Q4: 0.001 | R4: =ROUND(R3+0.005,4) -> -4.99 | S4: 3.018964625e-07 | T4: =ROUND(T3+0.005,3) -> 5.01 | U4: =IF($G$9>T4, S4,0) -> 3.018964625e-07
A5: Hint: Move the slider to see the effects of changes in propensity | K5: -9.97 | L5: 1.03 | M5: 10.97 | N5: 2.945884105e-27 | O5: =IF(ISEVEN(ABS(100*K5)), 0, IF($C$9>K5, 0,N5)) -> 0 | Q5: 0.0015 | R5: -4.985 | S5: 3.098090645e-07 | T5: 5.015 | U5: =IF($G$9>T5, S5,0) -> 3.098090645e-07
K6: -9.96 | L6: 1.04 | M6: 10.96 | N6: 3.287275077e-27 | O6: =IF(ISEVEN(ABS(100*K6)), 0, IF($C$9>K6, 0,N6)) -> 0 | Q6: 0.002 | R6: -4.98 | S6: 3.179213662e-07 | T6: 5.02 | U6: =IF($G$9>T6, S6,0) -> 3.179213662e-07
A7: Propensity | B7: Crime | C7: Sanction | D7: Sanction | E7: X at | F7: X at Mean | G7: SD from | H7: Sanction | I7: Sanction | K7: -9.95 | L7: 1.05 | M7: 10.95 | N7: 3.667862171e-27 | O7: =IF(ISEVEN(ABS(100*K7)), 0, IF($C$9>K7, 0,N7)) -> 0 | Q7: 0.0025 | R7: -4.975 | S7: 3.262381996e-07 | T7: 5.025 | U7: =IF($G$9>T7, S7,0) -> 3.262381996e-07
A8: Level | B8: Rate | C8: X | D8: Y | E8: Mean -5 | F8: Propensity | G8: X = -10 | H8: X | I8: Y | K8: -9.94 | L8: 1.06 | M8: 10.94 | N8: 4.092102831e-27 | O8: =IF(ISEVEN(ABS(100*K8)), 0, IF($C$9>K8, 0,N8)) -> 0 | Q8: 0.003 | R8: -4.97 | S8: 3.347645083e-07 | T8: 5.03 | U8: =IF($G$9>T8, S8,0) -> 3.347645083e-07
A9: 60 | B9: =_xlfn.NORM.S.DIST(F9, TRUE) -> 0.8413447461 | C9: 0 | D9: 0 | E9: =A9/10-10 -> -4 | F9: =E9+5 -> 1 | G9: =10+F9 -> 11 | H9: 0 | I9: =(G9-5)/10 -> 0.6 | K9: -9.93 | L9: 1.07 | M9: 10.93 | N9: 4.564956466e-27 | O9: =IF(ISEVEN(ABS(100*K9)), 0, IF($C$9>K9, 0,N9)) -> 0 | Q9: 0.0035 | R9: -4.965 | S9: 3.435053498e-07 | T9: 5.035 | U9: =IF($G$9>T9, S9,0) -> 3.435053498e-07
C10: 0 | D10: 0.45 | H10: 1 | I10: =(G9-5)/10 -> 0.6 | K10: -9.92 | L10: 1.08 | M10: 10.92 | N10: 5.091940408e-27 | O10: =IF(ISEVEN(ABS(100*K10)), 0, IF($C$9>K10, 0,N10)) -> 0 | Q10: 0.004 | R10: -4.96 | S10: 3.524658982e-07 | T10: 5.04 | U10: =IF($G$9>T10, S10,0) -> 3.524658982e-07
K11: -9.91 | L11: 1.09 | M11: 10.91 | N11: 5.679192049e-27 | O11: =IF(ISEVEN(ABS(100*K11)), 0, IF($C$9>K11, 0,N11)) -> 0 | Q11: 0.0045 | R11: -4.955 | S11: 3.616514461e-07 | T11: 5.045 | U11: =IF($G$9>T11, S11,0) -> 3.616514461e-07
K12: -9.9 | L12: 1.1 | M12: 10.9 | N12: 6.333537822e-27 | O12: =IF(ISEVEN(ABS(100*K12)), 0, IF($C$9>K12, 0,N12)) -> 0 | Q12: 0.005 | R12: -4.95 | S12: 3.71067408e-07 | T12: 5.05 | U12: =IF($G$9>T12, S12,0) -> 3.71067408e-07
K13: -9.89 | L13: 1.11 | M13: 10.89 | N13: 7.062569786e-27 | O13: =IF(ISEVEN(ABS(100*K13)), 0, IF($C$9>K13, 0,N13)) -> 0 | Q13: 0.0055 | R13: -4.945 | S13: 3.807193223e-07 | T13: 5.055 | U13: =IF($G$9>T13, S13,0) -> 3.807193223e-07
K14: -9.88 | L14: 1.12 | M14: 10.88 | N14: 7.874730624e-27 | O14: =IF(ISEVEN(ABS(100*K14)), 0, IF($C$9>K14, 0,N14)) -> 0 | Q14: 0.006 | R14: -4.94 | S14: 3.906128543e-07 | T14: 5.06 | U14: =IF($G$9>T14, S14,0) -> 3.906128543e-07
K15: -9.87 | L15: 1.13 | M15: 10.87 | N15: 8.779407984e-27 | O15: =IF(ISEVEN(ABS(100*K15)), 0, IF($C$9>K15, 0,N15)) -> 0 | Q15: 0.0065 | R15: -4.935 | S15: 4.007537991e-07 | T15: 5.065 | U15: =IF($G$9>T15, S15,0) -> 4.007537991e-07
K16: -9.86 | L16: 1.14 | M16: 10.86 | N16: 9.787039179e-27 | O16: =IF(ISEVEN(ABS(100*K16)), 0, IF($C$9>K16, 0,N16)) -> 0 | Q16: 0.007 | R16: -4.93 | S16: 4.111480838e-07 | T16: 5.07 | U16: =IF($G$9>T16, S16,0) -> 4.111480838e-07
K17: -9.85 | L17: 1.15 | M17: 10.85 | N17: 1.090922736e-26 | O17: =IF(ISEVEN(ABS(100*K17)), 0, IF($C$9>K17, 0,N17)) -> 0 | Q17: 0.0075 | R17: -4.925 | S17: 4.218017712e-07 | T17: 5.075 | U17: =IF($G$9>T17, S17,0) -> 4.218017712e-07
K18: -9.84 | L18: 1.16 | M18: 10.84 | N18: 1.21588704e-26 | O18: =IF(ISEVEN(ABS(100*K18)), 0, IF($C$9>K18, 0,N18)) -> 0 | Q18: 0.008 | R18: -4.92 | S18: 4.327210619e-07 | T18: 5.08 | U18: =IF($G$9>T18, S18,0) -> 4.327210619e-07
K19: -9.83 | L19: 1.17 | M19: 10.83 | N19: 1.355030393e-26 | O19: =IF(ISEVEN(ABS(100*K19)), 0, IF($C$9>K19, 0,N19)) -> 0 | Q19: 0.0085 | R19: -4.915 | S19: 4.439122977e-07 | T19: 5.085 | U19: =IF($G$9>T19, S19,0) -> 4.439122977e-07
K20: -9.82 | L20: 1.18 | M20: 10.82 | N20: 1.509945994e-26 | O20: =IF(ISEVEN(ABS(100*K20)), 0, IF($C$9>K20, 0,N20)) -> 0 | Q20: 0.009 | R20: -4.91 | S20: 4.553819648e-07 | T20: 5.09 | U20: =IF($G$9>T20, S20,0) -> 4.553819648e-07
K21: -9.81 | L21: 1.19 | M21: 10.81 | N21: 1.682404272e-26 | O21: =IF(ISEVEN(ABS(100*K21)), 0, IF($C$9>K21, 0,N21)) -> 0 | Q21: 0.0095 | R21: -4.905 | S21: 4.671366965e-07 | T21: 5.095 | U21: =IF($G$9>T21, S21,0) -> 4.671366965e-07
K22: -9.8 | L22: 1.2 | M22: 10.8 | N22: 1.874372402e-26 | O22: =IF(ISEVEN(ABS(100*K22)), 0, IF($C$9>K22, 0,N22)) -> 0 | Q22: 0.01 | R22: -4.9 | S22: 4.791832766e-07 | T22: 5.1 | U22: =IF($G$9>T22, S22,0) -> 4.791832766e-07
K23: -9.79 | L23: 1.21 | M23: 10.79 | N23: 2.088035944e-26 | O23: =IF(ISEVEN(ABS(100*K23)), 0, IF($C$9>K23, 0,N23)) -> 0 | Q23: 0.0105 | R23: -4.895 | S23: 4.915286424e-07 | T23: 5.105 | U23: =IF($G$9>T23, S23,0) -> 4.915286424e-07
K24: -9.78 | L24: 1.22 | M24: 10.78 | N24: 2.325822837e-26 | O24: =IF(ISEVEN(ABS(100*K24)), 0, IF($C$9>K24, 0,N24)) -> 0 | Q24: 0.011 | R24: -4.89 | S24: 5.041798884e-07 | T24: 5.11 | U24: =IF($G$9>T24, S24,0) -> 5.041798884e-07
K25: -9.77 | L25: 1.23 | M25: 10.77 | N25: 2.590429999e-26 | O25: =IF(ISEVEN(ABS(100*K25)), 0, IF($C$9>K25, 0,N25)) -> 0 | Q25: 0.0115 | R25: -4.885 | S25: 5.171442691e-07 | T25: 5.115 | U25: =IF($G$9>T25, S25,0) -> 5.171442691e-07
K26: -9.76 | L26: 1.24 | M26: 10.76 | N26: 2.884852825e-26 | O26: =IF(ISEVEN(ABS(100*K26)), 0, IF($C$9>K26, 0,N26)) -> 0 | Q26: 0.012 | R26: -4.88 | S26: 5.30429203e-07 | T26: 5.12 | U26: =IF($G$9>T26, S26,0) -> 5.30429203e-07
K27: -9.75 | L27: 1.25 | M27: 10.75 | N27: 3.212417872e-26 | O27: =IF(ISEVEN(ABS(100*K27)), 0, IF($C$9>K27, 0,N27)) -> 0 | Q27: 0.0125 | R27: -4.875 | S27: 5.440422756e-07 | T27: 5.125 | U27: =IF($G$9>T27, S27,0) -> 5.440422756e-07
K28: -9.74 | L28: 1.26 | M28: 10.74 | N28: 3.576819096e-26 | O28: =IF(ISEVEN(ABS(100*K28)), 0, IF($C$9>K28, 0,N28)) -> 0 | Q28: 0.013 | R28: -4.87 | S28: 5.579912432e-07 | T28: 5.13 | U28: =IF($G$9>T28, S28,0) -> 5.579912432e-07
K29: -9.73 | L29: 1.27 | M29: 10.73 | N29: 3.982158005e-26 | O29: =IF(ISEVEN(ABS(100*K29)), 0, IF($C$9>K29, 0,N29)) -> 0 | Q29: 0.0135 | R29: -4.865 | S29: 5.722840366e-07 | T29: 5.135 | U29: =IF($G$9>T29, S29,0) -> 5.722840366e-07
K30: -9.72 | L30: 1.28 | M30: 10.72 | N30: 4.432988159e-26 | O30: =IF(ISEVEN(ABS(100*K30)), 0, IF($C$9>K30, 0,N30)) -> 0 | Q30: 0.014 | R30: -4.86 | S30: 5.869287645e-07 | T30: 5.14 | U30: =IF($G$9>T30, S30,0) -> 5.869287645e-07
K31: -9.71 | L31: 1.29 | M31: 10.71 | N31: 4.934364471e-26 | O31: =IF(ISEVEN(ABS(100*K31)), 0, IF($C$9>K31, 0,N31)) -> 0 | Q31: 0.0145 | R31: -4.855 | S31: 6.019337175e-07 | T31: 5.145 | U31: =IF($G$9>T31, S31,0) -> 6.019337175e-07
K32: -9.7 | L32: 1.3 | M32: 10.7 | N32: 5.491897832e-26 | O32: =IF(ISEVEN(ABS(100*K32)), 0, IF($C$9>K32, 0,N32)) -> 0 | Q32: 0.015 | R32: -4.85 | S32: 6.17307372e-07 | T32: 5.15 | U32: =IF($G$9>T32, S32,0) -> 6.17307372e-07
K33: -9.69 | L33: 1.31 | M33: 10.69 | N33: 6.111815621e-26 | O33: =IF(ISEVEN(ABS(100*K33)), 0, IF($C$9>K33, 0,N33)) -> 0 | Q33: 0.0155 | R33: -4.845 | S33: 6.330583939e-07 | T33: 5.155 | U33: =IF($G$9>T33, S33,0) -> 6.330583939e-07
K34: -9.68 | L34: 1.32 | M34: 10.68 | N34: 6.801028731e-26 | O34: =IF(ISEVEN(ABS(100*K34)), 0, IF($C$9>K34, 0,N34)) -> 0 | Q34: 0.016 | R34: -4.84 | S34: 6.491956429e-07 | T34: 5.16 | U34: =IF($G$9>T34, S34,0) -> 6.491956429e-07
K35: -9.67 | L35: 1.33 | M35: 10.67 | N35: 7.567205802e-26 | O35: =IF(ISEVEN(ABS(100*K35)), 0, IF($C$9>K35, 0,N35)) -> 0 | Q35: 0.0165 | R35: -4.835 | S35: 6.65728176e-07 | T35: 5.165 | U35: =IF($G$9>T35, S35,0) -> 6.65728176e-07
K36: -9.66 | L36: 1.34 | M36: 10.66 | N36: 8.418855433e-26 | O36: =IF(ISEVEN(ABS(100*K36)), 0, IF($C$9>K36, 0,N36)) -> 0 | Q36: 0.017 | R36: -4.83 | S36: 6.826652526e-07 | T36: 5.17 | U36: =IF($G$9>T36, S36,0) -> 6.826652526e-07
K37: -9.65 | L37: 1.35 | M37: 10.65 | N37: 9.365417208e-26 | O37: =IF(ISEVEN(ABS(100*K37)), 0, IF($C$9>K37, 0,N37)) -> 0 | Q37: 0.0175 | R37: -4.825 | S37: 7.000163377e-07 | T37: 5.175 | U37: =IF($G$9>T37, S37,0) -> 7.000163377e-07
K38: -9.64 | L38: 1.36 | M38: 10.64 | N38: 1.041736249e-25 | O38: =IF(ISEVEN(ABS(100*K38)), 0, IF($C$9>K38, 0,N38)) -> 0 | Q38: 0.018 | R38: -4.82 | S38: 7.177911069e-07 | T38: 5.18 | U38: =IF($G$9>T38, S38,0) -> 7.177911069e-07
K39: -9.63 | L39: 1.37 | M39: 10.63 | N39: 1.158630601e-25 | O39: =IF(ISEVEN(ABS(100*K39)), 0, IF($C$9>K39, 0,N39)) -> 0 | Q39: 0.0185 | R39: -4.815 | S39: 7.359994509e-07 | T39: 5.185 | U39: =IF($G$9>T39, S39,0) -> 7.359994509e-07
K40: -9.62 | L40: 1.38 | M40: 10.62 | N40: 1.288512937e-25 | O40: =IF(ISEVEN(ABS(100*K40)), 0, IF($C$9>K40, 0,N40)) -> 0 | Q40: 0.019 | R40: -4.81 | S40: 7.546514791e-07 | T40: 5.19 | U40: =IF($G$9>T40, S40,0) -> 7.546514791e-07
K41: -9.61 | L41: 1.39 | M41: 10.61 | N41: 1.432811777e-25 | O41: =IF(ISEVEN(ABS(100*K41)), 0, IF($C$9>K41, 0,N41)) -> 0 | Q41: 0.0195 | R41: -4.805 | S41: 7.737575255e-07 | T41: 5.195 | U41: =IF($G$9>T41, S41,0) -> 7.737575255e-07
K42: -9.6 | L42: 1.4 | M42: 10.6 | N42: 1.593111133e-25 | O42: =IF(ISEVEN(ABS(100*K42)), 0, IF($C$9>K42, 0,N42)) -> 0 | Q42: 0.02 | R42: -4.8 | S42: 7.93328152e-07 | T42: 5.2 | U42: =IF($G$9>T42, S42,0) -> 7.93328152e-07
K43: -9.59 | L43: 1.41 | M43: 10.59 | N43: 1.771167248e-25 | O43: =IF(ISEVEN(ABS(100*K43)), 0, IF($C$9>K43, 0,N43)) -> 0 | Q43: 0.0205 | R43: -4.795 | S43: 8.133741542e-07 | T43: 5.205 | U43: =IF($G$9>T43, S43,0) -> 8.133741542e-07
K44: -9.58 | L44: 1.42 | M44: 10.58 | N44: 1.968927133e-25 | O44: =IF(ISEVEN(ABS(100*K44)), 0, IF($C$9>K44, 0,N44)) -> 0 | Q44: 0.021 | R44: -4.79 | S44: 8.339065659e-07 | T44: 5.21 | U44: =IF($G$9>T44, S44,0) -> 8.339065659e-07
K45: -9.57 | L45: 1.43 | M45: 10.57 | N45: 2.188549054e-25 | O45: =IF(ISEVEN(ABS(100*K45)), 0, IF($C$9>K45, 0,N45)) -> 0 | Q45: 0.0215 | R45: -4.785 | S45: 8.549366638e-07 | T45: 5.215 | U45: =IF($G$9>T45, S45,0) -> 8.549366638e-07
K46: -9.56 | L46: 1.44 | M46: 10.56 | N46: 2.432425218e-25 | O46: =IF(ISEVEN(ABS(100*K46)), 0, IF($C$9>K46, 0,N46)) -> 0 | Q46: 0.022 | R46: -4.78 | S46: 8.764759729e-07 | T46: 5.22 | U46: =IF($G$9>T46, S46,0) -> 8.764759729e-07
K47: -9.55 | L47: 1.45 | M47: 10.55 | N47: 2.703206853e-25 | O47: =IF(ISEVEN(ABS(100*K47)), 0, IF($C$9>K47, 0,N47)) -> 0 | Q47: 0.0225 | R47: -4.775 | S47: 8.985362714e-07 | T47: 5.225 | U47: =IF($G$9>T47, S47,0) -> 8.985362714e-07
K48: -9.54 | L48: 1.46 | M48: 10.54 | N48: 3.003831954e-25 | O48: =IF(ISEVEN(ABS(100*K48)), 0, IF($C$9>K48, 0,N48)) -> 0 | Q48: 0.023 | R48: -4.77 | S48: 9.211295962e-07 | T48: 5.23 | U48: =IF($G$9>T48, S48,0) -> 9.211295962e-07
K49: -9.53 | L49: 1.47 | M49: 10.53 | N49: 3.337555963e-25 | O49: =IF(ISEVEN(ABS(100*K49)), 0, IF($C$9>K49, 0,N49)) -> 0 | Q49: 0.0235 | R49: -4.765 | S49: 9.442682477e-07 | T49: 5.235 | U49: =IF($G$9>T49, S49,0) -> 9.442682477e-07
K50: -9.52 | L50: 1.48 | M50: 10.52 | N50: 3.707985702e-25 | O50: =IF(ISEVEN(ABS(100*K50)), 0, IF($C$9>K50, 0,N50)) -> 0 | Q50: 0.024 | R50: -4.76 | S50: 9.67964796e-07 | T50: 5.24 | U50: =IF($G$9>T50, S50,0) -> 9.67964796e-07
K51: -9.51 | L51: 1.49 | M51: 10.51 | N51: 4.119116883e-25 | O51: =IF(ISEVEN(ABS(100*K51)), 0, IF($C$9>K51, 0,N51)) -> 0 | Q51: 0.0245 | R51: -4.755 | S51: 9.922320859e-07 | T51: 5.245 | U51: =IF($G$9>T51, S51,0) -> 9.922320859e-07
K52: -9.5 | L52: 1.5 | M52: 10.5 | N52: 4.575375591e-25 | O52: =IF(ISEVEN(ABS(100*K52)), 0, IF($C$9>K52, 0,N52)) -> 0 | Q52: 0.025 | R52: -4.75 | S52: 1.017083243e-06 | T52: 5.25 | U52: =IF($G$9>T52, S52,0) -> 1.017083243e-06
K53: -9.49 | L53: 1.51 | M53: 10.49 | N53: 5.081664125e-25 | O53: =IF(ISEVEN(ABS(100*K53)), 0, IF($C$9>K53, 0,N53)) -> 0 | Q53: 0.0255 | R53: -4.745 | S53: 1.042531678e-06 | T53: 5.255 | U53: =IF($G$9>T53, S53,0) -> 1.042531678e-06
K54: -9.48 | L54: 1.52 | M54: 10.48 | N54: 5.643411687e-25 | O54: =IF(ISEVEN(ABS(100*K54)), 0, IF($C$9>K54, 0,N54)) -> 0 | Q54: 0.026 | R54: -4.74 | S54: 1.068591095e-06 | T54: 5.26 | U54: =IF($G$9>T54, S54,0) -> 1.068591095e-06
K55: -9.47 | L55: 1.53 | M55: 10.47 | N55: 6.266630386e-25 | O55: =IF(ISEVEN(ABS(100*K55)), 0, IF($C$9>K55, 0,N55)) -> 0 | Q55: 0.0265 | R55: -4.735 | S55: 1.095275495e-06 | T55: 5.265 | U55: =IF($G$9>T55, S55,0) -> 1.095275495e-06
K56: -9.46 | L56: 1.54 | M56: 10.46 | N56: 6.957977142e-25 | O56: =IF(ISEVEN(ABS(100*K56)), 0, IF($C$9>K56, 0,N56)) -> 0 | Q56: 0.027 | R56: -4.73 | S56: 1.122599185e-06 | T56: 5.27 | U56: =IF($G$9>T56, S56,0) -> 1.122599185e-06
K57: -9.45 | L57: 1.55 | M57: 10.45 | N57: 7.724822087e-25 | O57: =IF(ISEVEN(ABS(100*K57)), 0, IF($C$9>K57, 0,N57)) -> 0 | Q57: 0.0275 | R57: -4.725 | S57: 1.150576782e-06 | T57: 5.275 | U57: =IF($G$9>T57, S57,0) -> 1.150576782e-06
K58: -9.44 | L58: 1.56 | M58: 10.44 | N58: 8.575324129e-25 | O58: =IF(ISEVEN(ABS(100*K58)), 0, IF($C$9>K58, 0,N58)) -> 0 | Q58: 0.028 | R58: -4.72 | S58: 1.179223217e-06 | T58: 5.28 | U58: =IF($G$9>T58, S58,0) -> 1.179223217e-06
K59: -9.43 | L59: 1.57 | M59: 10.43 | N59: 9.518514452e-25 | O59: =IF(ISEVEN(ABS(100*K59)), 0, IF($C$9>K59, 0,N59)) -> 0 | Q59: 0.0285 | R59: -4.715 | S59: 1.208553746e-06 | T59: 5.285 | U59: =IF($G$9>T59, S59,0) -> 1.208553746e-06
K60: -9.42 | L60: 1.58 | M60: 10.42 | N60: 1.056438873e-24 | O60: =IF(ISEVEN(ABS(100*K60)), 0, IF($C$9>K60, 0,N60)) -> 0 | Q60: 0.029 | R60: -4.71 | S60: 1.238583957e-06 | T60: 5.29 | U60: =IF($G$9>T60, S60,0) -> 1.238583957e-06
K61: -9.41 | L61: 1.59 | M61: 10.41 | N61: 1.172400901e-24 | O61: =IF(ISEVEN(ABS(100*K61)), 0, IF($C$9>K61, 0,N61)) -> 0 | Q61: 0.0295 | R61: -4.705 | S61: 1.269329771e-06 | T61: 5.295 | U61: =IF($G$9>T61, S61,0) -> 1.269329771e-06
K62: -9.4 | L62: 1.6 | M62: 10.4 | N62: 1.30096162e-24 | O62: =IF(ISEVEN(ABS(100*K62)), 0, IF($C$9>K62, 0,N62)) -> 0 | Q62: 0.03 | R62: -4.7 | S62: 1.300807454e-06 | T62: 5.3 | U62: =IF($G$9>T62, S62,0) -> 1.300807454e-06
K63: -9.39 | L63: 1.61 | M63: 10.39 | N63: 1.44347543e-24 | O63: =IF(ISEVEN(ABS(100*K63)), 0, IF($C$9>K63, 0,N63)) -> 0 | Q63: 0.0305 | R63: -4.695 | S63: 1.333033621e-06 | T63: 5.305 | U63: =IF($G$9>T63, S63,0) -> 1.333033621e-06
K64: -9.38 | L64: 1.62 | M64: 10.38 | N64: 1.601440759e-24 | O64: =IF(ISEVEN(ABS(100*K64)), 0, IF($C$9>K64, 0,N64)) -> 0 | Q64: 0.031 | R64: -4.69 | S64: 1.366025245e-06 | T64: 5.31 | U64: =IF($G$9>T64, S64,0) -> 1.366025245e-06
K65: -9.37 | L65: 1.63 | M65: 10.37 | N65: 1.776515211e-24 | O65: =IF(ISEVEN(ABS(100*K65)), 0, IF($C$9>K65, 0,N65)) -> 0 | Q65: 0.0315 | R65: -4.685 | S65: 1.399799663e-06 | T65: 5.315 | U65: =IF($G$9>T65, S65,0) -> 1.399799663e-06
K66: -9.36 | L66: 1.64 | M66: 10.36 | N66: 1.970532279e-24 | O66: =IF(ISEVEN(ABS(100*K66)), 0, IF($C$9>K66, 0,N66)) -> 0 | Q66: 0.032 | R66: -4.68 | S66: 1.434374584e-06 | T66: 5.32 | U66: =IF($G$9>T66, S66,0) -> 1.434374584e-06
K67: -9.35 | L67: 1.65 | M67: 10.35 | N67: =_xlfn.NORM.S.DIST(M67,FALSE) -> 2.185519808e-24 | O67: =IF(ISEVEN(ABS(100*K67)), 0, IF($C$9>K67, 0,N67)) -> 0 | Q67: =(K67 +10)/20 -> 0.0325 | R67: -4.675 | S67: =_xlfn.NORM.S.DIST(R67,TRUE) -> 1.469768098e-06 | T67: 5.325 | U67: =IF($G$9>T67, S67,0) -> 1.469768098e-06
K68: =ROUND(K67+0.01,2) -> -9.34 | L68: =ROUND(L67+0.01,2) -> 1.66 | M68: =ROUND(M67-0.01,2) -> 10.34 | N68: 2.42372036e-24 | O68: =IF(ISEVEN(ABS(100*K68)), 0, IF($C$9>K68, 0,N68)) -> 0 | Q68: 0.033 | R68: =ROUND(R67+0.005,4) -> -4.67 | S68: 1.505998678e-06 | T68: =ROUND(T67+0.005,3) -> 5.33 | U68: =IF($G$9>T68, S68,0) -> 1.505998678e-06
K69: -9.33 | L69: 1.67 | M69: 10.33 | N69: 2.687613698e-24 | O69: =IF(ISEVEN(ABS(100*K69)), 0, IF($C$9>K69, 0,N69)) -> 0 | Q69: 0.0335 | R69: -4.665 | S69: 1.543085194e-06 | T69: 5.335 | U69: =IF($G$9>T69, S69,0) -> 1.543085194e-06
K70: -9.32 | L70: 1.68 | M70: 10.32 | N70: 2.979941587e-24 | O70: =IF(ISEVEN(ABS(100*K70)), 0, IF($C$9>K70, 0,N70)) -> 0 | Q70: 0.034 | R70: -4.66 | S70: 1.581046919e-06 | T70: 5.34 | U70: =IF($G$9>T70, S70,0) -> 1.581046919e-06
K71: -9.31 | L71: 1.69 | M71: 10.31 | N71: 3.303735172e-24 | O71: =IF(ISEVEN(ABS(100*K71)), 0, IF($C$9>K71, 0,N71)) -> 0 | Q71: 0.0345 | R71: -4.655 | S71: 1.619903535e-06 | T71: 5.345 | U71: =IF($G$9>T71, S71,0) -> 1.619903535e-06
K72: -9.3 | L72: 1.7 | M72: 10.3 | N72: 3.662345169e-24 | O72: =IF(ISEVEN(ABS(100*K72)), 0, IF($C$9>K72, 0,N72)) -> 0 | Q72: 0.035 | R72: -4.65 | S72: 1.659675144e-06 | T72: 5.35 | U72: =IF($G$9>T72, S72,0) -> 1.659675144e-06
K73: -9.29 | L73: 1.71 | M73: 10.29 | N73: 4.059475178e-24 | O73: =IF(ISEVEN(ABS(100*K73)), 0, IF($C$9>K73, 0,N73)) -> 0 | Q73: 0.0355 | R73: -4.645 | S73: 1.700382275e-06 | T73: 5.355 | U73: =IF($G$9>T73, S73,0) -> 1.700382275e-06
K74: -9.28 | L74: 1.72 | M74: 10.28 | N74: 4.499218426e-24 | O74: =IF(ISEVEN(ABS(100*K74)), 0, IF($C$9>K74, 0,N74)) -> 0 | Q74: 0.036 | R74: -4.64 | S74: 1.74204589e-06 | T74: 5.36 | U74: =IF($G$9>T74, S74,0) -> 1.74204589e-06
K75: -9.27 | L75: 1.73 | M75: 10.27 | N75: 4.986098293e-24 | O75: =IF(ISEVEN(ABS(100*K75)), 0, IF($C$9>K75, 0,N75)) -> 0 | Q75: 0.0365 | R75: -4.635 | S75: 1.7846874e-06 | T75: 5.365 | U75: =IF($G$9>T75, S75,0) -> 1.7846874e-06
K76: -9.26 | L76: 1.74 | M76: 10.26 | N76: 5.525112994e-24 | O76: =IF(ISEVEN(ABS(100*K76)), 0, IF($C$9>K76, 0,N76)) -> 0 | Q76: 0.037 | R76: -4.63 | S76: 1.828328664e-06 | T76: 5.37 | U76: =IF($G$9>T76, S76,0) -> 1.828328664e-06
K77: -9.25 | L77: 1.75 | M77: 10.25 | N77: 6.121784865e-24 | O77: =IF(ISEVEN(ABS(100*K77)), 0, IF($C$9>K77, 0,N77)) -> 0 | Q77: 0.0375 | R77: -4.625 | S77: 1.872992006e-06 | T77: 5.375 | U77: =IF($G$9>T77, S77,0) -> 1.872992006e-06
K78: -9.24 | L78: 1.76 | M78: 10.24 | N78: 6.782214687e-24 | O78: =IF(ISEVEN(ABS(100*K78)), 0, IF($C$9>K78, 0,N78)) -> 0 | Q78: 0.038 | R78: -4.62 | S78: 1.91870022e-06 | T78: 5.38 | U78: =IF($G$9>T78, S78,0) -> 1.91870022e-06
K79: -9.23 | L79: 1.77 | M79: 10.23 | N79: 7.513141586e-24 | O79: =IF(ISEVEN(ABS(100*K79)), 0, IF($C$9>K79, 0,N79)) -> 0 | Q79: 0.0385 | R79: -4.615 | S79: 1.965476582e-06 | T79: 5.385 | U79: =IF($G$9>T79, S79,0) -> 1.965476582e-06
K80: -9.22 | L80: 1.78 | M80: 10.22 | N80: 8.322009055e-24 | O80: =IF(ISEVEN(ABS(100*K80)), 0, IF($C$9>K80, 0,N80)) -> 0 | Q80: 0.039 | R80: -4.61 | S80: 2.013344855e-06 | T80: 5.39 | U80: =IF($G$9>T80, S80,0) -> 2.013344855e-06
K81: -9.21 | L81: 1.79 | M81: 10.21 | N81: 9.217037731e-24 | O81: =IF(ISEVEN(ABS(100*K81)), 0, IF($C$9>K81, 0,N81)) -> 0 | Q81: 0.0395 | R81: -4.605 | S81: 2.062329304e-06 | T81: 5.395 | U81: =IF($G$9>T81, S81,0) -> 2.062329304e-06
K82: -9.2 | L82: 1.8 | M82: 10.2 | N82: 1.020730559e-23 | O82: =IF(ISEVEN(ABS(100*K82)), 0, IF($C$9>K82, 0,N82)) -> 0 | Q82: 0.04 | R82: -4.6 | S82: 2.112454703e-06 | T82: 5.4 | U82: =IF($G$9>T82, S82,0) -> 2.112454703e-06
K83: -9.19 | L83: 1.81 | M83: 10.19 | N83: 1.130283635e-23 | O83: =IF(ISEVEN(ABS(100*K83)), 0, IF($C$9>K83, 0,N83)) -> 0 | Q83: 0.0405 | R83: -4.595 | S83: 2.163746343e-06 | T83: 5.405 | U83: =IF($G$9>T83, S83,0) -> 2.163746343e-06
K84: -9.18 | L84: 1.82 | M84: 10.18 | N84: 1.251469681e-23 | O84: =IF(ISEVEN(ABS(100*K84)), 0, IF($C$9>K84, 0,N84)) -> 0 | Q84: 0.041 | R84: -4.59 | S84: 2.216230048e-06 | T84: 5.41 | U84: =IF($G$9>T84, S84,0) -> 2.216230048e-06
K85: -9.17 | L85: 1.83 | M85: 10.17 | N85: 1.385510419e-23 | O85: =IF(ISEVEN(ABS(100*K85)), 0, IF($C$9>K85, 0,N85)) -> 0 | Q85: 0.0415 | R85: -4.585 | S85: 2.26993218e-06 | T85: 5.415 | U85: =IF($G$9>T85, S85,0) -> 2.26993218e-06
K86: -9.16 | L86: 1.84 | M86: 10.16 | N86: 1.53375443e-23 | O86: =IF(ISEVEN(ABS(100*K86)), 0, IF($C$9>K86, 0,N86)) -> 0 | Q86: 0.042 | R86: -4.58 | S86: 2.32487965e-06 | T86: 5.42 | U86: =IF($G$9>T86, S86,0) -> 2.32487965e-06
K87: -9.15 | L87: 1.85 | M87: 10.15 | N87: 1.697690173e-23 | O87: =IF(ISEVEN(ABS(100*K87)), 0, IF($C$9>K87, 0,N87)) -> 0 | Q87: 0.0425 | R87: -4.575 | S87: 2.381099933e-06 | T87: 5.425 | U87: =IF($G$9>T87, S87,0) -> 2.381099933e-06
K88: -9.14 | L88: 1.86 | M88: 10.14 | N88: 1.878960326e-23 | O88: =IF(ISEVEN(ABS(100*K88)), 0, IF($C$9>K88, 0,N88)) -> 0 | Q88: 0.043 | R88: -4.57 | S88: 2.438621074e-06 | T88: 5.43 | U88: =IF($G$9>T88, S88,0) -> 2.438621074e-06
K89: -9.13 | L89: 1.87 | M89: 10.13 | N89: 2.079377574e-23 | O89: =IF(ISEVEN(ABS(100*K89)), 0, IF($C$9>K89, 0,N89)) -> 0 | Q89: 0.0435 | R89: -4.565 | S89: 2.497471702e-06 | T89: 5.435 | U89: =IF($G$9>T89, S89,0) -> 2.497471702e-06
K90: -9.12 | L90: 1.88 | M90: 10.12 | N90: 2.300942003e-23 | O90: =IF(ISEVEN(ABS(100*K90)), 0, IF($C$9>K90, 0,N90)) -> 0 | Q90: 0.044 | R90: -4.56 | S90: 2.557681039e-06 | T90: 5.44 | U90: =IF($G$9>T90, S90,0) -> 2.557681039e-06
K91: -9.11 | L91: 1.89 | M91: 10.11 | N91: 2.545860242e-23 | O91: =IF(ISEVEN(ABS(100*K91)), 0, IF($C$9>K91, 0,N91)) -> 0 | Q91: 0.0445 | R91: -4.555 | S91: 2.619278917e-06 | T91: 5.445 | U91: =IF($G$9>T91, S91,0) -> 2.619278917e-06
K92: -9.1 | L92: 1.9 | M92: 10.1 | N92: 2.816566544e-23 | O92: =IF(ISEVEN(ABS(100*K92)), 0, IF($C$9>K92, 0,N92)) -> 0 | Q92: 0.045 | R92: -4.55 | S92: 2.68229578e-06 | T92: 5.45 | U92: =IF($G$9>T92, S92,0) -> 2.68229578e-06
K93: -9.09 | L93: 1.91 | M93: 10.09 | N93: 3.115745987e-23 | O93: =IF(ISEVEN(ABS(100*K93)), 0, IF($C$9>K93, 0,N93)) -> 0 | Q93: 0.0455 | R93: -4.545 | S93: 2.746762705e-06 | T93: 5.455 | U93: =IF($G$9>T93, S93,0) -> 2.746762705e-06
K94: -9.08 | L94: 1.92 | M94: 10.08 | N94: 3.446360014e-23 | O94: =IF(ISEVEN(ABS(100*K94)), 0, IF($C$9>K94, 0,N94)) -> 0 | Q94: 0.046 | R94: -4.54 | S94: 2.812711412e-06 | T94: 5.46 | U94: =IF($G$9>T94, S94,0) -> 2.812711412e-06
K95: -9.07 | L95: 1.93 | M95: 10.07 | N95: 3.811674545e-23 | O95: =IF(ISEVEN(ABS(100*K95)), 0, IF($C$9>K95, 0,N95)) -> 0 | Q95: 0.0465 | R95: -4.535 | S95: 2.880174271e-06 | T95: 5.465 | U95: =IF($G$9>T95, S95,0) -> 2.880174271e-06
K96: -9.06 | L96: 1.94 | M96: 10.06 | N96: 4.215290905e-23 | O96: =IF(ISEVEN(ABS(100*K96)), 0, IF($C$9>K96, 0,N96)) -> 0 | Q96: 0.047 | R96: -4.53 | S96: 2.949184323e-06 | T96: 5.47 | U96: =IF($G$9>T96, S96,0) -> 2.949184323e-06
K97: -9.05 | L97: 1.95 | M97: 10.05 | N97: 4.661179863e-23 | O97: =IF(ISEVEN(ABS(100*K97)), 0, IF($C$9>K97, 0,N97)) -> 0 | Q97: 0.0475 | R97: -4.525 | S97: 3.019775285e-06 | T97: 5.475 | U97: =IF($G$9>T97, S97,0) -> 3.019775285e-06
K98: -9.04 | L98: 1.96 | M98: 10.04 | N98: 5.153719081e-23 | O98: =IF(ISEVEN(ABS(100*K98)), 0, IF($C$9>K98, 0,N98)) -> 0 | Q98: 0.048 | R98: -4.52 | S98: 3.091981569e-06 | T98: 5.48 | U98: =IF($G$9>T98, S98,0) -> 3.091981569e-06
K99: -9.03 | L99: 1.97 | M99: 10.03 | N99: 5.697734306e-23 | O99: =IF(ISEVEN(ABS(100*K99)), 0, IF($C$9>K99, 0,N99)) -> 0 | Q99: 0.0485 | R99: -4.515 | S99: 3.165838291e-06 | T99: 5.485 | U99: =IF($G$9>T99, S99,0) -> 3.165838291e-06
K100: -9.02 | L100: 1.98 | M100: 10.02 | N100: 6.298544693e-23 | O100: =IF(ISEVEN(ABS(100*K100)), 0, IF($C$9>K100, 0,N100)) -> 0 | Q100: 0.049 | R100: -4.51 | S100: 3.241381287e-06 | T100: 5.49 | U100: =IF($G$9>T100, S100,0) -> 3.241381287e-06
K101: -9.01 | L101: 1.99 | M101: 10.01 | N101: 6.962012645e-23 | O101: =IF(ISEVEN(ABS(100*K101)), 0, IF($C$9>K101, 0,N101)) -> 0 | Q101: 0.0495 | R101: -4.505 | S101: 3.318647127e-06 | T101: 5.495 | U101: =IF($G$9>T101, S101,0) -> 3.318647127e-06
K102: -9 | L102: 2 | M102: 10 | N102: 7.694598627e-23 | O102: =IF(ISEVEN(ABS(100*K102)), 0, IF($C$9>K102, 0,N102)) -> 0 | Q102: 0.05 | R102: -4.5 | S102: 3.397673125e-06 | T102: 5.5 | U102: =IF($G$9>T102, S102,0) -> 3.397673125e-06
K103: -8.99 | L103: 2.01 | M103: 9.99 | N103: 8.503421447e-23 | O103: =IF(ISEVEN(ABS(100*K103)), 0, IF($C$9>K103, 0,N103)) -> 0 | Q103: 0.0505 | R103: -4.495 | S103: 3.478497358e-06 | T103: 5.505 | U103: =IF($G$9>T103, S103,0) -> 3.478497358e-06
K104: -8.98 | L104: 2.02 | M104: 9.98 | N104: 9.396324533e-23 | O104: =IF(ISEVEN(ABS(100*K104)), 0, IF($C$9>K104, 0,N104)) -> 0 | Q104: 0.051 | R104: -4.49 | S104: 3.56115868e-06 | T104: 5.51 | U104: =IF($G$9>T104, S104,0) -> 3.56115868e-06
K105: -8.97 | L105: 2.03 | M105: 9.97 | N105: 1.03819488e-22 | O105: =IF(ISEVEN(ABS(100*K105)), 0, IF($C$9>K105, 0,N105)) -> 0 | Q105: 0.0515 | R105: -4.485 | S105: 3.645696731e-06 | T105: 5.515 | U105: =IF($G$9>T105, S105,0) -> 3.645696731e-06
K106: -8.96 | L106: 2.04 | M106: 9.96 | N106: 1.146981275e-22 | O106: =IF(ISEVEN(ABS(100*K106)), 0, IF($C$9>K106, 0,N106)) -> 0 | Q106: 0.052 | R106: -4.48 | S106: 3.732151961e-06 | T106: 5.52 | U106: =IF($G$9>T106, S106,0) -> 3.732151961e-06
K107: -8.95 | L107: 2.05 | M107: 9.95 | N107: 1.267040052e-22 | O107: =IF(ISEVEN(ABS(100*K107)), 0, IF($C$9>K107, 0,N107)) -> 0 | Q107: 0.0525 | R107: -4.475 | S107: 3.820565636e-06 | T107: 5.525 | U107: =IF($G$9>T107, S107,0) -> 3.820565636e-06
K108: -8.94 | L108: 2.06 | M108: 9.94 | N108: 1.399525867e-22 | O108: =IF(ISEVEN(ABS(100*K108)), 0, IF($C$9>K108, 0,N108)) -> 0 | Q108: 0.053 | R108: -4.47 | S108: 3.91097986e-06 | T108: 5.53 | U108: =IF($G$9>T108, S108,0) -> 3.91097986e-06
K109: -8.93 | L109: 2.07 | M109: 9.93 | N109: 1.545710249e-22 | O109: =IF(ISEVEN(ABS(100*K109)), 0, IF($C$9>K109, 0,N109)) -> 0 | Q109: 0.0535 | R109: -4.465 | S109: 4.00343759e-06 | T109: 5.535 | U109: =IF($G$9>T109, S109,0) -> 4.00343759e-06
K110: -8.92 | L110: 2.08 | M110: 9.92 | N110: 1.70699329e-22 | O110: =IF(ISEVEN(ABS(100*K110)), 0, IF($C$9>K110, 0,N110)) -> 0 | Q110: 0.054 | R110: -4.46 | S110: 4.097982647e-06 | T110: 5.54 | U110: =IF($G$9>T110, S110,0) -> 4.097982647e-06
K111: -8.91 | L111: 2.09 | M111: 9.91 | N111: 1.884916481e-22 | O111: =IF(ISEVEN(ABS(100*K111)), 0, IF($C$9>K111, 0,N111)) -> 0 | Q111: 0.0545 | R111: -4.455 | S111: 4.194659738e-06 | T111: 5.545 | U111: =IF($G$9>T111, S111,0) -> 4.194659738e-06
K112: -8.9 | L112: 2.1 | M112: 9.9 | N112: 2.08117682e-22 | O112: =IF(ISEVEN(ABS(100*K112)), 0, IF($C$9>K112, 0,N112)) -> 0 | Q112: 0.055 | R112: -4.45 | S112: 4.29351447e-06 | T112: 5.55 | U112: =IF($G$9>T112, S112,0) -> 4.29351447e-06
K113: -8.89 | L113: 2.11 | M113: 9.89 | N113: 2.297642306e-22 | O113: =IF(ISEVEN(ABS(100*K113)), 0, IF($C$9>K113, 0,N113)) -> 0 | Q113: 0.0555 | R113: -4.445 | S113: 4.394593367e-06 | T113: 5.555 | U113: =IF($G$9>T113, S113,0) -> 4.394593367e-06
K114: -8.88 | L114: 2.12 | M114: 9.88 | N114: 2.536368954e-22 | O114: =IF(ISEVEN(ABS(100*K114)), 0, IF($C$9>K114, 0,N114)) -> 0 | Q114: 0.056 | R114: -4.44 | S114: 4.497943889e-06 | T114: 5.56 | U114: =IF($G$9>T114, S114,0) -> 4.497943889e-06
K115: -8.87 | L115: 2.13 | M115: 9.87 | N115: 2.799619493e-22 | O115: =IF(ISEVEN(ABS(100*K115)), 0, IF($C$9>K115, 0,N115)) -> 0 | Q115: 0.0565 | R115: -4.435 | S115: 4.603614444e-06 | T115: 5.565 | U115: =IF($G$9>T115, S115,0) -> 4.603614444e-06
K116: -8.86 | L116: 2.14 | M116: 9.86 | N116: 3.089883885e-22 | O116: =IF(ISEVEN(ABS(100*K116)), 0, IF($C$9>K116, 0,N116)) -> 0 | Q116: 0.057 | R116: -4.43 | S116: 4.711654412e-06 | T116: 5.57 | U116: =IF($G$9>T116, S116,0) -> 4.711654412e-06
K117: -8.85 | L117: 2.15 | M117: 9.85 | N117: 3.409901866e-22 | O117: =IF(ISEVEN(ABS(100*K117)), 0, IF($C$9>K117, 0,N117)) -> 0 | Q117: 0.0575 | R117: -4.425 | S117: 4.822114161e-06 | T117: 5.575 | U117: =IF($G$9>T117, S117,0) -> 4.822114161e-06
K118: -8.84 | L118: 2.16 | M118: 9.84 | N118: 3.762687688e-22 | O118: =IF(ISEVEN(ABS(100*K118)), 0, IF($C$9>K118, 0,N118)) -> 0 | Q118: 0.058 | R118: -4.42 | S118: 4.935045063e-06 | T118: 5.58 | U118: =IF($G$9>T118, S118,0) -> 4.935045063e-06
K119: -8.83 | L119: 2.17 | M119: 9.83 | N119: 4.151557283e-22 | O119: =IF(ISEVEN(ABS(100*K119)), 0, IF($C$9>K119, 0,N119)) -> 0 | Q119: 0.0585 | R119: -4.415 | S119: 5.050499515e-06 | T119: 5.585 | U119: =IF($G$9>T119, S119,0) -> 5.050499515e-06
K120: -8.82 | L120: 2.18 | M120: 9.82 | N120: 4.580158079e-22 | O120: =IF(ISEVEN(ABS(100*K120)), 0, IF($C$9>K120, 0,N120)) -> 0 | Q120: 0.059 | R120: -4.41 | S120: 5.168530957e-06 | T120: 5.59 | U120: =IF($G$9>T120, S120,0) -> 5.168530957e-06
K121: -8.81 | L121: 2.19 | M121: 9.81 | N121: 5.05250173e-22 | O121: =IF(ISEVEN(ABS(100*K121)), 0, IF($C$9>K121, 0,N121)) -> 0 | Q121: 0.0595 | R121: -4.405 | S121: 5.289193893e-06 | T121: 5.595 | U121: =IF($G$9>T121, S121,0) -> 5.289193893e-06
K122: -8.8 | L122: 2.2 | M122: 9.8 | N122: 5.573000023e-22 | O122: =IF(ISEVEN(ABS(100*K122)), 0, IF($C$9>K122, 0,N122)) -> 0 | Q122: 0.06 | R122: -4.4 | S122: 5.412543908e-06 | T122: 5.6 | U122: =IF($G$9>T122, S122,0) -> 5.412543908e-06
K123: -8.79 | L123: 2.21 | M123: 9.79 | N123: 6.146504294e-22 | O123: =IF(ISEVEN(ABS(100*K123)), 0, IF($C$9>K123, 0,N123)) -> 0 | Q123: 0.0605 | R123: -4.395 | S123: 5.538637687e-06 | T123: 5.605 | U123: =IF($G$9>T123, S123,0) -> 5.538637687e-06
K124: -8.78 | L124: 2.22 | M124: 9.78 | N124: 6.778348666e-22 | O124: =IF(ISEVEN(ABS(100*K124)), 0, IF($C$9>K124, 0,N124)) -> 0 | Q124: 0.061 | R124: -4.39 | S124: 5.667533042e-06 | T124: 5.61 | U124: =IF($G$9>T124, S124,0) -> 5.667533042e-06
K125: -8.77 | L125: 2.23 | M125: 9.77 | N125: 7.47439749e-22 | O125: =IF(ISEVEN(ABS(100*K125)), 0, IF($C$9>K125, 0,N125)) -> 0 | Q125: 0.0615 | R125: -4.385 | S125: 5.799288923e-06 | T125: 5.615 | U125: =IF($G$9>T125, S125,0) -> 5.799288923e-06
K126: -8.76 | L126: 2.24 | M126: 9.76 | N126: 8.241097384e-22 | O126: =IF(ISEVEN(ABS(100*K126)), 0, IF($C$9>K126, 0,N126)) -> 0 | Q126: 0.062 | R126: -4.38 | S126: 5.933965446e-06 | T126: 5.62 | U126: =IF($G$9>T126, S126,0) -> 5.933965446e-06
K127: -8.75 | L127: 2.25 | M127: 9.75 | N127: 9.085534312e-22 | O127: =IF(ISEVEN(ABS(100*K127)), 0, IF($C$9>K127, 0,N127)) -> 0 | Q127: 0.0625 | R127: -4.375 | S127: 6.071623911e-06 | T127: 5.625 | U127: =IF($G$9>T127, S127,0) -> 6.071623911e-06
K128: -8.74 | L128: 2.26 | M128: 9.74 | N128: 1.001549619e-21 | O128: =IF(ISEVEN(ABS(100*K128)), 0, IF($C$9>K128, 0,N128)) -> 0 | Q128: 0.063 | R128: -4.37 | S128: 6.212326827e-06 | T128: 5.63 | U128: =IF($G$9>T128, S128,0) -> 6.212326827e-06
K129: -8.73 | L129: 2.27 | M129: 9.73 | N129: 1.103954154e-21 | O129: =IF(ISEVEN(ABS(100*K129)), 0, IF($C$9>K129, 0,N129)) -> 0 | Q129: 0.0635 | R129: -4.365 | S129: 6.356137928e-06 | T129: 5.635 | U129: =IF($G$9>T129, S129,0) -> 6.356137928e-06
K130: -8.72 | L130: 2.28 | M130: 9.72 | N130: 1.216707475e-21 | O130: =IF(ISEVEN(ABS(100*K130)), 0, IF($C$9>K130, 0,N130)) -> 0 | Q130: 0.064 | R130: -4.36 | S130: 6.503122201e-06 | T130: 5.64 | U130: =IF($G$9>T130, S130,0) -> 6.503122201e-06
K131: -8.71 | L131: 2.29 | M131: 9.71 | N131: =_xlfn.NORM.S.DIST(M131,FALSE) -> 1.340842865e-21 | O131: =IF(ISEVEN(ABS(100*K131)), 0, IF($C$9>K131, 0,N131)) -> 0 | Q131: =(K131 +10)/20 -> 0.0645 | R131: -4.355 | S131: =_xlfn.NORM.S.DIST(R131,TRUE) -> 6.653345906e-06 | T131: 5.645 | U131: =IF($G$9>T131, S131,0) -> 6.653345906e-06
K132: =ROUND(K131+0.01,2) -> -8.7 | L132: =ROUND(L131+0.01,2) -> 2.3 | M132: =ROUND(M131-0.01,2) -> 9.7 | N132: 1.477495493e-21 | O132: =IF(ISEVEN(ABS(100*K132)), 0, IF($C$9>K132, 0,N132)) -> 0 | Q132: 0.065 | R132: =ROUND(R131+0.005,4) -> -4.35 | S132: 6.806876599e-06 | T132: =ROUND(T131+0.005,3) -> 5.65 | U132: =IF($G$9>T132, S132,0) -> 6.806876599e-06
K133: -8.69 | L133: 2.31 | M133: 9.69 | N133: 1.627912338e-21 | O133: =IF(ISEVEN(ABS(100*K133)), 0, IF($C$9>K133, 0,N133)) -> 0 | Q133: 0.0655 | R133: -4.345 | S133: 6.963783158e-06 | T133: 5.655 | U133: =IF($G$9>T133, S133,0) -> 6.963783158e-06
K134: -8.68 | L134: 2.32 | M134: 9.68 | N134: 1.793463057e-21 | O134: =IF(ISEVEN(ABS(100*K134)), 0, IF($C$9>K134, 0,N134)) -> 0 | Q134: 0.066 | R134: -4.34 | S134: 7.124135801e-06 | T134: 5.66 | U134: =IF($G$9>T134, S134,0) -> 7.124135801e-06
K135: -8.67 | L135: 2.33 | M135: 9.67 | N135: 1.9756519e-21 | O135: =IF(ISEVEN(ABS(100*K135)), 0, IF($C$9>K135, 0,N135)) -> 0 | Q135: 0.0665 | R135: -4.335 | S135: 7.288006119e-06 | T135: 5.665 | U135: =IF($G$9>T135, S135,0) -> 7.288006119e-06
K136: -8.66 | L136: 2.34 | M136: 9.66 | N136: 2.176130761e-21 | O136: =IF(ISEVEN(ABS(100*K136)), 0, IF($C$9>K136, 0,N136)) -> 0 | Q136: 0.067 | R136: -4.33 | S136: 7.455467091e-06 | T136: 5.67 | U136: =IF($G$9>T136, S136,0) -> 7.455467091e-06
K137: -8.65 | L137: 2.35 | M137: 9.65 | N137: 2.39671349e-21 | O137: =IF(ISEVEN(ABS(100*K137)), 0, IF($C$9>K137, 0,N137)) -> 0 | Q137: 0.0675 | R137: -4.325 | S137: 7.626593117e-06 | T137: 5.675 | U137: =IF($G$9>T137, S137,0) -> 7.626593117e-06
K138: -8.64 | L138: 2.36 | M138: 9.64 | N138: 2.639391557e-21 | O138: =IF(ISEVEN(ABS(100*K138)), 0, IF($C$9>K138, 0,N138)) -> 0 | Q138: 0.068 | R138: -4.32 | S138: 7.801460038e-06 | T138: 5.68 | U138: =IF($G$9>T138, S138,0) -> 7.801460038e-06
K139: -8.63 | L139: 2.37 | M139: 9.63 | N139: 2.906351224e-21 | O139: =IF(ISEVEN(ABS(100*K139)), 0, IF($C$9>K139, 0,N139)) -> 0 | Q139: 0.0685 | R139: -4.315 | S139: 7.980145165e-06 | T139: 5.685 | U139: =IF($G$9>T139, S139,0) -> 7.980145165e-06
K140: -8.62 | L140: 2.38 | M140: 9.62 | N140: 3.199992352e-21 | O140: =IF(ISEVEN(ABS(100*K140)), 0, IF($C$9>K140, 0,N140)) -> 0 | Q140: 0.069 | R140: -4.31 | S140: 8.162727303e-06 | T140: 5.69 | U140: =IF($G$9>T140, S140,0) -> 8.162727303e-06
K141: -8.61 | L141: 2.39 | M141: 9.61 | N141: 3.522948988e-21 | O141: =IF(ISEVEN(ABS(100*K141)), 0, IF($C$9>K141, 0,N141)) -> 0 | Q141: 0.0695 | R141: -4.305 | S141: 8.349286779e-06 | T141: 5.695 | U141: =IF($G$9>T141, S141,0) -> 8.349286779e-06
K142: -8.6 | L142: 2.4 | M142: 9.6 | N142: 3.878111932e-21 | O142: =IF(ISEVEN(ABS(100*K142)), 0, IF($C$9>K142, 0,N142)) -> 0 | Q142: 0.07 | R142: -4.3 | S142: 8.539905471e-06 | T142: 5.7 | U142: =IF($G$9>T142, S142,0) -> 8.539905471e-06
K143: -8.59 | L143: 2.41 | M143: 9.59 | N143: 4.268653422e-21 | O143: =IF(ISEVEN(ABS(100*K143)), 0, IF($C$9>K143, 0,N143)) -> 0 | Q143: 0.0705 | R143: -4.295 | S143: 8.73466683e-06 | T143: 5.705 | U143: =IF($G$9>T143, S143,0) -> 8.73466683e-06
K144: -8.58 | L144: 2.42 | M144: 9.58 | N144: 4.698054184e-21 | O144: =IF(ISEVEN(ABS(100*K144)), 0, IF($C$9>K144, 0,N144)) -> 0 | Q144: 0.071 | R144: -4.29 | S144: 8.933655913e-06 | T144: 5.71 | U144: =IF($G$9>T144, S144,0) -> 8.933655913e-06
K145: -8.57 | L145: 2.43 | M145: 9.57 | N145: 5.170133032e-21 | O145: =IF(ISEVEN(ABS(100*K145)), 0, IF($C$9>K145, 0,N145)) -> 0 | Q145: 0.0715 | R145: -4.285 | S145: 9.136959409e-06 | T145: 5.715 | U145: =IF($G$9>T145, S145,0) -> 9.136959409e-06
K146: -8.56 | L146: 2.44 | M146: 9.56 | N146: 5.689079271e-21 | O146: =IF(ISEVEN(ABS(100*K146)), 0, IF($C$9>K146, 0,N146)) -> 0 | Q146: 0.072 | R146: -4.28 | S146: 9.34466567e-06 | T146: 5.72 | U146: =IF($G$9>T146, S146,0) -> 9.34466567e-06
K147: -8.55 | L147: 2.45 | M147: 9.55 | N147: 6.259488169e-21 | O147: =IF(ISEVEN(ABS(100*K147)), 0, IF($C$9>K147, 0,N147)) -> 0 | Q147: 0.0725 | R147: -4.275 | S147: 9.556864737e-06 | T147: 5.725 | U147: =IF($G$9>T147, S147,0) -> 9.556864737e-06
K148: -8.54 | L148: 2.46 | M148: 9.54 | N148: 6.886399777e-21 | O148: =IF(ISEVEN(ABS(100*K148)), 0, IF($C$9>K148, 0,N148)) -> 0 | Q148: 0.073 | R148: -4.27 | S148: 9.773648373e-06 | T148: 5.73 | U148: =IF($G$9>T148, S148,0) -> 9.773648373e-06
K149: -8.53 | L149: 2.47 | M149: 9.53 | N149: 7.5753414e-21 | O149: =IF(ISEVEN(ABS(100*K149)), 0, IF($C$9>K149, 0,N149)) -> 0 | Q149: 0.0735 | R149: -4.265 | S149: 9.99511009e-06 | T149: 5.735 | U149: =IF($G$9>T149, S149,0) -> 9.99511009e-06
K150: -8.52 | L150: 2.48 | M150: 9.52 | N150: 8.332374084e-21 | O150: =IF(ISEVEN(ABS(100*K150)), 0, IF($C$9>K150, 0,N150)) -> 0 | Q150: 0.074 | R150: -4.26 | S150: 1.022134518e-05 | T150: 5.74 | U150: =IF($G$9>T150, S150,0) -> 1.022134518e-05
K151: -8.51 | L151: 2.49 | M151: 9.51 | N151: 9.164143464e-21 | O151: =IF(ISEVEN(ABS(100*K151)), 0, IF($C$9>K151, 0,N151)) -> 0 | Q151: 0.0745 | R151: -4.255 | S151: 1.045245076e-05 | T151: 5.745 | U151: =IF($G$9>T151, S151,0) -> 1.045245076e-05
K152: -8.5 | L152: 2.5 | M152: 9.5 | N152: 1.007793539e-20 | O152: =IF(ISEVEN(ABS(100*K152)), 0, IF($C$9>K152, 0,N152)) -> 0 | Q152: 0.075 | R152: -4.25 | S152: 1.068852577e-05 | T152: 5.75 | U152: =IF($G$9>T152, S152,0) -> 1.068852577e-05
K153: -8.49 | L153: 2.51 | M153: 9.49 | N153: 1.10817368e-20 | O153: =IF(ISEVEN(ABS(100*K153)), 0, IF($C$9>K153, 0,N153)) -> 0 | Q153: 0.0755 | R153: -4.245 | S153: 1.092967105e-05 | T153: 5.755 | U153: =IF($G$9>T153, S153,0) -> 1.092967105e-05
K154: -8.48 | L154: 2.52 | M154: 9.48 | N154: 1.218430222e-20 | O154: =IF(ISEVEN(ABS(100*K154)), 0, IF($C$9>K154, 0,N154)) -> 0 | Q154: 0.076 | R154: -4.24 | S154: 1.117598933e-05 | T154: 5.76 | U154: =IF($G$9>T154, S154,0) -> 1.117598933e-05
K155: -8.47 | L155: 2.53 | M155: 9.47 | N155: 1.33952266e-20 | O155: =IF(ISEVEN(ABS(100*K155)), 0, IF($C$9>K155, 0,N155)) -> 0 | Q155: 0.0765 | R155: -4.235 | S155: 1.142758529e-05 | T155: 5.765 | U155: =IF($G$9>T155, S155,0) -> 1.142758529e-05
K156: -8.46 | L156: 2.54 | M156: 9.46 | N156: 1.472502489e-20 | O156: =IF(ISEVEN(ABS(100*K156)), 0, IF($C$9>K156, 0,N156)) -> 0 | Q156: 0.077 | R156: -4.23 | S156: 1.168456559e-05 | T156: 5.77 | U156: =IF($G$9>T156, S156,0) -> 1.168456559e-05
K157: -8.45 | L157: 2.55 | M157: 9.45 | N157: 1.618521902e-20 | O157: =IF(ISEVEN(ABS(100*K157)), 0, IF($C$9>K157, 0,N157)) -> 0 | Q157: 0.0775 | R157: -4.225 | S157: 1.19470389e-05 | T157: 5.775 | U157: =IF($G$9>T157, S157,0) -> 1.19470389e-05
K158: -8.44 | L158: 2.56 | M158: 9.44 | N158: 1.778843309e-20 | O158: =IF(ISEVEN(ABS(100*K158)), 0, IF($C$9>K158, 0,N158)) -> 0 | Q158: 0.078 | R158: -4.22 | S158: 1.221511593e-05 | T158: 5.78 | U158: =IF($G$9>T158, S158,0) -> 1.221511593e-05
K159: -8.43 | L159: 2.57 | M159: 9.43 | N159: 1.954849731e-20 | O159: =IF(ISEVEN(ABS(100*K159)), 0, IF($C$9>K159, 0,N159)) -> 0 | Q159: 0.0785 | R159: -4.215 | S159: 1.248890946e-05 | T159: 5.785 | U159: =IF($G$9>T159, S159,0) -> 1.248890946e-05
K160: -8.42 | L160: 2.58 | M160: 9.42 | N160: 2.148056171e-20 | O160: =IF(ISEVEN(ABS(100*K160)), 0, IF($C$9>K160, 0,N160)) -> 0 | Q160: 0.079 | R160: -4.21 | S160: 1.276853441e-05 | T160: 5.79 | U160: =IF($G$9>T160, S160,0) -> 1.276853441e-05
K161: -8.41 | L161: 2.59 | M161: 9.41 | N161: 2.360122033e-20 | O161: =IF(ISEVEN(ABS(100*K161)), 0, IF($C$9>K161, 0,N161)) -> 0 | Q161: 0.0795 | R161: -4.205 | S161: 1.305410785e-05 | T161: 5.795 | U161: =IF($G$9>T161, S161,0) -> 1.305410785e-05
K162: -8.4 | L162: 2.6 | M162: 9.4 | N162: 2.592864701e-20 | O162: =IF(ISEVEN(ABS(100*K162)), 0, IF($C$9>K162, 0,N162)) -> 0 | Q162: 0.08 | R162: -4.2 | S162: 1.334574902e-05 | T162: 5.8 | U162: =IF($G$9>T162, S162,0) -> 1.334574902e-05
K163: -8.39 | L163: 2.61 | M163: 9.39 | N163: 2.84827437e-20 | O163: =IF(ISEVEN(ABS(100*K163)), 0, IF($C$9>K163, 0,N163)) -> 0 | Q163: 0.0805 | R163: -4.195 | S163: 1.364357939e-05 | T163: 5.805 | U163: =IF($G$9>T163, S163,0) -> 1.364357939e-05
K164: -8.38 | L164: 2.62 | M164: 9.38 | N164: 3.128530253e-20 | O164: =IF(ISEVEN(ABS(100*K164)), 0, IF($C$9>K164, 0,N164)) -> 0 | Q164: 0.081 | R164: -4.19 | S164: 1.394772273e-05 | T164: 5.81 | U164: =IF($G$9>T164, S164,0) -> 1.394772273e-05
K165: -8.37 | L165: 2.63 | M165: 9.37 | N165: 3.436018288e-20 | O165: =IF(ISEVEN(ABS(100*K165)), 0, IF($C$9>K165, 0,N165)) -> 0 | Q165: 0.0815 | R165: -4.185 | S165: 1.425830506e-05 | T165: 5.815 | U165: =IF($G$9>T165, S165,0) -> 1.425830506e-05
K166: -8.36 | L166: 2.64 | M166: 9.36 | N166: 3.773350474e-20 | O166: =IF(ISEVEN(ABS(100*K166)), 0, IF($C$9>K166, 0,N166)) -> 0 | Q166: 0.082 | R166: -4.18 | S166: 1.457545479e-05 | T166: 5.82 | U166: =IF($G$9>T166, S166,0) -> 1.457545479e-05
K167: -8.35 | L167: 2.65 | M167: 9.35 | N167: 4.143385995e-20 | O167: =IF(ISEVEN(ABS(100*K167)), 0, IF($C$9>K167, 0,N167)) -> 0 | Q167: 0.0825 | R167: -4.175 | S167: 1.489930269e-05 | T167: 5.825 | U167: =IF($G$9>T167, S167,0) -> 1.489930269e-05
K168: -8.34 | L168: 2.66 | M168: 9.34 | N168: 4.549254288e-20 | O168: =IF(ISEVEN(ABS(100*K168)), 0, IF($C$9>K168, 0,N168)) -> 0 | Q168: 0.083 | R168: -4.17 | S168: 1.522998195e-05 | T168: 5.83 | U168: =IF($G$9>T168, S168,0) -> 1.522998195e-05
K169: -8.33 | L169: 2.67 | M169: 9.33 | N169: 4.994380232e-20 | O169: =IF(ISEVEN(ABS(100*K169)), 0, IF($C$9>K169, 0,N169)) -> 0 | Q169: 0.0835 | R169: -4.165 | S169: 1.556762824e-05 | T169: 5.835 | U169: =IF($G$9>T169, S169,0) -> 1.556762824e-05
K170: -8.32 | L170: 2.68 | M170: 9.32 | N170: 5.482511652e-20 | O170: =IF(ISEVEN(ABS(100*K170)), 0, IF($C$9>K170, 0,N170)) -> 0 | Q170: 0.084 | R170: -4.16 | S170: 1.591237972e-05 | T170: 5.84 | U170: =IF($G$9>T170, S170,0) -> 1.591237972e-05
K171: -8.31 | L171: 2.69 | M171: 9.31 | N171: 6.017749346e-20 | O171: =IF(ISEVEN(ABS(100*K171)), 0, IF($C$9>K171, 0,N171)) -> 0 | Q171: 0.0845 | R171: -4.155 | S171: 1.626437711e-05 | T171: 5.845 | U171: =IF($G$9>T171, S171,0) -> 1.626437711e-05
K172: -8.3 | L172: 2.7 | M172: 9.3 | N172: 6.604579861e-20 | O172: =IF(ISEVEN(ABS(100*K172)), 0, IF($C$9>K172, 0,N172)) -> 0 | Q172: 0.085 | R172: -4.15 | S172: 1.662376373e-05 | T172: 5.85 | U172: =IF($G$9>T172, S172,0) -> 1.662376373e-05
K173: -8.29 | L173: 2.71 | M173: 9.29 | N173: 7.24791127e-20 | O173: =IF(ISEVEN(ABS(100*K173)), 0, IF($C$9>K173, 0,N173)) -> 0 | Q173: 0.0855 | R173: -4.145 | S173: 1.699068551e-05 | T173: 5.855 | U173: =IF($G$9>T173, S173,0) -> 1.699068551e-05
K174: -8.28 | L174: 2.72 | M174: 9.28 | N174: 7.953112223e-20 | O174: =IF(ISEVEN(ABS(100*K174)), 0, IF($C$9>K174, 0,N174)) -> 0 | Q174: 0.086 | R174: -4.14 | S174: 1.736529107e-05 | T174: 5.86 | U174: =IF($G$9>T174, S174,0) -> 1.736529107e-05
K175: -8.27 | L175: 2.73 | M175: 9.27 | N175: 8.726054555e-20 | O175: =IF(ISEVEN(ABS(100*K175)), 0, IF($C$9>K175, 0,N175)) -> 0 | Q175: 0.0865 | R175: -4.135 | S175: 1.774773177e-05 | T175: 5.865 | U175: =IF($G$9>T175, S175,0) -> 1.774773177e-05
K176: -8.26 | L176: 2.74 | M176: 9.26 | N176: 9.573159782e-20 | O176: =IF(ISEVEN(ABS(100*K176)), 0, IF($C$9>K176, 0,N176)) -> 0 | Q176: 0.087 | R176: -4.13 | S176: 1.813816172e-05 | T176: 5.87 | U176: =IF($G$9>T176, S176,0) -> 1.813816172e-05
K177: -8.25 | L177: 2.75 | M177: 9.25 | N177: 1.050144983e-19 | O177: =IF(ISEVEN(ABS(100*K177)), 0, IF($C$9>K177, 0,N177)) -> 0 | Q177: 0.0875 | R177: -4.125 | S177: 1.853673785e-05 | T177: 5.875 | U177: =IF($G$9>T177, S177,0) -> 1.853673785e-05
K178: -8.24 | L178: 2.76 | M178: 9.24 | N178: 1.151860238e-19 | O178: =IF(ISEVEN(ABS(100*K178)), 0, IF($C$9>K178, 0,N178)) -> 0 | Q178: 0.088 | R178: -4.12 | S178: 1.894361995e-05 | T178: 5.88 | U178: =IF($G$9>T178, S178,0) -> 1.894361995e-05
K179: -8.23 | L179: 2.77 | M179: 9.23 | N179: 1.263301123e-19 | O179: =IF(ISEVEN(ABS(100*K179)), 0, IF($C$9>K179, 0,N179)) -> 0 | Q179: 0.0885 | R179: -4.115 | S179: 1.935897074e-05 | T179: 5.885 | U179: =IF($G$9>T179, S179,0) -> 1.935897074e-05
K180: -8.22 | L180: 2.78 | M180: 9.22 | N180: 1.385385214e-19 | O180: =IF(ISEVEN(ABS(100*K180)), 0, IF($C$9>K180, 0,N180)) -> 0 | Q180: 0.089 | R180: -4.11 | S180: 1.978295587e-05 | T180: 5.89 | U180: =IF($G$9>T180, S180,0) -> 1.978295587e-05
K181: -8.21 | L181: 2.79 | M181: 9.21 | N181: 1.519115464e-19 | O181: =IF(ISEVEN(ABS(100*K181)), 0, IF($C$9>K181, 0,N181)) -> 0 | Q181: 0.0895 | R181: -4.105 | S181: 2.021574402e-05 | T181: 5.895 | U181: =IF($G$9>T181, S181,0) -> 2.021574402e-05
K182: -8.2 | L182: 2.8 | M182: 9.2 | N182: 1.665588032e-19 | O182: =IF(ISEVEN(ABS(100*K182)), 0, IF($C$9>K182, 0,N182)) -> 0 | Q182: 0.09 | R182: -4.1 | S182: 2.065750691e-05 | T182: 5.9 | U182: =IF($G$9>T182, S182,0) -> 2.065750691e-05
K183: -8.19 | L183: 2.81 | M183: 9.19 | N183: 1.826000824e-19 | O183: =IF(ISEVEN(ABS(100*K183)), 0, IF($C$9>K183, 0,N183)) -> 0 | Q183: 0.0905 | R183: -4.095 | S183: 2.110841939e-05 | T183: 5.905 | U183: =IF($G$9>T183, S183,0) -> 2.110841939e-05
K184: -8.18 | L184: 2.82 | M184: 9.18 | N184: 2.001662797e-19 | O184: =IF(ISEVEN(ABS(100*K184)), 0, IF($C$9>K184, 0,N184)) -> 0 | Q184: 0.091 | R184: -4.09 | S184: 2.156865945e-05 | T184: 5.91 | U184: =IF($G$9>T184, S184,0) -> 2.156865945e-05
K185: -8.17 | L185: 2.83 | M185: 9.17 | N185: 2.194004107e-19 | O185: =IF(ISEVEN(ABS(100*K185)), 0, IF($C$9>K185, 0,N185)) -> 0 | Q185: 0.0915 | R185: -4.085 | S185: 2.203840829e-05 | T185: 5.915 | U185: =IF($G$9>T185, S185,0) -> 2.203840829e-05
K186: -8.16 | L186: 2.84 | M186: 9.16 | N186: 2.404587169e-19 | O186: =IF(ISEVEN(ABS(100*K186)), 0, IF($C$9>K186, 0,N186)) -> 0 | Q186: 0.092 | R186: -4.08 | S186: 2.251785039e-05 | T186: 5.92 | U186: =IF($G$9>T186, S186,0) -> 2.251785039e-05
K187: -8.15 | L187: 2.85 | M187: 9.15 | N187: 2.635118714e-19 | O187: =IF(ISEVEN(ABS(100*K187)), 0, IF($C$9>K187, 0,N187)) -> 0 | Q187: 0.0925 | R187: -4.075 | S187: 2.300717353e-05 | T187: 5.925 | U187: =IF($G$9>T187, S187,0) -> 2.300717353e-05
K188: -8.14 | L188: 2.86 | M188: 9.14 | N188: 2.887462918e-19 | O188: =IF(ISEVEN(ABS(100*K188)), 0, IF($C$9>K188, 0,N188)) -> 0 | Q188: 0.093 | R188: -4.07 | S188: 2.350656887e-05 | T188: 5.93 | U188: =IF($G$9>T188, S188,0) -> 2.350656887e-05
K189: -8.13 | L189: 2.87 | M189: 9.13 | N189: 3.163655724e-19 | O189: =IF(ISEVEN(ABS(100*K189)), 0, IF($C$9>K189, 0,N189)) -> 0 | Q189: 0.0935 | R189: -4.065 | S189: 2.401623099e-05 | T189: 5.935 | U189: =IF($G$9>T189, S189,0) -> 2.401623099e-05
K190: -8.12 | L190: 2.88 | M190: 9.12 | N190: 3.46592043e-19 | O190: =IF(ISEVEN(ABS(100*K190)), 0, IF($C$9>K190, 0,N190)) -> 0 | Q190: 0.094 | R190: -4.06 | S190: 2.453635797e-05 | T190: 5.94 | U190: =IF($G$9>T190, S190,0) -> 2.453635797e-05
K191: -8.11 | L191: 2.89 | M191: 9.11 | N191: 3.796684681e-19 | O191: =IF(ISEVEN(ABS(100*K191)), 0, IF($C$9>K191, 0,N191)) -> 0 | Q191: 0.0945 | R191: -4.055 | S191: 2.506715139e-05 | T191: 5.945 | U191: =IF($G$9>T191, S191,0) -> 2.506715139e-05
K192: -8.1 | L192: 2.9 | M192: 9.1 | N192: 4.158598979e-19 | O192: =IF(ISEVEN(ABS(100*K192)), 0, IF($C$9>K192, 0,N192)) -> 0 | Q192: 0.095 | R192: -4.05 | S192: 2.560881647e-05 | T192: 5.95 | U192: =IF($G$9>T192, S192,0) -> 2.560881647e-05
K193: -8.09 | L193: 2.91 | M193: 9.09 | N193: 4.554556834e-19 | O193: =IF(ISEVEN(ABS(100*K193)), 0, IF($C$9>K193, 0,N193)) -> 0 | Q193: 0.0955 | R193: -4.045 | S193: 2.616156206e-05 | T193: 5.955 | U193: =IF($G$9>T193, S193,0) -> 2.616156206e-05
K194: -8.08 | L194: 2.92 | M194: 9.08 | N194: 4.987716719e-19 | O194: =IF(ISEVEN(ABS(100*K194)), 0, IF($C$9>K194, 0,N194)) -> 0 | Q194: 0.096 | R194: -4.04 | S194: 2.672560072e-05 | T194: 5.96 | U194: =IF($G$9>T194, S194,0) -> 2.672560072e-05
K195: -8.07 | L195: 2.93 | M195: 9.07 | N195: =_xlfn.NORM.S.DIST(M195,FALSE) -> 5.461525977e-19 | O195: =IF(ISEVEN(ABS(100*K195)), 0, IF($C$9>K195, 0,N195)) -> 0 | Q195: =(K195 +10)/20 -> 0.0965 | R195: -4.035 | S195: =_xlfn.NORM.S.DIST(R195,TRUE) -> 2.730114879e-05 | T195: 5.965 | U195: =IF($G$9>T195, S195,0) -> 2.730114879e-05
K196: =ROUND(K195+0.01,2) -> -8.06 | L196: =ROUND(L195+0.01,2) -> 2.94 | M196: =ROUND(M195-0.01,2) -> 9.06 | N196: 5.979746846e-19 | O196: =IF(ISEVEN(ABS(100*K196)), 0, IF($C$9>K196, 0,N196)) -> 0 | Q196: 0.097 | R196: =ROUND(R195+0.005,4) -> -4.03 | S196: 2.788842644e-05 | T196: =ROUND(T195+0.005,3) -> 5.97 | U196: =IF($G$9>T196, S196,0) -> 2.788842644e-05
K197: -8.05 | L197: 2.95 | M197: 9.05 | N197: 6.546484799e-19 | O197: =IF(ISEVEN(ABS(100*K197)), 0, IF($C$9>K197, 0,N197)) -> 0 | Q197: 0.0975 | R197: -4.025 | S197: 2.848765774e-05 | T197: 5.975 | U197: =IF($G$9>T197, S197,0) -> 2.848765774e-05
K198: -8.04 | L198: 2.96 | M198: 9.04 | N198: 7.166219389e-19 | O198: =IF(ISEVEN(ABS(100*K198)), 0, IF($C$9>K198, 0,N198)) -> 0 | Q198: 0.098 | R198: -4.02 | S198: 2.909907071e-05 | T198: 5.98 | U198: =IF($G$9>T198, S198,0) -> 2.909907071e-05
K199: -8.03 | L199: 2.97 | M199: 9.03 | N199: 7.84383783e-19 | O199: =IF(ISEVEN(ABS(100*K199)), 0, IF($C$9>K199, 0,N199)) -> 0 | Q199: 0.0985 | R199: -4.015 | S199: 2.97228974e-05 | T199: 5.985 | U199: =IF($G$9>T199, S199,0) -> 2.97228974e-05
K200: -8.02 | L200: 2.98 | M200: 9.02 | N200: 8.584671538e-19 | O200: =IF(ISEVEN(ABS(100*K200)), 0, IF($C$9>K200, 0,N200)) -> 0 | Q200: 0.099 | R200: -4.01 | S200: 3.035937393e-05 | T200: 5.99 | U200: =IF($G$9>T200, S200,0) -> 3.035937393e-05
... 1802 more rows

Sheet Both Vary
D1: Propensity (0-100) | M1: X Axis | N1: Mean P | O1: SD from -10 | P1: PDF | Q1: Shading | S1: Sanctioning | T1: CDF Z | U1: CDF | V1: Cutoff X | W1: Chart CDF
M2: -10 | N2: =G13 -> 0 | O2: =I13 -> 10 | P2: =_xlfn.NORM.S.DIST(O2,FALSE) -> 7.694598627e-23 | Q2: =IF(ISEVEN(ABS(100*M2)), 0, IF($D$14>M2, 0,P2)) -> 0 | S2: 0 | T2: -5 | U2: =_xlfn.NORM.S.DIST(T2,TRUE) -> 2.866515719e-07 | V2: 5 | W2: =IF($L$13>V2, U2,0) -> 2.866515719e-07
M3: =ROUND(M2+0.01,2) -> -9.99 | N3: =ROUND(N2+0.01,2) -> 0.01 | O3: =ROUND(O2-0.01,2) -> 9.99 | P3: =_xlfn.NORM.S.DIST(O3,FALSE) -> 8.503421447e-23 | Q3: =IF(ISEVEN(ABS(100*M3)), 0, IF($D$14>M3, 0,P3)) -> 0 | S3: =(M3 +10)/20 -> 0.0005 | T3: =ROUND(T2+0.005,4) -> -4.995 | U3: =_xlfn.NORM.S.DIST(T3,TRUE) -> 2.941788371e-07 | V3: =ROUND(V2+0.005,3) -> 5.005 | W3: =IF($L$13>V3, U3,0) -> 2.941788371e-07
M4: =ROUND(M3+0.01,2) -> -9.98 | N4: 0.02 | O4: =ROUND(O3-0.01,2) -> 9.98 | P4: 9.396324533e-23 | Q4: =IF(ISEVEN(ABS(100*M4)), 0, IF($D$14>M4, 0,P4)) -> 0 | S4: 0.001 | T4: =ROUND(T3+0.005,4) -> -4.99 | U4: 3.018964625e-07 | V4: =ROUND(V3+0.005,3) -> 5.01 | W4: =IF($L$13>V4, U4,0) -> 3.018964625e-07
D5: Sanctioning (0-100) | M5: -9.97 | N5: 0.03 | O5: 9.97 | P5: 1.03819488e-22 | Q5: =IF(ISEVEN(ABS(100*M5)), 0, IF($D$14>M5, 0,P5)) -> 0 | S5: 0.0015 | T5: -4.985 | U5: 3.098090645e-07 | V5: 5.015 | W5: =IF($L$13>V5, U5,0) -> 3.098090645e-07
M6: -9.96 | N6: 0.04 | O6: 9.96 | P6: 1.146981275e-22 | Q6: =IF(ISEVEN(ABS(100*M6)), 0, IF($D$14>M6, 0,P6)) -> 0 | S6: 0.002 | T6: -4.98 | U6: 3.179213662e-07 | V6: 5.02 | W6: =IF($L$13>V6, U6,0) -> 3.179213662e-07
M7: -9.95 | N7: 0.05 | O7: 9.95 | P7: 1.267040052e-22 | Q7: =IF(ISEVEN(ABS(100*M7)), 0, IF($D$14>M7, 0,P7)) -> 0 | S7: 0.0025 | T7: -4.975 | U7: 3.262381996e-07 | V7: 5.025 | W7: =IF($L$13>V7, U7,0) -> 3.262381996e-07
M8: -9.94 | N8: 0.06 | O8: 9.94 | P8: 1.399525867e-22 | Q8: =IF(ISEVEN(ABS(100*M8)), 0, IF($D$14>M8, 0,P8)) -> 0 | S8: 0.003 | T8: -4.97 | U8: 3.347645083e-07 | V8: 5.03 | W8: =IF($L$13>V8, U8,0) -> 3.347645083e-07
A9: Hint: Move each slider to see the effect of changes in Propensity and Sanctioning | M9: -9.93 | N9: 0.07 | O9: 9.93 | P9: 1.545710249e-22 | Q9: =IF(ISEVEN(ABS(100*M9)), 0, IF($D$14>M9, 0,P9)) -> 0 | S9: 0.0035 | T9: -4.965 | U9: 3.435053498e-07 | V9: 5.035 | W9: =IF($L$13>V9, U9,0) -> 3.435053498e-07
M10: -9.92 | N10: 0.08 | O10: 9.92 | P10: 1.70699329e-22 | Q10: =IF(ISEVEN(ABS(100*M10)), 0, IF($D$14>M10, 0,P10)) -> 0 | S10: 0.004 | T10: -4.96 | U10: 3.524658982e-07 | V10: 5.04 | W10: =IF($L$13>V10, U10,0) -> 3.524658982e-07
A11: Propensity | B11: Sanction | C11: Crime | D11: Sanction | E11: Sanction | F11: X at | G11: X at Mean | H11: Delta | I11: SD from | J11: Sanction | K11: Sanction | L11: Sanction | M11: -9.91 | N11: 0.09 | O11: 9.91 | P11: 1.884916481e-22 | Q11: =IF(ISEVEN(ABS(100*M11)), 0, IF($D$14>M11, 0,P11)) -> 0 | S11: 0.0045 | T11: -4.955 | U11: 3.616514461e-07 | V11: 5.045 | W11: =IF($L$13>V11, U11,0) -> 3.616514461e-07
A12: Level | B12: Level | C12: Rate | D12: X | E12: Y | F12: Zero Crime | G12: Propensity | H12: Z | I12: X = -10 | J12: X | K12: Y | L12: Cutoff | M12: -9.9 | N12: 0.1 | O12: 9.9 | P12: 2.08117682e-22 | Q12: =IF(ISEVEN(ABS(100*M12)), 0, IF($D$14>M12, 0,P12)) -> 0 | S12: 0.005 | T12: -4.95 | U12: 3.71067408e-07 | V12: 5.05 | W12: =IF($L$13>V12, U12,0) -> 3.71067408e-07
A13: 50 | B13: 50 | C13: =_xlfn.NORM.S.DIST(G13, TRUE) -> 0.5 | D13: =B13/10-5 -> 0 | E13: 0 | F13: =A13/10-10 -> -5 | G13: =F13+5 -> 0 | H13: =G13-D13 -> 0 | I13: =10+G13 -> 10 | J13: =IF((H13+5)/10 < 1, IF((H13+5)/10>0, (H13+5)/10, 0), 1) -> 0.5 | K13: 0 | L13: =IF((J13 *10 +5) < 15, IF((J13 *10 +5)>5, (J13 *10 +5), 5), 15) -> 10 | M13: -9.89 | N13: 0.11 | O13: 9.89 | P13: 2.297642306e-22 | Q13: =IF(ISEVEN(ABS(100*M13)), 0, IF($D$14>M13, 0,P13)) -> 0 | S13: 0.0055 | T13: -4.945 | U13: 3.807193223e-07 | V13: 5.055 | W13: =IF($L$13>V13, U13,0) -> 3.807193223e-07
D14: =D13 -> 0 | E14: 0.45 | H14: =-H13 -> 0 | I14: =10+D14 -> 10 | J14: =J13 -> 0.5 | K14: 1 | M14: -9.88 | N14: 0.12 | O14: 9.88 | P14: 2.536368954e-22 | Q14: =IF(ISEVEN(ABS(100*M14)), 0, IF($D$14>M14, 0,P14)) -> 0 | S14: 0.006 | T14: -4.94 | U14: 3.906128543e-07 | V14: 5.06 | W14: =IF($L$13>V14, U14,0) -> 3.906128543e-07
M15: -9.87 | N15: 0.13 | O15: 9.87 | P15: 2.799619493e-22 | Q15: =IF(ISEVEN(ABS(100*M15)), 0, IF($D$14>M15, 0,P15)) -> 0 | S15: 0.0065 | T15: -4.935 | U15: 4.007537991e-07 | V15: 5.065 | W15: =IF($L$13>V15, U15,0) -> 4.007537991e-07
M16: -9.86 | N16: 0.14 | O16: 9.86 | P16: 3.089883885e-22 | Q16: =IF(ISEVEN(ABS(100*M16)), 0, IF($D$14>M16, 0,P16)) -> 0 | S16: 0.007 | T16: -4.93 | U16: 4.111480838e-07 | V16: 5.07 | W16: =IF($L$13>V16, U16,0) -> 4.111480838e-07
M17: -9.85 | N17: 0.15 | O17: 9.85 | P17: 3.409901866e-22 | Q17: =IF(ISEVEN(ABS(100*M17)), 0, IF($D$14>M17, 0,P17)) -> 0 | S17: 0.0075 | T17: -4.925 | U17: 4.218017712e-07 | V17: 5.075 | W17: =IF($L$13>V17, U17,0) -> 4.218017712e-07
M18: -9.84 | N18: 0.16 | O18: 9.84 | P18: 3.762687688e-22 | Q18: =IF(ISEVEN(ABS(100*M18)), 0, IF($D$14>M18, 0,P18)) -> 0 | S18: 0.008 | T18: -4.92 | U18: 4.327210619e-07 | V18: 5.08 | W18: =IF($L$13>V18, U18,0) -> 4.327210619e-07
M19: -9.83 | N19: 0.17 | O19: 9.83 | P19: 4.151557283e-22 | Q19: =IF(ISEVEN(ABS(100*M19)), 0, IF($D$14>M19, 0,P19)) -> 0 | S19: 0.0085 | T19: -4.915 | U19: 4.439122977e-07 | V19: 5.085 | W19: =IF($L$13>V19, U19,0) -> 4.439122977e-07
M20: =ROUND(M19+0.01,2) -> -9.82 | N20: 0.18 | O20: 9.82 | P20: 4.580158079e-22 | Q20: =IF(ISEVEN(ABS(100*M20)), 0, IF($D$14>M20, 0,P20)) -> 0 | S20: 0.009 | T20: -4.91 | U20: 4.553819648e-07 | V20: 5.09 | W20: =IF($L$13>V20, U20,0) -> 4.553819648e-07
M21: -9.81 | N21: 0.19 | O21: 9.81 | P21: 5.05250173e-22 | Q21: =IF(ISEVEN(ABS(100*M21)), 0, IF($D$14>M21, 0,P21)) -> 0 | S21: 0.0095 | T21: -4.905 | U21: 4.671366965e-07 | V21: 5.095 | W21: =IF($L$13>V21, U21,0) -> 4.671366965e-07
M22: -9.8 | N22: 0.2 | O22: 9.8 | P22: 5.573000023e-22 | Q22: =IF(ISEVEN(ABS(100*M22)), 0, IF($D$14>M22, 0,P22)) -> 0 | S22: 0.01 | T22: -4.9 | U22: 4.791832766e-07 | V22: 5.1 | W22: =IF($L$13>V22, U22,0) -> 4.791832766e-07
M23: -9.79 | N23: 0.21 | O23: 9.79 | P23: 6.146504294e-22 | Q23: =IF(ISEVEN(ABS(100*M23)), 0, IF($D$14>M23, 0,P23)) -> 0 | S23: 0.0105 | T23: -4.895 | U23: 4.915286424e-07 | V23: 5.105 | W23: =IF($L$13>V23, U23,0) -> 4.915286424e-07
M24: -9.78 | N24: 0.22 | O24: 9.78 | P24: 6.778348666e-22 | Q24: =IF(ISEVEN(ABS(100*M24)), 0, IF($D$14>M24, 0,P24)) -> 0 | S24: 0.011 | T24: -4.89 | U24: 5.041798884e-07 | V24: 5.11 | W24: =IF($L$13>V24, U24,0) -> 5.041798884e-07
M25: -9.77 | N25: 0.23 | O25: 9.77 | P25: 7.47439749e-22 | Q25: =IF(ISEVEN(ABS(100*M25)), 0, IF($D$14>M25, 0,P25)) -> 0 | S25: 0.0115 | T25: -4.885 | U25: 5.171442691e-07 | V25: 5.115 | W25: =IF($L$13>V25, U25,0) -> 5.171442691e-07
M26: -9.76 | N26: 0.24 | O26: 9.76 | P26: 8.241097384e-22 | Q26: =IF(ISEVEN(ABS(100*M26)), 0, IF($D$14>M26, 0,P26)) -> 0 | S26: 0.012 | T26: -4.88 | U26: 5.30429203e-07 | V26: 5.12 | W26: =IF($L$13>V26, U26,0) -> 5.30429203e-07
M27: -9.75 | N27: 0.25 | O27: 9.75 | P27: 9.085534312e-22 | Q27: =IF(ISEVEN(ABS(100*M27)), 0, IF($D$14>M27, 0,P27)) -> 0 | S27: 0.0125 | T27: -4.875 | U27: 5.440422756e-07 | V27: 5.125 | W27: =IF($L$13>V27, U27,0) -> 5.440422756e-07
M28: -9.74 | N28: 0.26 | O28: 9.74 | P28: 1.001549619e-21 | Q28: =IF(ISEVEN(ABS(100*M28)), 0, IF($D$14>M28, 0,P28)) -> 0 | S28: 0.013 | T28: -4.87 | U28: 5.579912432e-07 | V28: 5.13 | W28: =IF($L$13>V28, U28,0) -> 5.579912432e-07
M29: -9.73 | N29: 0.27 | O29: 9.73 | P29: 1.103954154e-21 | Q29: =IF(ISEVEN(ABS(100*M29)), 0, IF($D$14>M29, 0,P29)) -> 0 | S29: 0.0135 | T29: -4.865 | U29: 5.722840366e-07 | V29: 5.135 | W29: =IF($L$13>V29, U29,0) -> 5.722840366e-07
M30: -9.72 | N30: 0.28 | O30: 9.72 | P30: 1.216707475e-21 | Q30: =IF(ISEVEN(ABS(100*M30)), 0, IF($D$14>M30, 0,P30)) -> 0 | S30: 0.014 | T30: -4.86 | U30: 5.869287645e-07 | V30: 5.14 | W30: =IF($L$13>V30, U30,0) -> 5.869287645e-07
M31: -9.71 | N31: 0.29 | O31: 9.71 | P31: 1.340842865e-21 | Q31: =IF(ISEVEN(ABS(100*M31)), 0, IF($D$14>M31, 0,P31)) -> 0 | S31: 0.0145 | T31: -4.855 | U31: 6.019337175e-07 | V31: 5.145 | W31: =IF($L$13>V31, U31,0) -> 6.019337175e-07
M32: -9.7 | N32: 0.3 | O32: 9.7 | P32: 1.477495493e-21 | Q32: =IF(ISEVEN(ABS(100*M32)), 0, IF($D$14>M32, 0,P32)) -> 0 | S32: 0.015 | T32: -4.85 | U32: 6.17307372e-07 | V32: 5.15 | W32: =IF($L$13>V32, U32,0) -> 6.17307372e-07
M33: -9.69 | N33: 0.31 | O33: 9.69 | P33: 1.627912338e-21 | Q33: =IF(ISEVEN(ABS(100*M33)), 0, IF($D$14>M33, 0,P33)) -> 0 | S33: 0.0155 | T33: -4.845 | U33: 6.330583939e-07 | V33: 5.155 | W33: =IF($L$13>V33, U33,0) -> 6.330583939e-07
M34: -9.68 | N34: 0.32 | O34: 9.68 | P34: 1.793463057e-21 | Q34: =IF(ISEVEN(ABS(100*M34)), 0, IF($D$14>M34, 0,P34)) -> 0 | S34: 0.016 | T34: -4.84 | U34: 6.491956429e-07 | V34: 5.16 | W34: =IF($L$13>V34, U34,0) -> 6.491956429e-07
M35: -9.67 | N35: 0.33 | O35: 9.67 | P35: 1.9756519e-21 | Q35: =IF(ISEVEN(ABS(100*M35)), 0, IF($D$14>M35, 0,P35)) -> 0 | S35: 0.0165 | T35: -4.835 | U35: 6.65728176e-07 | V35: 5.165 | W35: =IF($L$13>V35, U35,0) -> 6.65728176e-07
M36: =ROUND(M35+0.01,2) -> -9.66 | N36: 0.34 | O36: 9.66 | P36: 2.176130761e-21 | Q36: =IF(ISEVEN(ABS(100*M36)), 0, IF($D$14>M36, 0,P36)) -> 0 | S36: 0.017 | T36: -4.83 | U36: 6.826652526e-07 | V36: 5.17 | W36: =IF($L$13>V36, U36,0) -> 6.826652526e-07
M37: -9.65 | N37: 0.35 | O37: 9.65 | P37: 2.39671349e-21 | Q37: =IF(ISEVEN(ABS(100*M37)), 0, IF($D$14>M37, 0,P37)) -> 0 | S37: 0.0175 | T37: -4.825 | U37: 7.000163377e-07 | V37: 5.175 | W37: =IF($L$13>V37, U37,0) -> 7.000163377e-07
M38: -9.64 | N38: 0.36 | O38: 9.64 | P38: 2.639391557e-21 | Q38: =IF(ISEVEN(ABS(100*M38)), 0, IF($D$14>M38, 0,P38)) -> 0 | S38: 0.018 | T38: -4.82 | U38: 7.177911069e-07 | V38: 5.18 | W38: =IF($L$13>V38, U38,0) -> 7.177911069e-07
M39: -9.63 | N39: 0.37 | O39: 9.63 | P39: 2.906351224e-21 | Q39: =IF(ISEVEN(ABS(100*M39)), 0, IF($D$14>M39, 0,P39)) -> 0 | S39: 0.0185 | T39: -4.815 | U39: 7.359994509e-07 | V39: 5.185 | W39: =IF($L$13>V39, U39,0) -> 7.359994509e-07
M40: -9.62 | N40: 0.38 | O40: 9.62 | P40: 3.199992352e-21 | Q40: =IF(ISEVEN(ABS(100*M40)), 0, IF($D$14>M40, 0,P40)) -> 0 | S40: 0.019 | T40: -4.81 | U40: 7.546514791e-07 | V40: 5.19 | W40: =IF($L$13>V40, U40,0) -> 7.546514791e-07
M41: -9.61 | N41: 0.39 | O41: 9.61 | P41: 3.522948988e-21 | Q41: =IF(ISEVEN(ABS(100*M41)), 0, IF($D$14>M41, 0,P41)) -> 0 | S41: 0.0195 | T41: -4.805 | U41: 7.737575255e-07 | V41: 5.195 | W41: =IF($L$13>V41, U41,0) -> 7.737575255e-07
M42: -9.6 | N42: 0.4 | O42: 9.6 | P42: 3.878111932e-21 | Q42: =IF(ISEVEN(ABS(100*M42)), 0, IF($D$14>M42, 0,P42)) -> 0 | S42: 0.02 | T42: -4.8 | U42: 7.93328152e-07 | V42: 5.2 | W42: =IF($L$13>V42, U42,0) -> 7.93328152e-07
M43: -9.59 | N43: 0.41 | O43: 9.59 | P43: 4.268653422e-21 | Q43: =IF(ISEVEN(ABS(100*M43)), 0, IF($D$14>M43, 0,P43)) -> 0 | S43: 0.0205 | T43: -4.795 | U43: 8.133741542e-07 | V43: 5.205 | W43: =IF($L$13>V43, U43,0) -> 8.133741542e-07
M44: -9.58 | N44: 0.42 | O44: 9.58 | P44: 4.698054184e-21 | Q44: =IF(ISEVEN(ABS(100*M44)), 0, IF($D$14>M44, 0,P44)) -> 0 | S44: 0.021 | T44: -4.79 | U44: 8.339065659e-07 | V44: 5.21 | W44: =IF($L$13>V44, U44,0) -> 8.339065659e-07
M45: -9.57 | N45: 0.43 | O45: 9.57 | P45: 5.170133032e-21 | Q45: =IF(ISEVEN(ABS(100*M45)), 0, IF($D$14>M45, 0,P45)) -> 0 | S45: 0.0215 | T45: -4.785 | U45: 8.549366638e-07 | V45: 5.215 | W45: =IF($L$13>V45, U45,0) -> 8.549366638e-07
M46: -9.56 | N46: 0.44 | O46: 9.56 | P46: 5.689079271e-21 | Q46: =IF(ISEVEN(ABS(100*M46)), 0, IF($D$14>M46, 0,P46)) -> 0 | S46: 0.022 | T46: -4.78 | U46: 8.764759729e-07 | V46: 5.22 | W46: =IF($L$13>V46, U46,0) -> 8.764759729e-07
M47: -9.55 | N47: 0.45 | O47: 9.55 | P47: 6.259488169e-21 | Q47: =IF(ISEVEN(ABS(100*M47)), 0, IF($D$14>M47, 0,P47)) -> 0 | S47: 0.0225 | T47: -4.775 | U47: 8.985362714e-07 | V47: 5.225 | W47: =IF($L$13>V47, U47,0) -> 8.985362714e-07
M48: -9.54 | N48: 0.46 | O48: 9.54 | P48: 6.886399777e-21 | Q48: =IF(ISEVEN(ABS(100*M48)), 0, IF($D$14>M48, 0,P48)) -> 0 | S48: 0.023 | T48: -4.77 | U48: 9.211295962e-07 | V48: 5.23 | W48: =IF($L$13>V48, U48,0) -> 9.211295962e-07
M49: -9.53 | N49: 0.47 | O49: 9.53 | P49: 7.5753414e-21 | Q49: =IF(ISEVEN(ABS(100*M49)), 0, IF($D$14>M49, 0,P49)) -> 0 | S49: 0.0235 | T49: -4.765 | U49: 9.442682477e-07 | V49: 5.235 | W49: =IF($L$13>V49, U49,0) -> 9.442682477e-07
M50: -9.52 | N50: 0.48 | O50: 9.52 | P50: 8.332374084e-21 | Q50: =IF(ISEVEN(ABS(100*M50)), 0, IF($D$14>M50, 0,P50)) -> 0 | S50: 0.024 | T50: -4.76 | U50: 9.67964796e-07 | V50: 5.24 | W50: =IF($L$13>V50, U50,0) -> 9.67964796e-07
M51: -9.51 | N51: 0.49 | O51: 9.51 | P51: 9.164143464e-21 | Q51: =IF(ISEVEN(ABS(100*M51)), 0, IF($D$14>M51, 0,P51)) -> 0 | S51: 0.0245 | T51: -4.755 | U51: 9.922320859e-07 | V51: 5.245 | W51: =IF($L$13>V51, U51,0) -> 9.922320859e-07
M52: =ROUND(M51+0.01,2) -> -9.5 | N52: 0.5 | O52: 9.5 | P52: 1.007793539e-20 | Q52: =IF(ISEVEN(ABS(100*M52)), 0, IF($D$14>M52, 0,P52)) -> 0 | S52: 0.025 | T52: -4.75 | U52: 1.017083243e-06 | V52: 5.25 | W52: =IF($L$13>V52, U52,0) -> 1.017083243e-06
M53: -9.49 | N53: 0.51 | O53: 9.49 | P53: 1.10817368e-20 | Q53: =IF(ISEVEN(ABS(100*M53)), 0, IF($D$14>M53, 0,P53)) -> 0 | S53: 0.0255 | T53: -4.745 | U53: 1.042531678e-06 | V53: 5.255 | W53: =IF($L$13>V53, U53,0) -> 1.042531678e-06
M54: -9.48 | N54: 0.52 | O54: 9.48 | P54: 1.218430222e-20 | Q54: =IF(ISEVEN(ABS(100*M54)), 0, IF($D$14>M54, 0,P54)) -> 0 | S54: 0.026 | T54: -4.74 | U54: 1.068591095e-06 | V54: 5.26 | W54: =IF($L$13>V54, U54,0) -> 1.068591095e-06
M55: -9.47 | N55: 0.53 | O55: 9.47 | P55: 1.33952266e-20 | Q55: =IF(ISEVEN(ABS(100*M55)), 0, IF($D$14>M55, 0,P55)) -> 0 | S55: 0.0265 | T55: -4.735 | U55: 1.095275495e-06 | V55: 5.265 | W55: =IF($L$13>V55, U55,0) -> 1.095275495e-06
M56: -9.46 | N56: 0.54 | O56: 9.46 | P56: 1.472502489e-20 | Q56: =IF(ISEVEN(ABS(100*M56)), 0, IF($D$14>M56, 0,P56)) -> 0 | S56: 0.027 | T56: -4.73 | U56: 1.122599185e-06 | V56: 5.27 | W56: =IF($L$13>V56, U56,0) -> 1.122599185e-06
M57: -9.45 | N57: 0.55 | O57: 9.45 | P57: 1.618521902e-20 | Q57: =IF(ISEVEN(ABS(100*M57)), 0, IF($D$14>M57, 0,P57)) -> 0 | S57: 0.0275 | T57: -4.725 | U57: 1.150576782e-06 | V57: 5.275 | W57: =IF($L$13>V57, U57,0) -> 1.150576782e-06
M58: -9.44 | N58: 0.56 | O58: 9.44 | P58: 1.778843309e-20 | Q58: =IF(ISEVEN(ABS(100*M58)), 0, IF($D$14>M58, 0,P58)) -> 0 | S58: 0.028 | T58: -4.72 | U58: 1.179223217e-06 | V58: 5.28 | W58: =IF($L$13>V58, U58,0) -> 1.179223217e-06
M59: -9.43 | N59: 0.57 | O59: 9.43 | P59: 1.954849731e-20 | Q59: =IF(ISEVEN(ABS(100*M59)), 0, IF($D$14>M59, 0,P59)) -> 0 | S59: 0.0285 | T59: -4.715 | U59: 1.208553746e-06 | V59: 5.285 | W59: =IF($L$13>V59, U59,0) -> 1.208553746e-06
M60: -9.42 | N60: 0.58 | O60: 9.42 | P60: 2.148056171e-20 | Q60: =IF(ISEVEN(ABS(100*M60)), 0, IF($D$14>M60, 0,P60)) -> 0 | S60: 0.029 | T60: -4.71 | U60: 1.238583957e-06 | V60: 5.29 | W60: =IF($L$13>V60, U60,0) -> 1.238583957e-06
M61: -9.41 | N61: 0.59 | O61: 9.41 | P61: 2.360122033e-20 | Q61: =IF(ISEVEN(ABS(100*M61)), 0, IF($D$14>M61, 0,P61)) -> 0 | S61: 0.0295 | T61: -4.705 | U61: 1.269329771e-06 | V61: 5.295 | W61: =IF($L$13>V61, U61,0) -> 1.269329771e-06
M62: -9.4 | N62: 0.6 | O62: 9.4 | P62: 2.592864701e-20 | Q62: =IF(ISEVEN(ABS(100*M62)), 0, IF($D$14>M62, 0,P62)) -> 0 | S62: 0.03 | T62: -4.7 | U62: 1.300807454e-06 | V62: 5.3 | W62: =IF($L$13>V62, U62,0) -> 1.300807454e-06
M63: -9.39 | N63: 0.61 | O63: 9.39 | P63: 2.84827437e-20 | Q63: =IF(ISEVEN(ABS(100*M63)), 0, IF($D$14>M63, 0,P63)) -> 0 | S63: 0.0305 | T63: -4.695 | U63: 1.333033621e-06 | V63: 5.305 | W63: =IF($L$13>V63, U63,0) -> 1.333033621e-06
M64: -9.38 | N64: 0.62 | O64: 9.38 | P64: 3.128530253e-20 | Q64: =IF(ISEVEN(ABS(100*M64)), 0, IF($D$14>M64, 0,P64)) -> 0 | S64: 0.031 | T64: -4.69 | U64: 1.366025245e-06 | V64: 5.31 | W64: =IF($L$13>V64, U64,0) -> 1.366025245e-06
M65: -9.37 | N65: 0.63 | O65: 9.37 | P65: 3.436018288e-20 | Q65: =IF(ISEVEN(ABS(100*M65)), 0, IF($D$14>M65, 0,P65)) -> 0 | S65: 0.0315 | T65: -4.685 | U65: 1.399799663e-06 | V65: 5.315 | W65: =IF($L$13>V65, U65,0) -> 1.399799663e-06
M66: -9.36 | N66: 0.64 | O66: 9.36 | P66: 3.773350474e-20 | Q66: =IF(ISEVEN(ABS(100*M66)), 0, IF($D$14>M66, 0,P66)) -> 0 | S66: 0.032 | T66: -4.68 | U66: 1.434374584e-06 | V66: 5.32 | W66: =IF($L$13>V66, U66,0) -> 1.434374584e-06
M67: -9.35 | N67: 0.65 | O67: 9.35 | P67: =_xlfn.NORM.S.DIST(O67,FALSE) -> 4.143385995e-20 | Q67: =IF(ISEVEN(ABS(100*M67)), 0, IF($D$14>M67, 0,P67)) -> 0 | S67: =(M67 +10)/20 -> 0.0325 | T67: -4.675 | U67: =_xlfn.NORM.S.DIST(T67,TRUE) -> 1.469768098e-06 | V67: 5.325 | W67: =IF($L$13>V67, U67,0) -> 1.469768098e-06
M68: =ROUND(M67+0.01,2) -> -9.34 | N68: 0.66 | O68: =ROUND(O67-0.01,2) -> 9.34 | P68: 4.549254288e-20 | Q68: =IF(ISEVEN(ABS(100*M68)), 0, IF($D$14>M68, 0,P68)) -> 0 | S68: 0.033 | T68: =ROUND(T67+0.005,4) -> -4.67 | U68: 1.505998678e-06 | V68: =ROUND(V67+0.005,3) -> 5.33 | W68: =IF($L$13>V68, U68,0) -> 1.505998678e-06
M69: -9.33 | N69: 0.67 | O69: 9.33 | P69: 4.994380232e-20 | Q69: =IF(ISEVEN(ABS(100*M69)), 0, IF($D$14>M69, 0,P69)) -> 0 | S69: 0.0335 | T69: -4.665 | U69: 1.543085194e-06 | V69: 5.335 | W69: =IF($L$13>V69, U69,0) -> 1.543085194e-06
M70: -9.32 | N70: 0.68 | O70: 9.32 | P70: 5.482511652e-20 | Q70: =IF(ISEVEN(ABS(100*M70)), 0, IF($D$14>M70, 0,P70)) -> 0 | S70: 0.034 | T70: -4.66 | U70: 1.581046919e-06 | V70: 5.34 | W70: =IF($L$13>V70, U70,0) -> 1.581046919e-06
M71: -9.31 | N71: 0.69 | O71: 9.31 | P71: 6.017749346e-20 | Q71: =IF(ISEVEN(ABS(100*M71)), 0, IF($D$14>M71, 0,P71)) -> 0 | S71: 0.0345 | T71: -4.655 | U71: 1.619903535e-06 | V71: 5.345 | W71: =IF($L$13>V71, U71,0) -> 1.619903535e-06
M72: -9.3 | N72: 0.7 | O72: 9.3 | P72: 6.604579861e-20 | Q72: =IF(ISEVEN(ABS(100*M72)), 0, IF($D$14>M72, 0,P72)) -> 0 | S72: 0.035 | T72: -4.65 | U72: 1.659675144e-06 | V72: 5.35 | W72: =IF($L$13>V72, U72,0) -> 1.659675144e-06
M73: -9.29 | N73: 0.71 | O73: 9.29 | P73: 7.24791127e-20 | Q73: =IF(ISEVEN(ABS(100*M73)), 0, IF($D$14>M73, 0,P73)) -> 0 | S73: 0.0355 | T73: -4.645 | U73: 1.700382275e-06 | V73: 5.355 | W73: =IF($L$13>V73, U73,0) -> 1.700382275e-06
M74: -9.28 | N74: 0.72 | O74: 9.28 | P74: 7.953112223e-20 | Q74: =IF(ISEVEN(ABS(100*M74)), 0, IF($D$14>M74, 0,P74)) -> 0 | S74: 0.036 | T74: -4.64 | U74: 1.74204589e-06 | V74: 5.36 | W74: =IF($L$13>V74, U74,0) -> 1.74204589e-06
M75: -9.27 | N75: 0.73 | O75: 9.27 | P75: 8.726054555e-20 | Q75: =IF(ISEVEN(ABS(100*M75)), 0, IF($D$14>M75, 0,P75)) -> 0 | S75: 0.0365 | T75: -4.635 | U75: 1.7846874e-06 | V75: 5.365 | W75: =IF($L$13>V75, U75,0) -> 1.7846874e-06
M76: -9.26 | N76: 0.74 | O76: 9.26 | P76: 9.573159782e-20 | Q76: =IF(ISEVEN(ABS(100*M76)), 0, IF($D$14>M76, 0,P76)) -> 0 | S76: 0.037 | T76: -4.63 | U76: 1.828328664e-06 | V76: 5.37 | W76: =IF($L$13>V76, U76,0) -> 1.828328664e-06
M77: -9.25 | N77: 0.75 | O77: 9.25 | P77: 1.050144983e-19 | Q77: =IF(ISEVEN(ABS(100*M77)), 0, IF($D$14>M77, 0,P77)) -> 0 | S77: 0.0375 | T77: -4.625 | U77: 1.872992006e-06 | V77: 5.375 | W77: =IF($L$13>V77, U77,0) -> 1.872992006e-06
M78: -9.24 | N78: 0.76 | O78: 9.24 | P78: 1.151860238e-19 | Q78: =IF(ISEVEN(ABS(100*M78)), 0, IF($D$14>M78, 0,P78)) -> 0 | S78: 0.038 | T78: -4.62 | U78: 1.91870022e-06 | V78: 5.38 | W78: =IF($L$13>V78, U78,0) -> 1.91870022e-06
M79: -9.23 | N79: 0.77 | O79: 9.23 | P79: 1.263301123e-19 | Q79: =IF(ISEVEN(ABS(100*M79)), 0, IF($D$14>M79, 0,P79)) -> 0 | S79: 0.0385 | T79: -4.615 | U79: 1.965476582e-06 | V79: 5.385 | W79: =IF($L$13>V79, U79,0) -> 1.965476582e-06
M80: -9.22 | N80: 0.78 | O80: 9.22 | P80: 1.385385214e-19 | Q80: =IF(ISEVEN(ABS(100*M80)), 0, IF($D$14>M80, 0,P80)) -> 0 | S80: 0.039 | T80: -4.61 | U80: 2.013344855e-06 | V80: 5.39 | W80: =IF($L$13>V80, U80,0) -> 2.013344855e-06
M81: -9.21 | N81: 0.79 | O81: 9.21 | P81: 1.519115464e-19 | Q81: =IF(ISEVEN(ABS(100*M81)), 0, IF($D$14>M81, 0,P81)) -> 0 | S81: 0.0395 | T81: -4.605 | U81: 2.062329304e-06 | V81: 5.395 | W81: =IF($L$13>V81, U81,0) -> 2.062329304e-06
M82: -9.2 | N82: 0.8 | O82: 9.2 | P82: 1.665588032e-19 | Q82: =IF(ISEVEN(ABS(100*M82)), 0, IF($D$14>M82, 0,P82)) -> 0 | S82: 0.04 | T82: -4.6 | U82: 2.112454703e-06 | V82: 5.4 | W82: =IF($L$13>V82, U82,0) -> 2.112454703e-06
M83: -9.19 | N83: 0.81 | O83: 9.19 | P83: 1.826000824e-19 | Q83: =IF(ISEVEN(ABS(100*M83)), 0, IF($D$14>M83, 0,P83)) -> 0 | S83: 0.0405 | T83: -4.595 | U83: 2.163746343e-06 | V83: 5.405 | W83: =IF($L$13>V83, U83,0) -> 2.163746343e-06
M84: =ROUND(M83+0.01,2) -> -9.18 | N84: 0.82 | O84: 9.18 | P84: 2.001662797e-19 | Q84: =IF(ISEVEN(ABS(100*M84)), 0, IF($D$14>M84, 0,P84)) -> 0 | S84: 0.041 | T84: -4.59 | U84: 2.216230048e-06 | V84: 5.41 | W84: =IF($L$13>V84, U84,0) -> 2.216230048e-06
M85: -9.17 | N85: 0.83 | O85: 9.17 | P85: 2.194004107e-19 | Q85: =IF(ISEVEN(ABS(100*M85)), 0, IF($D$14>M85, 0,P85)) -> 0 | S85: 0.0415 | T85: -4.585 | U85: 2.26993218e-06 | V85: 5.415 | W85: =IF($L$13>V85, U85,0) -> 2.26993218e-06
M86: -9.16 | N86: 0.84 | O86: 9.16 | P86: 2.404587169e-19 | Q86: =IF(ISEVEN(ABS(100*M86)), 0, IF($D$14>M86, 0,P86)) -> 0 | S86: 0.042 | T86: -4.58 | U86: 2.32487965e-06 | V86: 5.42 | W86: =IF($L$13>V86, U86,0) -> 2.32487965e-06
M87: -9.15 | N87: 0.85 | O87: 9.15 | P87: 2.635118714e-19 | Q87: =IF(ISEVEN(ABS(100*M87)), 0, IF($D$14>M87, 0,P87)) -> 0 | S87: 0.0425 | T87: -4.575 | U87: 2.381099933e-06 | V87: 5.425 | W87: =IF($L$13>V87, U87,0) -> 2.381099933e-06
M88: -9.14 | N88: 0.86 | O88: 9.14 | P88: 2.887462918e-19 | Q88: =IF(ISEVEN(ABS(100*M88)), 0, IF($D$14>M88, 0,P88)) -> 0 | S88: 0.043 | T88: -4.57 | U88: 2.438621074e-06 | V88: 5.43 | W88: =IF($L$13>V88, U88,0) -> 2.438621074e-06
M89: -9.13 | N89: 0.87 | O89: 9.13 | P89: 3.163655724e-19 | Q89: =IF(ISEVEN(ABS(100*M89)), 0, IF($D$14>M89, 0,P89)) -> 0 | S89: 0.0435 | T89: -4.565 | U89: 2.497471702e-06 | V89: 5.435 | W89: =IF($L$13>V89, U89,0) -> 2.497471702e-06
M90: -9.12 | N90: 0.88 | O90: 9.12 | P90: 3.46592043e-19 | Q90: =IF(ISEVEN(ABS(100*M90)), 0, IF($D$14>M90, 0,P90)) -> 0 | S90: 0.044 | T90: -4.56 | U90: 2.557681039e-06 | V90: 5.44 | W90: =IF($L$13>V90, U90,0) -> 2.557681039e-06
M91: -9.11 | N91: 0.89 | O91: 9.11 | P91: 3.796684681e-19 | Q91: =IF(ISEVEN(ABS(100*M91)), 0, IF($D$14>M91, 0,P91)) -> 0 | S91: 0.0445 | T91: -4.555 | U91: 2.619278917e-06 | V91: 5.445 | W91: =IF($L$13>V91, U91,0) -> 2.619278917e-06
M92: -9.1 | N92: 0.9 | O92: 9.1 | P92: 4.158598979e-19 | Q92: =IF(ISEVEN(ABS(100*M92)), 0, IF($D$14>M92, 0,P92)) -> 0 | S92: 0.045 | T92: -4.55 | U92: 2.68229578e-06 | V92: 5.45 | W92: =IF($L$13>V92, U92,0) -> 2.68229578e-06
M93: -9.09 | N93: 0.91 | O93: 9.09 | P93: 4.554556834e-19 | Q93: =IF(ISEVEN(ABS(100*M93)), 0, IF($D$14>M93, 0,P93)) -> 0 | S93: 0.0455 | T93: -4.545 | U93: 2.746762705e-06 | V93: 5.455 | W93: =IF($L$13>V93, U93,0) -> 2.746762705e-06
M94: -9.08 | N94: 0.92 | O94: 9.08 | P94: 4.987716719e-19 | Q94: =IF(ISEVEN(ABS(100*M94)), 0, IF($D$14>M94, 0,P94)) -> 0 | S94: 0.046 | T94: -4.54 | U94: 2.812711412e-06 | V94: 5.46 | W94: =IF($L$13>V94, U94,0) -> 2.812711412e-06
M95: -9.07 | N95: 0.93 | O95: 9.07 | P95: 5.461525977e-19 | Q95: =IF(ISEVEN(ABS(100*M95)), 0, IF($D$14>M95, 0,P95)) -> 0 | S95: 0.0465 | T95: -4.535 | U95: 2.880174271e-06 | V95: 5.465 | W95: =IF($L$13>V95, U95,0) -> 2.880174271e-06
M96: -9.06 | N96: 0.94 | O96: 9.06 | P96: 5.979746846e-19 | Q96: =IF(ISEVEN(ABS(100*M96)), 0, IF($D$14>M96, 0,P96)) -> 0 | S96: 0.047 | T96: -4.53 | U96: 2.949184323e-06 | V96: 5.47 | W96: =IF($L$13>V96, U96,0) -> 2.949184323e-06
M97: -9.05 | N97: 0.95 | O97: 9.05 | P97: 6.546484799e-19 | Q97: =IF(ISEVEN(ABS(100*M97)), 0, IF($D$14>M97, 0,P97)) -> 0 | S97: 0.0475 | T97: -4.525 | U97: 3.019775285e-06 | V97: 5.475 | W97: =IF($L$13>V97, U97,0) -> 3.019775285e-06
M98: -9.04 | N98: 0.96 | O98: 9.04 | P98: 7.166219389e-19 | Q98: =IF(ISEVEN(ABS(100*M98)), 0, IF($D$14>M98, 0,P98)) -> 0 | S98: 0.048 | T98: -4.52 | U98: 3.091981569e-06 | V98: 5.48 | W98: =IF($L$13>V98, U98,0) -> 3.091981569e-06
M99: -9.03 | N99: 0.97 | O99: 9.03 | P99: 7.84383783e-19 | Q99: =IF(ISEVEN(ABS(100*M99)), 0, IF($D$14>M99, 0,P99)) -> 0 | S99: 0.0485 | T99: -4.515 | U99: 3.165838291e-06 | V99: 5.485 | W99: =IF($L$13>V99, U99,0) -> 3.165838291e-06
M100: =ROUND(M99+0.01,2) -> -9.02 | N100: 0.98 | O100: 9.02 | P100: 8.584671538e-19 | Q100: =IF(ISEVEN(ABS(100*M100)), 0, IF($D$14>M100, 0,P100)) -> 0 | S100: 0.049 | T100: -4.51 | U100: 3.241381287e-06 | V100: 5.49 | W100: =IF($L$13>V100, U100,0) -> 3.241381287e-06
M101: -9.01 | N101: 0.99 | O101: 9.01 | P101: 9.394535906e-19 | Q101: =IF(ISEVEN(ABS(100*M101)), 0, IF($D$14>M101, 0,P101)) -> 0 | S101: 0.0495 | T101: -4.505 | U101: 3.318647127e-06 | V101: 5.495 | W101: =IF($L$13>V101, U101,0) -> 3.318647127e-06
M102: -9 | N102: 1 | O102: 9 | P102: 1.027977357e-18 | Q102: =IF(ISEVEN(ABS(100*M102)), 0, IF($D$14>M102, 0,P102)) -> 0 | S102: 0.05 | T102: -4.5 | U102: 3.397673125e-06 | V102: 5.5 | W102: =IF($L$13>V102, U102,0) -> 3.397673125e-06
M103: -8.99 | N103: 1.01 | O103: 8.99 | P103: 1.124730151e-18 | Q103: =IF(ISEVEN(ABS(100*M103)), 0, IF($D$14>M103, 0,P103)) -> 0 | S103: 0.0505 | T103: -4.495 | U103: 3.478497358e-06 | V103: 5.505 | W103: =IF($L$13>V103, U103,0) -> 3.478497358e-06
M104: -8.98 | N104: 1.02 | O104: 8.98 | P104: 1.230466223e-18 | Q104: =IF(ISEVEN(ABS(100*M104)), 0, IF($D$14>M104, 0,P104)) -> 0 | S104: 0.051 | T104: -4.49 | U104: 3.56115868e-06 | V104: 5.51 | W104: =IF($L$13>V104, U104,0) -> 3.56115868e-06
M105: -8.97 | N105: 1.03 | O105: 8.97 | P105: 1.346007954e-18 | Q105: =IF(ISEVEN(ABS(100*M105)), 0, IF($D$14>M105, 0,P105)) -> 0 | S105: 0.0515 | T105: -4.485 | U105: 3.645696731e-06 | V105: 5.515 | W105: =IF($L$13>V105, U105,0) -> 3.645696731e-06
M106: -8.96 | N106: 1.04 | O106: 8.96 | P106: 1.472251911e-18 | Q106: =IF(ISEVEN(ABS(100*M106)), 0, IF($D$14>M106, 0,P106)) -> 0 | S106: 0.052 | T106: -4.48 | U106: 3.732151961e-06 | V106: 5.52 | W106: =IF($L$13>V106, U106,0) -> 3.732151961e-06
M107: -8.95 | N107: 1.05 | O107: 8.95 | P107: 1.610175438e-18 | Q107: =IF(ISEVEN(ABS(100*M107)), 0, IF($D$14>M107, 0,P107)) -> 0 | S107: 0.0525 | T107: -4.475 | U107: 3.820565636e-06 | V107: 5.525 | W107: =IF($L$13>V107, U107,0) -> 3.820565636e-06
M108: -8.94 | N108: 1.06 | O108: 8.94 | P108: 1.760843826e-18 | Q108: =IF(ISEVEN(ABS(100*M108)), 0, IF($D$14>M108, 0,P108)) -> 0 | S108: 0.053 | T108: -4.47 | U108: 3.91097986e-06 | V108: 5.53 | W108: =IF($L$13>V108, U108,0) -> 3.91097986e-06
M109: -8.93 | N109: 1.07 | O109: 8.93 | P109: 1.925418103e-18 | Q109: =IF(ISEVEN(ABS(100*M109)), 0, IF($D$14>M109, 0,P109)) -> 0 | S109: 0.0535 | T109: -4.465 | U109: 4.00343759e-06 | V109: 5.535 | W109: =IF($L$13>V109, U109,0) -> 4.00343759e-06
M110: -8.92 | N110: 1.08 | O110: 8.92 | P110: 2.105163509e-18 | Q110: =IF(ISEVEN(ABS(100*M110)), 0, IF($D$14>M110, 0,P110)) -> 0 | S110: 0.054 | T110: -4.46 | U110: 4.097982647e-06 | V110: 5.54 | W110: =IF($L$13>V110, U110,0) -> 4.097982647e-06
M111: -8.91 | N111: 1.09 | O111: 8.91 | P111: 2.301458703e-18 | Q111: =IF(ISEVEN(ABS(100*M111)), 0, IF($D$14>M111, 0,P111)) -> 0 | S111: 0.0545 | T111: -4.455 | U111: 4.194659738e-06 | V111: 5.545 | W111: =IF($L$13>V111, U111,0) -> 4.194659738e-06
M112: -8.9 | N112: 1.1 | O112: 8.9 | P112: 2.515805777e-18 | Q112: =IF(ISEVEN(ABS(100*M112)), 0, IF($D$14>M112, 0,P112)) -> 0 | S112: 0.055 | T112: -4.45 | U112: 4.29351447e-06 | V112: 5.55 | W112: =IF($L$13>V112, U112,0) -> 4.29351447e-06
M113: -8.89 | N113: 1.11 | O113: 8.89 | P113: 2.749841134e-18 | Q113: =IF(ISEVEN(ABS(100*M113)), 0, IF($D$14>M113, 0,P113)) -> 0 | S113: 0.0555 | T113: -4.445 | U113: 4.394593367e-06 | V113: 5.555 | W113: =IF($L$13>V113, U113,0) -> 4.394593367e-06
M114: -8.88 | N114: 1.12 | O114: 8.88 | P114: 3.005347316e-18 | Q114: =IF(ISEVEN(ABS(100*M114)), 0, IF($D$14>M114, 0,P114)) -> 0 | S114: 0.056 | T114: -4.44 | U114: 4.497943889e-06 | V114: 5.56 | W114: =IF($L$13>V114, U114,0) -> 4.497943889e-06
M115: -8.87 | N115: 1.13 | O115: 8.87 | P115: 3.284265848e-18 | Q115: =IF(ISEVEN(ABS(100*M115)), 0, IF($D$14>M115, 0,P115)) -> 0 | S115: 0.0565 | T115: -4.435 | U115: 4.603614444e-06 | V115: 5.565 | W115: =IF($L$13>V115, U115,0) -> 4.603614444e-06
M116: =ROUND(M115+0.01,2) -> -8.86 | N116: 1.14 | O116: 8.86 | P116: 3.588711199e-18 | Q116: =IF(ISEVEN(ABS(100*M116)), 0, IF($D$14>M116, 0,P116)) -> 0 | S116: 0.057 | T116: -4.43 | U116: 4.711654412e-06 | V116: 5.57 | W116: =IF($L$13>V116, U116,0) -> 4.711654412e-06
M117: -8.85 | N117: 1.15 | O117: 8.85 | P117: 3.920985953e-18 | Q117: =IF(ISEVEN(ABS(100*M117)), 0, IF($D$14>M117, 0,P117)) -> 0 | S117: 0.0575 | T117: -4.425 | U117: 4.822114161e-06 | V117: 5.575 | W117: =IF($L$13>V117, U117,0) -> 4.822114161e-06
M118: -8.84 | N118: 1.16 | O118: 8.84 | P118: 4.283597272e-18 | Q118: =IF(ISEVEN(ABS(100*M118)), 0, IF($D$14>M118, 0,P118)) -> 0 | S118: 0.058 | T118: -4.42 | U118: 4.935045063e-06 | V118: 5.58 | W118: =IF($L$13>V118, U118,0) -> 4.935045063e-06
M119: -8.83 | N119: 1.17 | O119: 8.83 | P119: 4.6792748e-18 | Q119: =IF(ISEVEN(ABS(100*M119)), 0, IF($D$14>M119, 0,P119)) -> 0 | S119: 0.0585 | T119: -4.415 | U119: 5.050499515e-06 | V119: 5.585 | W119: =IF($L$13>V119, U119,0) -> 5.050499515e-06
M120: -8.82 | N120: 1.18 | O120: 8.82 | P120: 5.110990089e-18 | Q120: =IF(ISEVEN(ABS(100*M120)), 0, IF($D$14>M120, 0,P120)) -> 0 | S120: 0.059 | T120: -4.41 | U120: 5.168530957e-06 | V120: 5.59 | W120: =IF($L$13>V120, U120,0) -> 5.168530957e-06
M121: -8.81 | N121: 1.19 | O121: 8.81 | P121: 5.581977703e-18 | Q121: =IF(ISEVEN(ABS(100*M121)), 0, IF($D$14>M121, 0,P121)) -> 0 | S121: 0.0595 | T121: -4.405 | U121: 5.289193893e-06 | V121: 5.595 | W121: =IF($L$13>V121, U121,0) -> 5.289193893e-06
M122: -8.8 | N122: 1.2 | O122: 8.8 | P122: 6.09575813e-18 | Q122: =IF(ISEVEN(ABS(100*M122)), 0, IF($D$14>M122, 0,P122)) -> 0 | S122: 0.06 | T122: -4.4 | U122: 5.412543908e-06 | V122: 5.6 | W122: =IF($L$13>V122, U122,0) -> 5.412543908e-06
M123: -8.79 | N123: 1.21 | O123: 8.79 | P123: 6.656162656e-18 | Q123: =IF(ISEVEN(ABS(100*M123)), 0, IF($D$14>M123, 0,P123)) -> 0 | S123: 0.0605 | T123: -4.395 | U123: 5.538637687e-06 | V123: 5.605 | W123: =IF($L$13>V123, U123,0) -> 5.538637687e-06
M124: -8.78 | N124: 1.22 | O124: 8.78 | P124: 7.267360373e-18 | Q124: =IF(ISEVEN(ABS(100*M124)), 0, IF($D$14>M124, 0,P124)) -> 0 | S124: 0.061 | T124: -4.39 | U124: 5.667533042e-06 | V124: 5.61 | W124: =IF($L$13>V124, U124,0) -> 5.667533042e-06
M125: -8.77 | N125: 1.23 | O125: 8.77 | P125: 7.933887486e-18 | Q125: =IF(ISEVEN(ABS(100*M125)), 0, IF($D$14>M125, 0,P125)) -> 0 | S125: 0.0615 | T125: -4.385 | U125: 5.799288923e-06 | V125: 5.615 | W125: =IF($L$13>V125, U125,0) -> 5.799288923e-06
M126: -8.76 | N126: 1.24 | O126: 8.76 | P126: 8.660679127e-18 | Q126: =IF(ISEVEN(ABS(100*M126)), 0, IF($D$14>M126, 0,P126)) -> 0 | S126: 0.062 | T126: -4.38 | U126: 5.933965446e-06 | V126: 5.62 | W126: =IF($L$13>V126, U126,0) -> 5.933965446e-06
M127: -8.75 | N127: 1.25 | O127: 8.75 | P127: 9.453103882e-18 | Q127: =IF(ISEVEN(ABS(100*M127)), 0, IF($D$14>M127, 0,P127)) -> 0 | S127: 0.0625 | T127: -4.375 | U127: 6.071623911e-06 | V127: 5.625 | W127: =IF($L$13>V127, U127,0) -> 6.071623911e-06
M128: -8.74 | N128: 1.26 | O128: 8.74 | P128: 1.031700124e-17 | Q128: =IF(ISEVEN(ABS(100*M128)), 0, IF($D$14>M128, 0,P128)) -> 0 | S128: 0.063 | T128: -4.37 | U128: 6.212326827e-06 | V128: 5.63 | W128: =IF($L$13>V128, U128,0) -> 6.212326827e-06
M129: -8.73 | N129: 1.27 | O129: 8.73 | P129: 1.125872226e-17 | Q129: =IF(ISEVEN(ABS(100*M129)), 0, IF($D$14>M129, 0,P129)) -> 0 | S129: 0.0635 | T129: -4.365 | U129: 6.356137928e-06 | V129: 5.635 | W129: =IF($L$13>V129, U129,0) -> 6.356137928e-06
M130: -8.72 | N130: 1.28 | O130: 8.72 | P130: 1.228517365e-17 | Q130: =IF(ISEVEN(ABS(100*M130)), 0, IF($D$14>M130, 0,P130)) -> 0 | S130: 0.064 | T130: -4.36 | U130: 6.503122201e-06 | V130: 5.64 | W130: =IF($L$13>V130, U130,0) -> 6.503122201e-06
M131: -8.71 | N131: 1.29 | O131: 8.71 | P131: =_xlfn.NORM.S.DIST(O131,FALSE) -> 1.340386557e-17 | Q131: =IF(ISEVEN(ABS(100*M131)), 0, IF($D$14>M131, 0,P131)) -> 0 | S131: =(M131 +10)/20 -> 0.0645 | T131: -4.355 | U131: =_xlfn.NORM.S.DIST(T131,TRUE) -> 6.653345906e-06 | V131: 5.645 | W131: =IF($L$13>V131, U131,0) -> 6.653345906e-06
M132: =ROUND(M131+0.01,2) -> -8.7 | N132: 1.3 | O132: =ROUND(O131-0.01,2) -> 8.7 | P132: 1.462296358e-17 | Q132: =IF(ISEVEN(ABS(100*M132)), 0, IF($D$14>M132, 0,P132)) -> 0 | S132: 0.065 | T132: =ROUND(T131+0.005,4) -> -4.35 | U132: 6.806876599e-06 | V132: =ROUND(V131+0.005,3) -> 5.65 | W132: =IF($L$13>V132, U132,0) -> 6.806876599e-06
M133: -8.69 | N133: 1.31 | O133: 8.69 | P133: 1.595134482e-17 | Q133: =IF(ISEVEN(ABS(100*M133)), 0, IF($D$14>M133, 0,P133)) -> 0 | S133: 0.0655 | T133: -4.345 | U133: 6.963783158e-06 | V133: 5.655 | W133: =IF($L$13>V133, U133,0) -> 6.963783158e-06
M134: -8.68 | N134: 1.32 | O134: 8.68 | P134: 1.739865911e-17 | Q134: =IF(ISEVEN(ABS(100*M134)), 0, IF($D$14>M134, 0,P134)) -> 0 | S134: 0.066 | T134: -4.34 | U134: 7.124135801e-06 | V134: 5.66 | W134: =IF($L$13>V134, U134,0) -> 7.124135801e-06
M135: -8.67 | N135: 1.33 | O135: 8.67 | P135: 1.897539501e-17 | Q135: =IF(ISEVEN(ABS(100*M135)), 0, IF($D$14>M135, 0,P135)) -> 0 | S135: 0.0665 | T135: -4.335 | U135: 7.288006119e-06 | V135: 5.665 | W135: =IF($L$13>V135, U135,0) -> 7.288006119e-06
M136: -8.66 | N136: 1.34 | O136: 8.66 | P136: 2.069295162e-17 | Q136: =IF(ISEVEN(ABS(100*M136)), 0, IF($D$14>M136, 0,P136)) -> 0 | S136: 0.067 | T136: -4.33 | U136: 7.455467091e-06 | V136: 5.67 | W136: =IF($L$13>V136, U136,0) -> 7.455467091e-06
M137: -8.65 | N137: 1.35 | O137: 8.65 | P137: 2.256371626e-17 | Q137: =IF(ISEVEN(ABS(100*M137)), 0, IF($D$14>M137, 0,P137)) -> 0 | S137: 0.0675 | T137: -4.325 | U137: 7.626593117e-06 | V137: 5.675 | W137: =IF($L$13>V137, U137,0) -> 7.626593117e-06
M138: -8.64 | N138: 1.36 | O138: 8.64 | P138: 2.460114879e-17 | Q138: =IF(ISEVEN(ABS(100*M138)), 0, IF($D$14>M138, 0,P138)) -> 0 | S138: 0.068 | T138: -4.32 | U138: 7.801460038e-06 | V138: 5.68 | W138: =IF($L$13>V138, U138,0) -> 7.801460038e-06
M139: -8.63 | N139: 1.37 | O139: 8.63 | P139: 2.681987295e-17 | Q139: =IF(ISEVEN(ABS(100*M139)), 0, IF($D$14>M139, 0,P139)) -> 0 | S139: 0.0685 | T139: -4.315 | U139: 7.980145165e-06 | V139: 5.685 | W139: =IF($L$13>V139, U139,0) -> 7.980145165e-06
M140: -8.62 | N140: 1.38 | O140: 8.62 | P140: 2.92357753e-17 | Q140: =IF(ISEVEN(ABS(100*M140)), 0, IF($D$14>M140, 0,P140)) -> 0 | S140: 0.069 | T140: -4.31 | U140: 8.162727303e-06 | V140: 5.69 | W140: =IF($L$13>V140, U140,0) -> 8.162727303e-06
M141: -8.61 | N141: 1.39 | O141: 8.61 | P141: 3.186611249e-17 | Q141: =IF(ISEVEN(ABS(100*M141)), 0, IF($D$14>M141, 0,P141)) -> 0 | S141: 0.0695 | T141: -4.305 | U141: 8.349286779e-06 | V141: 5.695 | W141: =IF($L$13>V141, U141,0) -> 8.349286779e-06
M142: -8.6 | N142: 1.4 | O142: 8.6 | P142: 3.472962749e-17 | Q142: =IF(ISEVEN(ABS(100*M142)), 0, IF($D$14>M142, 0,P142)) -> 0 | S142: 0.07 | T142: -4.3 | U142: 8.539905471e-06 | V142: 5.7 | W142: =IF($L$13>V142, U142,0) -> 8.539905471e-06
M143: -8.59 | N143: 1.41 | O143: 8.59 | P143: 3.784667543e-17 | Q143: =IF(ISEVEN(ABS(100*M143)), 0, IF($D$14>M143, 0,P143)) -> 0 | S143: 0.0705 | T143: -4.295 | U143: 8.73466683e-06 | V143: 5.705 | W143: =IF($L$13>V143, U143,0) -> 8.73466683e-06
M144: -8.58 | N144: 1.42 | O144: 8.58 | P144: 4.123936002e-17 | Q144: =IF(ISEVEN(ABS(100*M144)), 0, IF($D$14>M144, 0,P144)) -> 0 | S144: 0.071 | T144: -4.29 | U144: 8.933655913e-06 | V144: 5.71 | W144: =IF($L$13>V144, U144,0) -> 8.933655913e-06
M145: -8.57 | N145: 1.43 | O145: 8.57 | P145: 4.49316812e-17 | Q145: =IF(ISEVEN(ABS(100*M145)), 0, IF($D$14>M145, 0,P145)) -> 0 | S145: 0.0715 | T145: -4.285 | U145: 9.136959409e-06 | V145: 5.715 | W145: =IF($L$13>V145, U145,0) -> 9.136959409e-06
M146: -8.56 | N146: 1.44 | O146: 8.56 | P146: 4.894969513e-17 | Q146: =IF(ISEVEN(ABS(100*M146)), 0, IF($D$14>M146, 0,P146)) -> 0 | S146: 0.072 | T146: -4.28 | U146: 9.34466567e-06 | V146: 5.72 | W146: =IF($L$13>V146, U146,0) -> 9.34466567e-06
M147: -8.55 | N147: 1.45 | O147: 8.55 | P147: 5.332168736e-17 | Q147: =IF(ISEVEN(ABS(100*M147)), 0, IF($D$14>M147, 0,P147)) -> 0 | S147: 0.0725 | T147: -4.275 | U147: 9.556864737e-06 | V147: 5.725 | W147: =IF($L$13>V147, U147,0) -> 9.556864737e-06
M148: =ROUND(M147+0.01,2) -> -8.54 | N148: 1.46 | O148: 8.54 | P148: 5.807836043e-17 | Q148: =IF(ISEVEN(ABS(100*M148)), 0, IF($D$14>M148, 0,P148)) -> 0 | S148: 0.073 | T148: -4.27 | U148: 9.773648373e-06 | V148: 5.73 | W148: =IF($L$13>V148, U148,0) -> 9.773648373e-06
M149: -8.53 | N149: 1.47 | O149: 8.53 | P149: 6.32530369e-17 | Q149: =IF(ISEVEN(ABS(100*M149)), 0, IF($D$14>M149, 0,P149)) -> 0 | S149: 0.0735 | T149: -4.265 | U149: 9.99511009e-06 | V149: 5.735 | W149: =IF($L$13>V149, U149,0) -> 9.99511009e-06
M150: -8.52 | N150: 1.48 | O150: 8.52 | P150: 6.888187911e-17 | Q150: =IF(ISEVEN(ABS(100*M150)), 0, IF($D$14>M150, 0,P150)) -> 0 | S150: 0.074 | T150: -4.26 | U150: 1.022134518e-05 | V150: 5.74 | W150: =IF($L$13>V150, U150,0) -> 1.022134518e-05
M151: -8.51 | N151: 1.49 | O151: 8.51 | P151: 7.500412715e-17 | Q151: =IF(ISEVEN(ABS(100*M151)), 0, IF($D$14>M151, 0,P151)) -> 0 | S151: 0.0745 | T151: -4.255 | U151: 1.045245076e-05 | V151: 5.745 | W151: =IF($L$13>V151, U151,0) -> 1.045245076e-05
M152: -8.5 | N152: 1.5 | O152: 8.5 | P152: 8.166235632e-17 | Q152: =IF(ISEVEN(ABS(100*M152)), 0, IF($D$14>M152, 0,P152)) -> 0 | S152: 0.075 | T152: -4.25 | U152: 1.068852577e-05 | V152: 5.75 | W152: =IF($L$13>V152, U152,0) -> 1.068852577e-05
M153: -8.49 | N153: 1.51 | O153: 8.49 | P153: 8.890275578e-17 | Q153: =IF(ISEVEN(ABS(100*M153)), 0, IF($D$14>M153, 0,P153)) -> 0 | S153: 0.0755 | T153: -4.245 | U153: 1.092967105e-05 | V153: 5.755 | W153: =IF($L$13>V153, U153,0) -> 1.092967105e-05
M154: -8.48 | N154: 1.52 | O154: 8.48 | P154: 9.677543009e-17 | Q154: =IF(ISEVEN(ABS(100*M154)), 0, IF($D$14>M154, 0,P154)) -> 0 | S154: 0.076 | T154: -4.24 | U154: 1.117598933e-05 | V154: 5.76 | W154: =IF($L$13>V154, U154,0) -> 1.117598933e-05
M155: -8.47 | N155: 1.53 | O155: 8.47 | P155: 1.053347254e-16 | Q155: =IF(ISEVEN(ABS(100*M155)), 0, IF($D$14>M155, 0,P155)) -> 0 | S155: 0.0765 | T155: -4.235 | U155: 1.142758529e-05 | V155: 5.765 | W155: =IF($L$13>V155, U155,0) -> 1.142758529e-05
M156: -8.46 | N156: 1.54 | O156: 8.46 | P156: 1.146395824e-16 | Q156: =IF(ISEVEN(ABS(100*M156)), 0, IF($D$14>M156, 0,P156)) -> 0 | S156: 0.077 | T156: -4.23 | U156: 1.168456559e-05 | V156: 5.77 | W156: =IF($L$13>V156, U156,0) -> 1.168456559e-05
M157: -8.45 | N157: 1.55 | O157: 8.45 | P157: 1.24753918e-16 | Q157: =IF(ISEVEN(ABS(100*M157)), 0, IF($D$14>M157, 0,P157)) -> 0 | S157: 0.0775 | T157: -4.225 | U157: 1.19470389e-05 | V157: 5.775 | W157: =IF($L$13>V157, U157,0) -> 1.19470389e-05
M158: -8.44 | N158: 1.56 | O158: 8.44 | P158: 1.357470382e-16 | Q158: =IF(ISEVEN(ABS(100*M158)), 0, IF($D$14>M158, 0,P158)) -> 0 | S158: 0.078 | T158: -4.22 | U158: 1.221511593e-05 | V158: 5.78 | W158: =IF($L$13>V158, U158,0) -> 1.221511593e-05
M159: -8.43 | N159: 1.57 | O159: 8.43 | P159: 1.476940849e-16 | Q159: =IF(ISEVEN(ABS(100*M159)), 0, IF($D$14>M159, 0,P159)) -> 0 | S159: 0.0785 | T159: -4.215 | U159: 1.248890946e-05 | V159: 5.785 | W159: =IF($L$13>V159, U159,0) -> 1.248890946e-05
M160: -8.42 | N160: 1.58 | O160: 8.42 | P160: 1.606765183e-16 | Q160: =IF(ISEVEN(ABS(100*M160)), 0, IF($D$14>M160, 0,P160)) -> 0 | S160: 0.079 | T160: -4.21 | U160: 1.276853441e-05 | V160: 5.79 | W160: =IF($L$13>V160, U160,0) -> 1.276853441e-05
M161: -8.41 | N161: 1.59 | O161: 8.41 | P161: 1.747826393e-16 | Q161: =IF(ISEVEN(ABS(100*M161)), 0, IF($D$14>M161, 0,P161)) -> 0 | S161: 0.0795 | T161: -4.205 | U161: 1.305410785e-05 | V161: 5.795 | W161: =IF($L$13>V161, U161,0) -> 1.305410785e-05
M162: -8.4 | N162: 1.6 | O162: 8.4 | P162: 1.901081538e-16 | Q162: =IF(ISEVEN(ABS(100*M162)), 0, IF($D$14>M162, 0,P162)) -> 0 | S162: 0.08 | T162: -4.2 | U162: 1.334574902e-05 | V162: 5.8 | W162: =IF($L$13>V162, U162,0) -> 1.334574902e-05
M163: -8.39 | N163: 1.61 | O163: 8.39 | P163: 2.067567829e-16 | Q163: =IF(ISEVEN(ABS(100*M163)), 0, IF($D$14>M163, 0,P163)) -> 0 | S163: 0.0805 | T163: -4.195 | U163: 1.364357939e-05 | V163: 5.805 | W163: =IF($L$13>V163, U163,0) -> 1.364357939e-05
M164: =ROUND(M163+0.01,2) -> -8.38 | N164: 1.62 | O164: 8.38 | P164: 2.248409224e-16 | Q164: =IF(ISEVEN(ABS(100*M164)), 0, IF($D$14>M164, 0,P164)) -> 0 | S164: 0.081 | T164: -4.19 | U164: 1.394772273e-05 | V164: 5.81 | W164: =IF($L$13>V164, U164,0) -> 1.394772273e-05
M165: -8.37 | N165: 1.63 | O165: 8.37 | P165: 2.444823555e-16 | Q165: =IF(ISEVEN(ABS(100*M165)), 0, IF($D$14>M165, 0,P165)) -> 0 | S165: 0.0815 | T165: -4.185 | U165: 1.425830506e-05 | V165: 5.815 | W165: =IF($L$13>V165, U165,0) -> 1.425830506e-05
M166: -8.36 | N166: 1.64 | O166: 8.36 | P166: 2.65813023e-16 | Q166: =IF(ISEVEN(ABS(100*M166)), 0, IF($D$14>M166, 0,P166)) -> 0 | S166: 0.082 | T166: -4.18 | U166: 1.457545479e-05 | V166: 5.82 | W166: =IF($L$13>V166, U166,0) -> 1.457545479e-05
M167: -8.35 | N167: 1.65 | O167: 8.35 | P167: 2.889758558e-16 | Q167: =IF(ISEVEN(ABS(100*M167)), 0, IF($D$14>M167, 0,P167)) -> 0 | S167: 0.0825 | T167: -4.175 | U167: 1.489930269e-05 | V167: 5.825 | W167: =IF($L$13>V167, U167,0) -> 1.489930269e-05
M168: -8.34 | N168: 1.66 | O168: 8.34 | P168: 3.141256737e-16 | Q168: =IF(ISEVEN(ABS(100*M168)), 0, IF($D$14>M168, 0,P168)) -> 0 | S168: 0.083 | T168: -4.17 | U168: 1.522998195e-05 | V168: 5.83 | W168: =IF($L$13>V168, U168,0) -> 1.522998195e-05
M169: -8.33 | N169: 1.67 | O169: 8.33 | P169: 3.414301573e-16 | Q169: =IF(ISEVEN(ABS(100*M169)), 0, IF($D$14>M169, 0,P169)) -> 0 | S169: 0.0835 | T169: -4.165 | U169: 1.556762824e-05 | V169: 5.835 | W169: =IF($L$13>V169, U169,0) -> 1.556762824e-05
M170: -8.32 | N170: 1.68 | O170: 8.32 | P170: 3.710708967e-16 | Q170: =IF(ISEVEN(ABS(100*M170)), 0, IF($D$14>M170, 0,P170)) -> 0 | S170: 0.084 | T170: -4.16 | U170: 1.591237972e-05 | V170: 5.84 | W170: =IF($L$13>V170, U170,0) -> 1.591237972e-05
M171: -8.31 | N171: 1.69 | O171: 8.31 | P171: 4.032445254e-16 | Q171: =IF(ISEVEN(ABS(100*M171)), 0, IF($D$14>M171, 0,P171)) -> 0 | S171: 0.0845 | T171: -4.155 | U171: 1.626437711e-05 | V171: 5.845 | W171: =IF($L$13>V171, U171,0) -> 1.626437711e-05
M172: -8.3 | N172: 1.7 | O172: 8.3 | P172: 4.381639436e-16 | Q172: =IF(ISEVEN(ABS(100*M172)), 0, IF($D$14>M172, 0,P172)) -> 0 | S172: 0.085 | T172: -4.15 | U172: 1.662376373e-05 | V172: 5.85 | W172: =IF($L$13>V172, U172,0) -> 1.662376373e-05
M173: -8.29 | N173: 1.71 | O173: 8.29 | P173: 4.760596401e-16 | Q173: =IF(ISEVEN(ABS(100*M173)), 0, IF($D$14>M173, 0,P173)) -> 0 | S173: 0.0855 | T173: -4.145 | U173: 1.699068551e-05 | V173: 5.855 | W173: =IF($L$13>V173, U173,0) -> 1.699068551e-05
M174: -8.28 | N174: 1.72 | O174: 8.28 | P174: 5.171811193e-16 | Q174: =IF(ISEVEN(ABS(100*M174)), 0, IF($D$14>M174, 0,P174)) -> 0 | S174: 0.086 | T174: -4.14 | U174: 1.736529107e-05 | V174: 5.86 | W174: =IF($L$13>V174, U174,0) -> 1.736529107e-05
M175: -8.27 | N175: 1.73 | O175: 8.27 | P175: 5.617984416e-16 | Q175: =IF(ISEVEN(ABS(100*M175)), 0, IF($D$14>M175, 0,P175)) -> 0 | S175: 0.0865 | T175: -4.135 | U175: 1.774773177e-05 | V175: 5.865 | W175: =IF($L$13>V175, U175,0) -> 1.774773177e-05
M176: -8.26 | N176: 1.74 | O176: 8.26 | P176: 6.10203886e-16 | Q176: =IF(ISEVEN(ABS(100*M176)), 0, IF($D$14>M176, 0,P176)) -> 0 | S176: 0.087 | T176: -4.13 | U176: 1.813816172e-05 | V176: 5.87 | W176: =IF($L$13>V176, U176,0) -> 1.813816172e-05
M177: -8.25 | N177: 1.75 | O177: 8.25 | P177: 6.627137456e-16 | Q177: =IF(ISEVEN(ABS(100*M177)), 0, IF($D$14>M177, 0,P177)) -> 0 | S177: 0.0875 | T177: -4.125 | U177: 1.853673785e-05 | V177: 5.875 | W177: =IF($L$13>V177, U177,0) -> 1.853673785e-05
M178: -8.24 | N178: 1.76 | O178: 8.24 | P178: 7.196702642e-16 | Q178: =IF(ISEVEN(ABS(100*M178)), 0, IF($D$14>M178, 0,P178)) -> 0 | S178: 0.088 | T178: -4.12 | U178: 1.894361995e-05 | V178: 5.88 | W178: =IF($L$13>V178, U178,0) -> 1.894361995e-05
M179: -8.23 | N179: 1.77 | O179: 8.23 | P179: 7.814437269e-16 | Q179: =IF(ISEVEN(ABS(100*M179)), 0, IF($D$14>M179, 0,P179)) -> 0 | S179: 0.0885 | T179: -4.115 | U179: 1.935897074e-05 | V179: 5.885 | W179: =IF($L$13>V179, U179,0) -> 1.935897074e-05
M180: =ROUND(M179+0.01,2) -> -8.22 | N180: 1.78 | O180: 8.22 | P180: 8.484347155e-16 | Q180: =IF(ISEVEN(ABS(100*M180)), 0, IF($D$14>M180, 0,P180)) -> 0 | S180: 0.089 | T180: -4.11 | U180: 1.978295587e-05 | V180: 5.89 | W180: =IF($L$13>V180, U180,0) -> 1.978295587e-05
M181: -8.21 | N181: 1.79 | O181: 8.21 | P181: 9.210765424e-16 | Q181: =IF(ISEVEN(ABS(100*M181)), 0, IF($D$14>M181, 0,P181)) -> 0 | S181: 0.0895 | T181: -4.105 | U181: 2.021574402e-05 | V181: 5.895 | W181: =IF($L$13>V181, U181,0) -> 2.021574402e-05
M182: -8.2 | N182: 1.8 | O182: 8.2 | P182: 9.998378748e-16 | Q182: =IF(ISEVEN(ABS(100*M182)), 0, IF($D$14>M182, 0,P182)) -> 0 | S182: 0.09 | T182: -4.1 | U182: 2.065750691e-05 | V182: 5.9 | W182: =IF($L$13>V182, U182,0) -> 2.065750691e-05
M183: -8.19 | N183: 1.81 | O183: 8.19 | P183: 1.085225568e-15 | Q183: =IF(ISEVEN(ABS(100*M183)), 0, IF($D$14>M183, 0,P183)) -> 0 | S183: 0.0905 | T183: -4.095 | U183: 2.110841939e-05 | V183: 5.905 | W183: =IF($L$13>V183, U183,0) -> 2.110841939e-05
M184: -8.18 | N184: 1.82 | O184: 8.18 | P184: 1.177787716e-15 | Q184: =IF(ISEVEN(ABS(100*M184)), 0, IF($D$14>M184, 0,P184)) -> 0 | S184: 0.091 | T184: -4.09 | U184: 2.156865945e-05 | V184: 5.91 | W184: =IF($L$13>V184, U184,0) -> 2.156865945e-05
M185: -8.17 | N185: 1.83 | O185: 8.17 | P185: 1.27811695e-15 | Q185: =IF(ISEVEN(ABS(100*M185)), 0, IF($D$14>M185, 0,P185)) -> 0 | S185: 0.0915 | T185: -4.085 | U185: 2.203840829e-05 | V185: 5.915 | W185: =IF($L$13>V185, U185,0) -> 2.203840829e-05
M186: -8.16 | N186: 1.84 | O186: 8.16 | P186: 1.386853985e-15 | Q186: =IF(ISEVEN(ABS(100*M186)), 0, IF($D$14>M186, 0,P186)) -> 0 | S186: 0.092 | T186: -4.08 | U186: 2.251785039e-05 | V186: 5.92 | W186: =IF($L$13>V186, U186,0) -> 2.251785039e-05
M187: -8.15 | N187: 1.85 | O187: 8.15 | P187: 1.504691452e-15 | Q187: =IF(ISEVEN(ABS(100*M187)), 0, IF($D$14>M187, 0,P187)) -> 0 | S187: 0.0925 | T187: -4.075 | U187: 2.300717353e-05 | V187: 5.925 | W187: =IF($L$13>V187, U187,0) -> 2.300717353e-05
M188: -8.14 | N188: 1.86 | O188: 8.14 | P188: 1.632378023e-15 | Q188: =IF(ISEVEN(ABS(100*M188)), 0, IF($D$14>M188, 0,P188)) -> 0 | S188: 0.093 | T188: -4.07 | U188: 2.350656887e-05 | V188: 5.93 | W188: =IF($L$13>V188, U188,0) -> 2.350656887e-05
M189: -8.13 | N189: 1.87 | O189: 8.13 | P189: 1.770722865e-15 | Q189: =IF(ISEVEN(ABS(100*M189)), 0, IF($D$14>M189, 0,P189)) -> 0 | S189: 0.0935 | T189: -4.065 | U189: 2.401623099e-05 | V189: 5.935 | W189: =IF($L$13>V189, U189,0) -> 2.401623099e-05
M190: -8.12 | N190: 1.88 | O190: 8.12 | P190: 1.920600431e-15 | Q190: =IF(ISEVEN(ABS(100*M190)), 0, IF($D$14>M190, 0,P190)) -> 0 | S190: 0.094 | T190: -4.06 | U190: 2.453635797e-05 | V190: 5.94 | W190: =IF($L$13>V190, U190,0) -> 2.453635797e-05
M191: -8.11 | N191: 1.89 | O191: 8.11 | P191: 2.082955631e-15 | Q191: =IF(ISEVEN(ABS(100*M191)), 0, IF($D$14>M191, 0,P191)) -> 0 | S191: 0.0945 | T191: -4.055 | U191: 2.506715139e-05 | V191: 5.945 | W191: =IF($L$13>V191, U191,0) -> 2.506715139e-05
M192: -8.1 | N192: 1.9 | O192: 8.1 | P192: 2.258809403e-15 | Q192: =IF(ISEVEN(ABS(100*M192)), 0, IF($D$14>M192, 0,P192)) -> 0 | S192: 0.095 | T192: -4.05 | U192: 2.560881647e-05 | V192: 5.95 | W192: =IF($L$13>V192, U192,0) -> 2.560881647e-05
M193: -8.09 | N193: 1.91 | O193: 8.09 | P193: 2.449264711e-15 | Q193: =IF(ISEVEN(ABS(100*M193)), 0, IF($D$14>M193, 0,P193)) -> 0 | S193: 0.0955 | T193: -4.045 | U193: 2.616156206e-05 | V193: 5.955 | W193: =IF($L$13>V193, U193,0) -> 2.616156206e-05
M194: -8.08 | N194: 1.92 | O194: 8.08 | P194: 2.655513014e-15 | Q194: =IF(ISEVEN(ABS(100*M194)), 0, IF($D$14>M194, 0,P194)) -> 0 | S194: 0.096 | T194: -4.04 | U194: 2.672560072e-05 | V194: 5.96 | W194: =IF($L$13>V194, U194,0) -> 2.672560072e-05
M195: -8.07 | N195: 1.93 | O195: 8.07 | P195: =_xlfn.NORM.S.DIST(O195,FALSE) -> 2.878841228e-15 | Q195: =IF(ISEVEN(ABS(100*M195)), 0, IF($D$14>M195, 0,P195)) -> 0 | S195: =(M195 +10)/20 -> 0.0965 | T195: -4.035 | U195: =_xlfn.NORM.S.DIST(T195,TRUE) -> 2.730114879e-05 | V195: 5.965 | W195: =IF($L$13>V195, U195,0) -> 2.730114879e-05
M196: =ROUND(M195+0.01,2) -> -8.06 | N196: 1.94 | O196: =ROUND(O195-0.01,2) -> 8.06 | P196: 3.120639228e-15 | Q196: =IF(ISEVEN(ABS(100*M196)), 0, IF($D$14>M196, 0,P196)) -> 0 | S196: 0.097 | T196: =ROUND(T195+0.005,4) -> -4.03 | U196: 2.788842644e-05 | V196: =ROUND(V195+0.005,3) -> 5.97 | W196: =IF($L$13>V196, U196,0) -> 2.788842644e-05
M197: -8.05 | N197: 1.95 | O197: 8.05 | P197: 3.382407932e-15 | Q197: =IF(ISEVEN(ABS(100*M197)), 0, IF($D$14>M197, 0,P197)) -> 0 | S197: 0.0975 | T197: -4.025 | U197: 2.848765774e-05 | V197: 5.975 | W197: =IF($L$13>V197, U197,0) -> 2.848765774e-05
M198: -8.04 | N198: 1.96 | O198: 8.04 | P198: 3.665767995e-15 | Q198: =IF(ISEVEN(ABS(100*M198)), 0, IF($D$14>M198, 0,P198)) -> 0 | S198: 0.098 | T198: -4.02 | U198: 2.909907071e-05 | V198: 5.98 | W198: =IF($L$13>V198, U198,0) -> 2.909907071e-05
M199: -8.03 | N199: 1.97 | O199: 8.03 | P199: 3.972469183e-15 | Q199: =IF(ISEVEN(ABS(100*M199)), 0, IF($D$14>M199, 0,P199)) -> 0 | S199: 0.0985 | T199: -4.015 | U199: 2.97228974e-05 | V199: 5.985 | W199: =IF($L$13>V199, U199,0) -> 2.97228974e-05
M200: -8.02 | N200: 1.98 | O200: 8.02 | P200: 4.304400458e-15 | Q200: =IF(ISEVEN(ABS(100*M200)), 0, IF($D$14>M200, 0,P200)) -> 0 | S200: 0.099 | T200: -4.01 | U200: 3.035937393e-05 | V200: 5.99 | W200: =IF($L$13>V200, U200,0) -> 3.035937393e-05
... 1802 more rows

Sheet Comments
A1: This spreadsheet was initially built by Thomas K. Arnold in 2016
A2: It can be used or modified as you see fit.
A3: If you redistribute it, please acknowledge the original author.
A5: Thomas K. Arnold
A6: (320) 252-4993
A7: http://www.thecriminologicalpuzzle.com
A9: The purpose of this work is to provide a method for visualizing the effects of changes in
A10: propensity or sanctioning on the crime rate. These models provide examples for working
A11: with normal distributions and sanction levels. A considerable amount of trial and error
A12: went into this model. You might try playing with the coding if you want to learn how
A13: to do this yourself.
